Workbook

Sheet Cover
A1: =RIGHT(CELL("filename", $A$1), LEN(CELL("filename", $A$1)) - SEARCH("]", CELL("filename", $A$1))) -> Cover
B3: Model name: | C3: Cost of new debt indexation model
B4: Version number: | C4: 6.3
B5: Filename: | C5: Cost-of-new-debt-indexation-model-Dec-2020-v6.3.xlsm
B6: Date: | C6: 2020-12-02
B7: Author: | C7: Ofwat
B8: Author contact information: | C8: OfwatPandO@ofwat.gov.uk
B11: Summary of model: | C11: This model implements the necessary reconciliations for the allowed return on new debt.
B17: Disclaimer: | C17: None
B19: Known limitations of the model: | C19: None
C21: Issue | E21: Details | F21: Model link
B25: Changes | C25: Below are details of changes to the model from the version 6.2 published on 4 March 2020. The changes fix issues that have been identified and implement improvements for clarity and ease of use.
C27: Category | D27: Sheet(s) in current model | E27: Description of change(s) made | F27: Model link(s)
C28: Logic Update | D28: InpC | E28: Input cell: 'Mid-point of the AMP’ hardcoded to 2.5 years to aid consistency and reduce confusion. | F28: InpC!F47
C32: Logic Update | D32: InpR | E32: Defunct range removed (‘CPIH financial year average index value’)
C36: Logic Update | D36: InpR | E36: Issuance and liquidity fees line added to inform more accurate outturn allowed cost of overall debt for input to tax reconciliation model. | F36: InpR!E38
A41: END OF SHEET

Sheet Model formatting
A1: =RIGHT(CELL("filename", $A$1), LEN(CELL("filename", $A$1)) - SEARCH("]", CELL("filename", $A$1))) -> Model formatting
A4: SHEET TABS
E6: Light Yellow | G6: Input sheets
E8: No colour (default Excel tab colour) | G8: Calculation and documentation sheets
E10: Pale Blue | G10: Key output sheets
E12: Turquoise | G12: Quality control sheets
E14: Yellow | G14: To be completed, temporary, restructured, or deleted
A17: COLOUR
B19: Font colour only
E20: Blue font | G20: Imported from another sheet
E22: Red font | G22: Exported to another sheet (except from Input sheets)
E24: Black font | G24: Within sheet link or calculation
E26: Green font | G26: Additional descriptions
B28: Font + shade combinations
E29: Black font + Light Yellow shade | G29: Inputs
E31: Black font + Light Grey shade on entire row | G31: Within-worksheet counter-flow
E33: Blue font + Light Grey shade on entire row | G33: Between-worksheet counter-flow
E35: Empty Cell with Light Grey shade | G35: Empty cells being deliberately referenced
B37: Other
E38: Black font + Pale Blue shade on entire row | G38: Section separator
E40: Light Turquoise shade | G40: Stored/dead/hard coded outputs
E42: Tan shade | G42: Pre-model time line actuals
E44: Yellow shade | G44: Work in progress / temporary
E46: Lime shade | G46: Values or logic to be reviewed
B48: Error checks & alerts
E49: Green shade | G49: OK
E51: Red shade | G51: Error
E53: Gold shade | G53: Alert
A56: ABBREVIATIONS
A62: END

Sheet ToC
A1: =RIGHT(CELL("filename", $A$1), LEN(CELL("filename", $A$1)) - SEARCH("]", CELL("filename", $A$1))) -> ToC
B3: ASSUMPTIONS: | D3: INPUTS: | F3: CALCULATIONS: | H3: OUTPUTS:
B5: Cover | D5: =InpC!$A$1 -> InpC | F5: ='RCV and post 2020 investment'!A1 -> RCV and post 2020 investment | H5: =Output!A1 -> Output
B6: Model documentation sheet | D6: Inputs - column format | F6: Calculation of RCV and notional debt balances for return | H6: Outputs to other models
B8: =$A$1 -> ToC | D8: =InpR!$A$1 -> InpR | F8: ='Cost of Debt'!A1 -> Cost of Debt
B9: Table of contents | D9: Inputs - row format | F9: Allowed cost of debt calculations
B11: Model formatting | D11: =InpIndex!A1 -> InpIndex | F11: ='Water resources'!A1 -> Water resources
B12: Explanation of different formatting types | D12: Inputs - row from index | F12: Water Resources cost of debt reconciliation
B14: =Time!A1 -> Time | F14: ='Water network +'!A1 -> Water network +
B15: Treatment of time in model | F15: Water Network plus cost of debt reconciliation
F17: ='Wastewater network +'!A1 -> Wastewater network +
F18: Wastewater Network plus cost of debt reconciliation
F20: =Bioresources!A1 -> Bioresources
F21: Bioresources cost of debt reconciliation
F23: Dummy
F24: Dummy control cost of debt reconciliation
A31: END

Sheet Time
A1: =RIGHT(CELL("filename", $A$1), LEN(CELL("filename", $A$1)) - SEARCH("]", CELL("filename", $A$1))) -> Time
J2: =Time!J$22 -> 2020-03-31 | K2: =Time!K$22 -> 2021-03-31 | L2: =Time!L$22 -> 2022-03-31 | M2: =Time!M$22 -> 2023-03-31 | N2: =Time!N$22 -> 2024-03-31 | O2: =Time!O$22 -> 2025-03-31 | P2: =Time!P$22 -> 2026-03-31
J3: =Time!J$58 -> Pre Fcst | K3: =Time!K$58 -> Forecast | L3: =Time!L$58 -> Forecast | M3: =Time!M$58 -> Forecast | N3: =Time!N$58 -> Forecast | O3: =Time!O$58 -> Forecast | P3: =Time!P$58 -> Post-Fcst
E4: =Time!E$86 -> Financial Year Ending | J4: =Time!J$86 -> 2020 | K4: =Time!K$86 -> 2021 | L4: =Time!L$86 -> 2022 | M4: =Time!M$86 -> 2023 | N4: =Time!N$86 -> 2024 | O4: =Time!O$86 -> 2025 | P4: =Time!P$86 -> 2026
E5: =Time!E$10 -> Model column counter | F5: Constant | G5: Unit | H5: Total | J5: =Time!J$10 -> 1 | K5: =Time!K$10 -> 2 | L5: =Time!L$10 -> 3 | M5: =Time!M$10 -> 4 | N5: =Time!N$10 -> 5 | O5: =Time!O$10 -> 6 | P5: =Time!P$10 -> 7
A7: MODEL PERIOD
B9: Model Column Counter
E10: Model column counter | G10: counter | J10: =I10 + 1 -> 1 | K10: 2 | L10: 3 | M10: 4 | N10: 5 | O10: 6 | P10: 7
E11: Model Column Total | F11: =MAX(J10:BX10) -> 7 | G11: column
E13: =E$10 -> Model column counter | F13: 0 | G13: counter | H13: 0 | I13: 0 | J13: 1 | K13: 2 | L13: 3 | M13: 4 | N13: 5 | O13: 6 | P13: 7
E14: First model column flag | G14: flag | H14: =SUM(J14:BX14) -> 1 | J14: =IF( J13 = 1, 1, 0) -> 1 | K14: 0 | L14: 0 | M14: 0 | N14: 0 | O14: 0 | P14: 0
E16: =InpC!E$15 -> First date of time ruler | F16: =InpC!F$15 -> 2019-04-01 | G16: =InpC!G$15 -> date
E17: First model period BEG | F17: =DATE(YEAR(F16), MONTH(F16), 1) -> 2019-04-01 | G17: month
E19: =E$17 -> First model period BEG | F19: =F$17 -> 2019-04-01 | G19: =G$17 -> month
E20: =E$14 -> First model column flag | F20: 0 | G20: flag | H20: 1 | I20: 0 | J20: 1 | K20: 0 | L20: 0 | M20: 0 | N20: 0 | O20: 0 | P20: 0
E21: Model Period BEG | G21: date | J21: =IF( J20 = 1, $F19, I22 + 1) -> 2019-04-01 | K21: 2020-04-01 | L21: 2021-04-01 | M21: 2022-04-01 | N21: 2023-04-01 | O21: 2024-04-01 | P21: 2025-04-01
E22: Model Period END | G22: date | J22: =DATE(YEAR(J21), MONTH(J21) + 12, DAY(1) - 1) -> 2020-03-31 | K22: =DATE(YEAR(K21), MONTH(K21) + 12, DAY(1) - 1) -> 2021-03-31 | L22: 2022-03-31 | M22: 2023-03-31 | N22: 2024-03-31 | O22: 2025-03-31 | P22: 2026-03-31
E24: =E$22 -> Model Period END | F24: 00:00:00 | G24: date | H24: 00:00:00 | I24: 00:00:00 | J24: 2020-03-31 | K24: 2021-03-31 | L24: 2022-03-31 | M24: 2023-03-31 | N24: 2024-03-31 | O24: 2025-03-31 | P24: 2026-03-31
E25: =E$21 -> Model Period BEG | F25: 00:00:00 | G25: date | H25: 00:00:00 | I25: 00:00:00 | J25: 2019-04-01 | K25: 2020-04-01 | L25: 2021-04-01 | M25: 2022-04-01 | N25: 2023-04-01 | O25: 2024-04-01 | P25: 2025-04-01
E26: Days in Model Period | G26: days | H26: =SUM(J26:BX26) -> 2557 | J26: =J24 - J25 + 1 -> 366 | K26: 365 | L26: 365 | M26: 365 | N26: 366 | O26: 365 | P26: 365
A29: PRE FORECAST PERIOD
E31: =InpC!E$17 -> Last Pre Forecast Date | F31: =InpC!F$17 -> 2020-03-31 | G31: =InpC!G$17 -> date
E32: =E$22 -> Model Period END | F32: 00:00:00 | G32: date | H32: 00:00:00 | I32: 00:00:00 | J32: 2020-03-31 | K32: 2021-03-31 | L32: 2022-03-31 | M32: 2023-03-31 | N32: 2024-03-31 | O32: 2025-03-31 | P32: 2026-03-31
E33: Last Pre Forecast Flag | G33: flag | H33: =SUM(J33:BX33) -> 1 | J33: =IF(J32 = $F31, 1, 0) -> 1 | K33: =IF(K32 = $F31, 1, 0) -> 0 | L33: 0 | M33: 0 | N33: 0 | O33: 0 | P33: 0
E34: Pre Forecast Period Flag | G34: flag | H34: =SUM(J34:BX34) -> 1 | J34: =IF($F31 >= J32, 1, 0) -> 1 | K34: 0 | L34: 0 | M34: 0 | N34: 0 | O34: 0 | P34: 0
E35: Pre Forecast Period Total | F35: =SUM(J34:BX34) -> 1 | G35: columns
E37: =InpC!E$19 -> Acquisition date (midnight) | F37: =InpC!F$19 -> 2020-03-31 | G37: =InpC!G$19 -> date
E38: =E$22 -> Model Period END | F38: 00:00:00 | G38: date | H38: 00:00:00 | I38: 00:00:00 | J38: 2020-03-31 | K38: 2021-03-31 | L38: 2022-03-31 | M38: 2023-03-31 | N38: 2024-03-31 | O38: 2025-03-31 | P38: 2026-03-31
E39: Acquisition / initial balance date flag | G39: flag | H39: =SUM(J39:BX39) -> 1 | J39: =IF(J38 = $F37, 1, 0) -> 1 | K39: 0 | L39: 0 | M39: 0 | N39: 0 | O39: 0 | P39: 0
A42: FORECAST PERIOD
E44: =E$33 -> Last Pre Forecast Flag | F44: 0 | G44: flag | H44: 1 | I44: 0 | J44: 1 | K44: 0 | L44: 0 | M44: 0 | N44: 0 | O44: 0 | P44: 0
E45: 1st Forecast Period Flag | G45: flag | H45: =SUM(J45:BX45) -> 1 | J45: =I44 -> 0 | K45: 1 | L45: 0 | M45: 0 | N45: 0 | O45: 0 | P45: 0
E47: =InpC!E$21 -> Last forecast date | F47: =InpC!F$21 -> 2025-03-31 | G47: =InpC!G$21 -> date
E48: =E$22 -> Model Period END | F48: 00:00:00 | G48: date | H48: 00:00:00 | I48: 00:00:00 | J48: 2020-03-31 | K48: 2021-03-31 | L48: 2022-03-31 | M48: 2023-03-31 | N48: 2024-03-31 | O48: 2025-03-31 | P48: 2026-03-31
E49: Last Forecast Period Flag | G49: flag | H49: =SUM(J49:BX49) -> 1 | J49: =IF(AND($F47 > I48, $F47 <= J48), 1, 0) -> 0 | K49: 0 | L49: 0 | M49: 0 | N49: 0 | O49: 1 | P49: 0
E51: =E$45 -> 1st Forecast Period Flag | F51: 0 | G51: flag | H51: 1 | I51: 0 | J51: 0 | K51: =K$45 -> 1 | L51: 0 | M51: 0 | N51: 0 | O51: 0 | P51: 0
E52: =E$49 -> Last Forecast Period Flag | F52: 0 | G52: flag | H52: 1 | I52: 0 | J52: 0 | K52: 0 | L52: 0 | M52: 0 | N52: 0 | O52: 1 | P52: 0
E53: Forecast Period Flag | G53: flag | H53: =SUM(J53:BX53) -> 5 | J53: =J51 - I52 + I53 -> 0 | K53: 1 | L53: 1 | M53: 1 | N53: 1 | O53: 1 | P53: 0
E54: Forecast Period Total | F54: =SUM(J53:BX53) -> 5 | G54: columns
E56: =E$34 -> Pre Forecast Period Flag | F56: 0 | G56: flag | H56: 1 | I56: 0 | J56: 1 | K56: 0 | L56: 0 | M56: 0 | N56: 0 | O56: 0 | P56: 0
E57: =E$53 -> Forecast Period Flag | F57: 0 | G57: flag | H57: 5 | I57: 0 | J57: 0 | K57: 1 | L57: 1 | M57: 1 | N57: 1 | O57: 1 | P57: 0
E58: Pre Forecast vs Forecast | G58: flag | J58: =IF(J56 = 1, "Pre Fcst", IF(J57 = 1, "Forecast", "Post-Fcst")) -> Pre Fcst | K58: Forecast | L58: Forecast | M58: Forecast | N58: Forecast | O58: Forecast | P58: Post-Fcst
A61: POST FORECAST PERIOD
E63: =E$49 -> Last Forecast Period Flag | F63: 0 | G63: flag | H63: 1 | I63: 0 | J63: 0 | K63: 0 | L63: 0 | M63: 0 | N63: 0 | O63: 1 | P63: 0
E64: 1st Post Last Forecast Period Flag | G64: flag | H64: =SUM(J64:BX64) -> 1 | J64: =I63 -> 0 | K64: 0 | L64: 0 | M64: 0 | N64: 0 | O64: 0 | P64: 1
E66: =E$64 -> 1st Post Last Forecast Period Flag | F66: 0 | G66: flag | H66: 1 | I66: 0 | J66: 0 | K66: 0 | L66: 0 | M66: 0 | N66: 0 | O66: 0 | P66: 1
E67: Post Forecast Period Flag | G67: flag | H67: =SUM(J67:BX67) -> 1 | J67: =I67 + J66 -> 0 | K67: 0 | L67: 0 | M67: 0 | N67: 0 | O67: 0 | P67: 1
E68: Post Forecast Period Total | F68: =SUM(J67:BX67) -> 1 | G68: columns
A71: MODELLING PERIOD CHECK
E73: =E$11 -> Model Column Total | F73: =F$11 -> 7 | G73: =G$11 -> column
D74: less | E74: =E$35 -> Pre Forecast Period Total | F74: =F$35 -> 1 | G74: =G$35 -> columns
D75: less | E75: =E$54 -> Forecast Period Total | F75: =F$54 -> 5 | G75: =G$54 -> columns
D76: less | E76: =E$68 -> Post Forecast Period Total | F76: =F$68 -> 1 | G76: =G$68 -> columns
E77: Modelling Period Check | F77: =IF(F73 - SUM(F74:F76) <> 0, 1, 0) -> 0 | G77: check
A80: FINANCIAL YEAR
E82: =InpC!E26 -> First Modelling Column Financial Year Number | F82: =InpC!F26 -> 2020 | G82: =InpC!G26 -> year
E83: =InpC!E27 -> Financial Year End Month Number | F83: =InpC!F27 -> 3 | G83: =InpC!G27 -> month #
E84: =E$22 -> Model Period END | F84: 00:00:00 | G84: date | H84: 00:00:00 | I84: 00:00:00 | J84: 2020-03-31 | K84: 2021-03-31 | L84: 2022-03-31 | M84: 2023-03-31 | N84: 2024-03-31 | O84: 2025-03-31 | P84: 2026-03-31
E85: =E$14 -> First model column flag | F85: 0 | G85: flag | H85: 1 | I85: 0 | J85: 1 | K85: 0 | L85: 0 | M85: 0 | N85: 0 | O85: 0 | P85: 0
E86: Financial Year Ending | G86: year # | J86: =IF(J85 = 1, $F82, IF(J84 > (DATE(I86, $F83 + 1, 1) - 1), I86 + 1, I86)) -> 2020 | K86: 2021 | L86: 2022 | M86: 2023 | N86: 2024 | O86: 2025 | P86: 2026
A88: CURRENT YEAR FLAG
E90: =InpC!E$31 -> First modelling period end year | F90: =InpC!F$31 -> 2021 | G90: =InpC!G$31 -> year
E91: =E$86 -> Financial Year Ending | F91: =F$86 -> 0 | G91: year # | H91: 0 | I91: 0 | J91: 2020 | K91: 2021 | L91: 2022 | M91: 2023 | N91: 2024 | O91: 2025 | P91: 2026
E92: First modelling period flag | F92: =F$10 -> 0 | G92: flag | H92: =H$10 -> 0 | I92: =I$10 -> 0 | J92: =IF(J91 = $F90, 1, 0) -> 0 | K92: =IF(K91 = $F90, 1, 0) -> 1 | L92: 0 | M92: 0 | N92: 0 | O92: 0 | P92: 0
E94: =InpC!E$32 -> Second modelling period end year | F94: =InpC!F$32 -> 2022 | G94: =InpC!G$32 -> year
E95: =E$86 -> Financial Year Ending | F95: =F$86 -> 0 | G95: year # | H95: 0 | I95: 0 | J95: 2020 | K95: 2021 | L95: 2022 | M95: 2023 | N95: 2024 | O95: 2025 | P95: 2026
E96: Second modelling period flag | F96: =F$10 -> 0 | G96: flag | H96: =H$10 -> 0 | I96: =I$10 -> 0 | J96: =IF(J95 = $F94, 1, 0) -> 0 | K96: 0 | L96: 1 | M96: 0 | N96: 0 | O96: 0 | P96: 0
E98: =InpC!E$33 -> Third modelling period end year | F98: =InpC!F$33 -> 2023 | G98: =InpC!G$33 -> year
E99: =E$86 -> Financial Year Ending | F99: =F$86 -> 0 | G99: year # | H99: 0 | I99: 0 | J99: 2020 | K99: 2021 | L99: 2022 | M99: 2023 | N99: 2024 | O99: 2025 | P99: 2026
E100: Third modelling period flag | F100: =F$10 -> 0 | G100: flag | H100: =H$10 -> 0 | I100: =I$10 -> 0 | J100: =IF(J99 = $F98, 1, 0) -> 0 | K100: 0 | L100: 0 | M100: 1 | N100: 0 | O100: 0 | P100: 0
E102: =InpC!E$34 -> Fourth modelling period end year | F102: =InpC!F$34 -> 2024 | G102: =InpC!G$34 -> year
E103: =E$86 -> Financial Year Ending | F103: =F$86 -> 0 | G103: year # | H103: 0 | I103: 0 | J103: 2020 | K103: 2021 | L103: 2022 | M103: 2023 | N103: 2024 | O103: 2025 | P103: 2026
E104: Fourth modelling period flag | F104: =F$10 -> 0 | G104: flag | H104: =H$10 -> 0 | I104: =I$10 -> 0 | J104: =IF(J103 = $F102, 1, 0) -> 0 | K104: 0 | L104: 0 | M104: 0 | N104: 1 | O104: 0 | P104: 0
E106: =InpC!E$35 -> Fifth modelling period end year | F106: =InpC!F$35 -> 2025 | G106: =InpC!G$35 -> year
E107: =E$86 -> Financial Year Ending | F107: =F$86 -> 0 | G107: year # | H107: 0 | I107: 0 | J107: 2020 | K107: 2021 | L107: 2022 | M107: 2023 | N107: 2024 | O107: 2025 | P107: 2026
E108: Fifth modelling period flag | F108: =F$10 -> 0 | G108: flag | H108: =H$10 -> 0 | I108: =I$10 -> 0 | J108: =IF(J107 = $F106, 1, 0) -> 0 | K108: 0 | L108: 0 | M108: 0 | N108: 0 | O108: 1 | P108: 0

Sheet InpC
A1: =RIGHT(CELL("filename", $A$1), LEN(CELL("filename", $A$1)) - SEARCH("]", CELL("filename", $A$1))) -> InpC
F5: Input | G5: Unit | H5: Comment
E7: Total Comparison Column Differences
E9: Option Name
E11: [don't delete row]
A13: TIME
E15: First date of time ruler | F15: 2019-04-01 | G15: date | H15: Suggested default: (as entered)
E17: Last Pre Forecast Date | F17: 2020-03-31 | G17: date | H17: Suggested default: (as entered)
E19: Acquisition date (midnight) | F19: 2020-03-31 | G19: date | H19: Suggested default: (as entered)
E20: Length of forecast period | F20: 5 | G20: years | H20: Suggested default: (as entered)
E21: Last forecast date | F21: =DATE(YEAR(F19)+F20,MONTH(F19),DAY(F19)) -> 2025-03-31 | G21: date
E24: Operation Start Date (midnight) | F24: 2020-03-31 | G24: date | H24: Suggested default: (as entered)
E25: Operation Finish Date (midnight) | F25: 2025-03-31 | G25: date | H25: Suggested default: (as entered)
E26: First Modelling Column Financial Year Number | F26: 2020 | G26: year | H26: Suggested default: (as entered)
E27: Financial Year End Month Number | F27: 3 | G27: month # | H27: Suggested default: (as entered)
E28: Financial Year Start Month Number | F28: 4 | G28: month # | H28: Suggested default: (as entered)
E30: Modelling period flags
E31: First modelling period end year | F31: 2021 | G31: year | H31: Suggested default: (as entered)
E32: Second modelling period end year | F32: 2022 | G32: year | H32: Suggested default: (as entered)
E33: Third modelling period end year | F33: 2023 | G33: year | H33: Suggested default: (as entered)
E34: Fourth modelling period end year | F34: 2024 | G34: year | H34: Suggested default: (as entered)
E35: Fifth modelling period end year | F35: 2025 | G35: year | H35: Suggested default: (as entered)
A38: NON CHANGEABLE INPUTS
B40: Model Tolerance
E41: Model Check Tolerance Level | F41: 0.001 | G41: tolerance
E43: Model Track Tolerance Level | F43: 0.001 | G43: tolerance
E45: % Model Check Tolerance Level | F45: 1e-05 | G45: %
E47: Mid-point of the AMP | F47: 2.5 | G47: years
A49: FINANCIAL CALC INPUTS
E51: Notional % of 'new' debt over period | F51: 0.17 | G51: percentage | H51: Suggested default: 20% (see: 'PR19 Final Determinations, Allowed Return on Capital Technical Appendix')
E52: Proportion of notional debt subject to indexation - intial balance | G52: percentage | H52: Suggested default: blank
E53: Long-term CPIH assumption | F53: 0.02 | G53: percentage | H53: Suggested default: 2.0% (see: 'PR19 Final Determinations, Allowed Return on Capital Technical Appendix')
E55: Ex-ante 'outperformance wedge' for notional company vs. average A/BBB iBoXX 10+ non-financial index (new debt only) | F55: 0 | G55: percentage | H55: Suggested default: 0.15% (see: 'PR19 Final Determinations, Allowed Return on Capital Technical Appendix')
E56: PR19 appointee allowed return on capital (CPIH-deflated using long-term assumption) | F56: 0.0319998 | G56: percentage | H56: Suggested default: 2.96% (see: 'PR19 Final Determinations, Allowed Return on Capital Technical Appendix')
E57: Notional gearing | F57: 0.6 | G57: percentage | H57: Suggested default: 60% (see: 'PR19 Final Determinations, Allowed Return on Capital Technical Appendix')
E59: Units in 100% | F59: 100 | G59: units | H59: Suggested default: 100
E61: PV base date | F61: 2025-03-31 | G61: date | H61: Suggested default: 31 Mar 25
E62: Days in a year | F62: 365 | G62: days | H62: Suggested default: 365
E64: Company-specific adjustment (new debt) | F64: 0 | G64: percentage | H64: Suggested default: 0.25% (see: 'PR19 Final Determinations, Allowed Return on Capital Technical Appendix')
E65: Company-specific adjustment (embedded debt) | F65: 0 | G65: percentage | H65: Suggested default: 0.35% (see: 'PR19 Final Determinations, Allowed Return on Capital Technical Appendix')
E66: Company-specific adjustment applies to Water Resources | G66: Yes / No | H66: Company-specific input
E67: Company-specific adjustment applies to Water Network Plus | G67: Yes / No | H67: Company-specific input
E68: Company-specific adjustment applies to Wastewater Network Plus | G68: Yes / No | H68: Company-specific input
E69: Company-specific adjustment applies to Bioresources | G69: Yes / No | H69: Company-specific input
E70: Company-specific adjustment applies to Dummy | G70: Yes / No | H70: Company-specific input
E74: [don't delete row]

Sheet InpR
A1: =RIGHT(CELL("filename", $A$1), LEN(CELL("filename", $A$1)) - SEARCH("]", CELL("filename", $A$1))) -> InpR
E2: =Time!E$21 -> Model Period BEG | J2: =Time!J$21 -> 2019-04-01 | K2: =Time!K$21 -> 2020-04-01 | L2: =Time!L$21 -> 2021-04-01 | M2: =Time!M$21 -> 2022-04-01 | N2: =Time!N$21 -> 2023-04-01 | O2: =Time!O$21 -> 2024-04-01 | P2: =Time!P$21 -> 2025-04-01
E3: =Time!E$22 -> Model Period END | J3: =Time!J$22 -> 2020-03-31 | K3: =Time!K$22 -> 2021-03-31 | L3: =Time!L$22 -> 2022-03-31 | M3: =Time!M$22 -> 2023-03-31 | N3: =Time!N$22 -> 2024-03-31 | O3: =Time!O$22 -> 2025-03-31 | P3: =Time!P$22 -> 2026-03-31
E4: =Time!E$58 -> Pre Forecast vs Forecast | J4: =Time!J$58 -> Pre Fcst | K4: =Time!K$58 -> Forecast | L4: =Time!L$58 -> Forecast | M4: =Time!M$58 -> Forecast | N4: =Time!N$58 -> Forecast | O4: =Time!O$58 -> Forecast | P4: =Time!P$58 -> Post-Fcst | Q4: Notes:
E5: =Time!E$86 -> Financial Year Ending | J5: =Time!J$86 -> 2020 | K5: =Time!K$86 -> 2021 | L5: =Time!L$86 -> 2022 | M5: =Time!M$86 -> 2023 | N5: =Time!N$86 -> 2024 | O5: =Time!O$86 -> 2025 | P5: =Time!P$86 -> 2026
E6: =Time!E$10 -> Model column counter | J6: =Time!J$10 -> 1 | K6: =Time!K$10 -> 2 | L6: =Time!L$10 -> 3 | M6: =Time!M$10 -> 4 | N6: =Time!N$10 -> 5 | O6: =Time!O$10 -> 6 | P6: =Time!P$10 -> 7
F7: Constant | G7: Unit | H7: Total
E13: [don't delete row] | I13: [range starts]
A14: RCV - Water Resources
E15: Water resources RCV year start | G15: £m, (CPIH, 2017/18 prices) | K15: 299.8394655 | L15: 291.213257 | M15: 283.7529853 | N15: 275.3198461 | O15: 266.0246983 | Q15: Suggested default: Table 3.4 FD Allowed Revenue appendix ('Total Opening RCV')
E16: Water Resources RCV year end | G16: £m, (CPIH, 2017/18 prices) | K16: 291.213257 | L16: 283.7529853 | M16: 275.3198461 | N16: 266.0246983 | O16: 257.2163456 | Q16: Suggested default: Table 3.4 FD Allowed Revenue appendix ('Total Closing RCV')
A18: RCV - Water Network Plus
E19: Water Network Plus RCV year start | G19: £m, (CPIH, 2017/18 prices) | K19: 1701.167938 | L19: 1737.995331 | M19: 1788.92989 | N19: 1830.970088 | O19: 1854.874833 | Q19: Suggested default: Table 3.8 FD Allowed revenue appendix ('Total Opening RCV')
E20: Water Network Plus RCV year end | G20: £m, (CPIH, 2017/18 prices) | K20: 1737.995331 | L20: 1788.92989 | M20: 1830.970088 | N20: 1854.874833 | O20: 1864.40339 | Q20: Suggested default: Table 3.8 FD Allowed revenue appendix ('Total Closing RCV')
A22: RCV - Wastewater Network Plus
E23: Watewater Network Plus RCV year start | G23: £m, (CPIH, 2017/18 prices) | K23: 1831.484586 | L23: 1827.348116 | M23: 1845.794641 | N23: 1886.249933 | O23: 1981.024865 | Q23: Suggested default: Table 3.12 FD Allowed revenue appendix ('Total Opening RCV')
E24: Watewater Network Plus RCV year end | G24: £m, (CPIH, 2017/18 prices) | K24: 1827.348116 | L24: 1845.794641 | M24: 1886.249933 | N24: 1981.024865 | O24: 2024.275246 | Q24: Suggested default: Table 3.12 FD Allowed revenue appendix ('Total Closing RCV')
A26: RCV - Bioresources
E27: Bioresources RCV year start | G27: £m, (CPIH, 2017/18 prices) | K27: 137.9980477 | L27: 137.0332007 | M27: 136.8578403 | N27: 137.1440544 | O27: 137.7865564 | Q27: Suggested default: Table 3.16 FD Allowed revenue appendix ('Total Opening RCV')
E28: Bioresources RCV year end | G28: £m, (CPIH, 2017/18 prices) | K28: 137.0332007 | L28: 136.8578403 | M28: 137.1440544 | N28: 137.7865564 | O28: 138.731273 | Q28: Suggested default: Table 3.16 FD Allowed revenue appendix ('Total Closing RCV')
A30: RCV - Dummy
E31: Dummy RCV year start | G31: £m, (CPIH, 2017/18 prices) | Q31: Suggested default: Table 3.20 FD Allowed revenue appendix ('Total Opening RCV')
E32: Dummy RCV year end | G32: £m, (CPIH, 2017/18 prices) | Q32: Suggested default: Table 3.20 FD Allowed revenue appendix ('Total Closing RCV')
A35: COD
E36: Allowed sector new debt cost (not inc. CSA) - final determination (CPIH real) | G36: percentage | K36: 0.001862745098 | L36: 0.001862745098 | M36: 0.001862745098 | N36: 0.001862745098 | O36: 0.001862745098 | Q36: Suggested default: 0.53% - Table 1.1. FD Allowed return on capital technical appendix
E37: Allowed sector embedded debt cost (not inc. CSA) - final determination (CPIH real) | G37: percentage | K37: 0.02470588235 | L37: 0.02470588235 | M37: 0.02470588235 | N37: 0.02470588235 | O37: 0.02470588235 | Q37: Suggested default: 2.42% - Table 1.1. FD Allowed return on capital technical appendix
E38: Allowed sector issuance and liquidity costs - final determinations | K38: 0.001 | L38: 0.001 | M38: 0.001 | N38: 0.001 | O38: 0.001 | Q38: Suggested default: 0.10% - Table 1.1. FD Allowed return on capital technical appendix
E40: =InpC!E$59 -> Units in 100% | F40: =InpC!F$59 -> 100 | G40: =InpC!G$59 -> units
E41: 1 Year average of iBoxx adjusted for 'outperformance wedge' (base) | G41: Percentage | K41: =AVERAGEIFS( InpIndex!$M:$M, InpIndex!$G:$G, K5) / $F40 -> 0.02163974363 | L41: =AVERAGEIFS( InpIndex!$M:$M, InpIndex!$G:$G, L5) / $F40 -> 0.02446005109 | M41: =AVERAGEIFS( InpIndex!$M:$M, InpIndex!$G:$G, M5) / $F40 -> 0.04819417725 | N41: =AVERAGEIFS( InpIndex!$M:$M, InpIndex!$G:$G, N5) / $F40 -> 0.05888902545 | O41: =AVERAGEIFS( InpIndex!$M:$M, InpIndex!$G:$G, O5) / $F40 -> 0.05969169553
E44: =InpC!E$52 -> Proportion of notional debt subject to indexation - intial balance | F44: =InpC!F$52 -> 0 | G44: =InpC!G$52 -> percentage | I44: =InpC!#REF! ->  | J44: =InpC!I$52 -> 0 | K44: =InpC!J$52 -> 0 | L44: =InpC!K$52 -> 0 | M44: =InpC!L$52 -> 0 | N44: =InpC!M$52 -> 0 | O44: =InpC!N$52 -> 0 | P44: =InpC!O$52 -> 0
E45: =InpC!E$51 -> Notional % of 'new' debt over period | F45: =InpC!F$51 -> 0.17 | G45: =InpC!G$51 -> percentage | I45: =InpC!#REF! ->  | J45: =InpC!I$51 -> 0 | K45: =InpC!J$51 -> 0 | L45: =InpC!K$51 -> 0 | M45: =InpC!L$51 -> 0 | N45: =InpC!M$51 -> 0 | O45: =InpC!N$51 -> 0 | P45: =InpC!O$51 -> 0
E46: =InpC!E$47 -> Mid-point of the AMP | F46: =InpC!F$47 -> 2.5 | G46: =InpC!G$47 -> years | H46: =InpC!H$54 -> 0 | I46: =InpC!#REF! ->  | J46: =InpC!I$54 -> 0 | K46: =InpC!J$54 -> 0 | L46: =InpC!K$54 -> 0 | M46: =InpC!L$54 -> 0 | N46: =InpC!M$54 -> 0 | O46: =InpC!N$54 -> 0 | P46: =InpC!O$54 -> 0
E48: =Time!E$44 -> Last Pre Forecast Flag | F48: =Time!F$44 -> 0 | G48: =Time!G$44 -> flag | H48: =Time!H$44 -> 1 | I48: =Time!I$44 -> 0 | J48: =Time!J$44 -> 1 | K48: =Time!K$44 -> 0 | L48: =Time!L$44 -> 0 | M48: =Time!M$44 -> 0 | N48: =Time!N$44 -> 0 | O48: =Time!O$44 -> 0 | P48: =Time!P$44 -> 0
E50: Proportion of notional debt subject to indexation BEG | G50: Percentage | J50: =I51 -> 0 | K50: =J51 -> 0 | L50: 0.068 | M50: 0.136 | N50: 0.204 | O50: 0.272 | P50: =O51 -> 0.34
E51: Proportion of notional debt subject to indexation END | G51: Percentage | J51: =IF( J48 = 1, $F44, J50 + ($F45 / $F46) ) -> 0 | K51: =IF( K48 = 1, $F44, K50 + ($F45 / $F46) ) -> 0.068 | L51: 0.136 | M51: =IF( M48 = 1, $F44, M50 + ($F45 / $F46) ) -> 0.204 | N51: 0.272 | O51: 0.34 | P51: 0.408
E55: =E$50 -> Proportion of notional debt subject to indexation BEG | F55: =F$50 -> 0 | G55: Percentage | H55: 0 | I55: 0 | J55: 0 | K55: =K$50 -> 0 | L55: 0.068 | M55: 0.136 | N55: 0.204 | O55: 0.272 | P55: 0.34
E56: =E$51 -> Proportion of notional debt subject to indexation END | F56: =F$51 -> 0 | G56: Percentage | H56: 0 | I56: 0 | J56: 0 | K56: 0.068 | L56: 0.136 | M56: 0.204 | N56: 0.272 | O56: 0.34 | P56: 0.408
E57: Proportion of notional debt subject to indexation (year average) | G57: percentage | J57: =IFERROR( AVERAGE( J55:J56), 0) -> 0 | K57: 0.034 | L57: 0.102 | M57: 0.17 | N57: 0.238 | O57: 0.306 | P57: 0.374
E59: CPIH inflation allowance (long-term assumption) | F59: =InpC!F53 -> 0.02 | G59: percentage | K59: =$F$59 -> 0.02 | L59: =$F$59 -> 0.02 | M59: 0.02 | N59: 0.02 | O59: 0.02
B63: Average debt cost weightings
E64: Average debt cost weighting 2021 | G64: Weighting | K64: 1 | L64: 0 | M64: 0 | N64: 0 | O64: 0 | Q64: Suggested default: Leave as populated
E65: Average debt cost weighting 2022 | G65: Weighting | K65: 1 | L65: 0.5 | M65: 0 | N65: 0 | O65: 0 | Q65: Suggested default: Leave as populated
E66: Average debt cost weighting 2023 | G66: Weighting | K66: 1 | L66: 1 | M66: 0.5 | N66: 0 | O66: 0 | Q66: Suggested default: Leave as populated
E67: Average debt cost weighting 2024 | G67: Weighting | K67: 1 | L67: 1 | M67: 1 | N67: 0.5 | O67: 0 | Q67: Suggested default: Leave as populated
E68: Average debt cost weighting 2025 | G68: Weighting | K68: 1 | L68: 1 | M68: 1 | N68: 1 | O68: 0.5 | Q68: Suggested default: Leave as populated
I71: [range ends]

Sheet InpIndex
A1: =RIGHT(CELL("filename", $A$1), LEN(CELL("filename", $A$1)) - SEARCH("]", CELL("filename", $A$1))) -> InpIndex
E5: Date | F5: Financial Year Month Start | G5: Fiscal Year | H5: iBoxx £ Non-Financials A 10+ | I5: iBoxx £ Non-Financials BBB 10+ | J5: Average of A and BBB | K5: Ex-ante outperformance wedge | L5: Company-specific adjustment | M5: Adjusted A/BBB average (base) | N5: Adjusted A/BBB average (CSA)
E6: 2020-03-31 | F6: =InpC!$F$28 -> 4 | G6: =YEAR(E6) + IF(MONTH(E6) >= F6, 1, 0) -> 2020 | H6: 2.882 | I6: 3.273 | J6: =IFERROR(AVERAGE(H6:I6),"") -> 3.0775 | K6: =InpC!$F$55*100 -> 0 | L6: =InpC!$F$64*100 -> 0 | M6: =IFERROR(J6 - K6,"") -> 3.0775 | N6: =IFERROR(J6-K6+L6,"") -> 3.0775
E7: =WORKDAY(E6,1,) -> 2020-04-01 | F7: =InpC!$F$28 -> 4 | G7: 2021 | H7: 2.747930419 | I7: 3.120058775 | J7: 2.933994597 | K7: =InpC!$F$55*100 -> 0 | L7: =InpC!$F$64*100 -> 0 | M7: 2.933994597 | N7: 2.933994597
E8: 2020-04-02 | F8: =InpC!$F$28 -> 4 | G8: 2021 | H8: 2.743806614 | I8: 3.113112252 | J8: 2.928459433 | K8: =InpC!$F$55*100 -> 0 | L8: =InpC!$F$64*100 -> 0 | M8: 2.928459433 | N8: 2.928459433
E9: 2020-04-03 | F9: =InpC!$F$28 -> 4 | G9: 2021 | H9: 2.644422134 | I9: 3.022605932 | J9: 2.833514033 | K9: =InpC!$F$55*100 -> 0 | L9: =InpC!$F$64*100 -> 0 | M9: 2.833514033 | N9: 2.833514033
E10: 2020-04-06 | F10: =InpC!$F$28 -> 4 | G10: 2021 | H10: 2.598223817 | I10: 2.974714836 | J10: 2.786469326 | K10: =InpC!$F$55*100 -> 0 | L10: =InpC!$F$64*100 -> 0 | M10: 2.786469326 | N10: 2.786469326
E11: 2020-04-07 | F11: =InpC!$F$28 -> 4 | G11: 2021 | H11: 2.556228272 | I11: 2.920836147 | J11: 2.73853221 | K11: =InpC!$F$55*100 -> 0 | L11: =InpC!$F$64*100 -> 0 | M11: 2.73853221 | N11: 2.73853221
E12: 2020-04-08 | F12: =InpC!$F$28 -> 4 | G12: 2021 | H12: 2.497377514 | I12: 2.873140515 | J12: 2.685259014 | K12: =InpC!$F$55*100 -> 0 | L12: =InpC!$F$64*100 -> 0 | M12: 2.685259014 | N12: 2.685259014
E13: 2020-04-09 | F13: =InpC!$F$28 -> 4 | G13: 2021 | H13: 2.388993668 | I13: 2.75418074 | J13: 2.571587204 | K13: =InpC!$F$55*100 -> 0 | L13: =InpC!$F$64*100 -> 0 | M13: 2.571587204 | N13: 2.571587204
E14: 2020-04-10 | F14: =InpC!$F$28 -> 4 | G14: 2021 | K14: =InpC!$F$55*100 -> 0 | L14: =InpC!$F$64*100 -> 0
E15: 2020-04-13 | F15: =InpC!$F$28 -> 4 | G15: 2021 | K15: =InpC!$F$55*100 -> 0 | L15: =InpC!$F$64*100 -> 0
E16: 2020-04-14 | F16: =InpC!$F$28 -> 4 | G16: 2021 | H16: 2.327352001 | I16: 2.668699639 | J16: 2.49802582 | K16: =InpC!$F$55*100 -> 0 | L16: =InpC!$F$64*100 -> 0 | M16: 2.49802582 | N16: 2.49802582
E17: 2020-04-15 | F17: =InpC!$F$28 -> 4 | G17: 2021 | H17: 2.286183922 | I17: 2.623893279 | J17: 2.4550386 | K17: =InpC!$F$55*100 -> 0 | L17: =InpC!$F$64*100 -> 0 | M17: 2.4550386 | N17: 2.4550386
E18: 2020-04-16 | F18: =InpC!$F$28 -> 4 | G18: 2021 | H18: 2.285041048 | I18: 2.618971303 | J18: 2.452006176 | K18: =InpC!$F$55*100 -> 0 | L18: =InpC!$F$64*100 -> 0 | M18: 2.452006176 | N18: 2.452006176
E19: 2020-04-17 | F19: =InpC!$F$28 -> 4 | G19: 2021 | H19: 2.27915625 | I19: 2.609774498 | J19: 2.444465374 | K19: =InpC!$F$55*100 -> 0 | L19: =InpC!$F$64*100 -> 0 | M19: 2.444465374 | N19: 2.444465374
E20: 2020-04-20 | F20: =InpC!$F$28 -> 4 | G20: 2021 | H20: 2.313224006 | I20: 2.637594115 | J20: 2.475409061 | K20: =InpC!$F$55*100 -> 0 | L20: =InpC!$F$64*100 -> 0 | M20: 2.475409061 | N20: 2.475409061
E21: 2020-04-21 | F21: =InpC!$F$28 -> 4 | G21: 2021 | H21: 2.284337672 | I21: 2.597139584 | J21: 2.440738628 | K21: =InpC!$F$55*100 -> 0 | L21: =InpC!$F$64*100 -> 0 | M21: 2.440738628 | N21: 2.440738628
E22: 2020-04-22 | F22: =InpC!$F$28 -> 4 | G22: 2021 | H22: 2.301292268 | I22: 2.614062969 | J22: 2.457677619 | K22: =InpC!$F$55*100 -> 0 | L22: =InpC!$F$64*100 -> 0 | M22: 2.457677619 | N22: 2.457677619
E23: 2020-04-23 | F23: =InpC!$F$28 -> 4 | G23: 2021 | H23: 2.266502678 | I23: 2.585518822 | J23: 2.42601075 | K23: =InpC!$F$55*100 -> 0 | L23: =InpC!$F$64*100 -> 0 | M23: 2.42601075 | N23: 2.42601075
E24: 2020-04-24 | F24: =InpC!$F$28 -> 4 | G24: 2021 | H24: 2.273334766 | I24: 2.581379286 | J24: 2.427357026 | K24: =InpC!$F$55*100 -> 0 | L24: =InpC!$F$64*100 -> 0 | M24: 2.427357026 | N24: 2.427357026
E25: 2020-04-27 | F25: =InpC!$F$28 -> 4 | G25: 2021 | H25: 2.286775272 | I25: 2.582677079 | J25: 2.434726175 | K25: =InpC!$F$55*100 -> 0 | L25: =InpC!$F$64*100 -> 0 | M25: 2.434726175 | N25: 2.434726175
E26: 2020-04-28 | F26: =InpC!$F$28 -> 4 | G26: 2021 | H26: 2.272832876 | I26: 2.560935061 | J26: 2.416883968 | K26: =InpC!$F$55*100 -> 0 | L26: =InpC!$F$64*100 -> 0 | M26: 2.416883968 | N26: 2.416883968
E27: 2020-04-29 | F27: =InpC!$F$28 -> 4 | G27: 2021 | H27: 2.254897342 | I27: 2.540491596 | J27: 2.397694469 | K27: =InpC!$F$55*100 -> 0 | L27: =InpC!$F$64*100 -> 0 | M27: 2.397694469 | N27: 2.397694469
E28: 2020-04-30 | F28: =InpC!$F$28 -> 4 | G28: 2021 | H28: 2.205026442 | I28: 2.485728673 | J28: 2.345377558 | K28: =InpC!$F$55*100 -> 0 | L28: =InpC!$F$64*100 -> 0 | M28: 2.345377558 | N28: 2.345377558
E29: 2020-05-01 | F29: =InpC!$F$28 -> 4 | G29: 2021 | H29: 2.172887326 | I29: 2.543444095 | J29: 2.358165711 | K29: =InpC!$F$55*100 -> 0 | L29: =InpC!$F$64*100 -> 0 | M29: 2.358165711 | N29: 2.358165711
E30: 2020-05-04 | F30: =InpC!$F$28 -> 4 | G30: 2021 | H30: 2.174941189 | I30: 2.527869947 | J30: 2.351405568 | K30: =InpC!$F$55*100 -> 0 | L30: =InpC!$F$64*100 -> 0 | M30: 2.351405568 | N30: 2.351405568
E31: 2020-05-05 | F31: =InpC!$F$28 -> 4 | G31: 2021 | H31: 2.164535924 | I31: 2.517751692 | J31: 2.341143808 | K31: =InpC!$F$55*100 -> 0 | L31: =InpC!$F$64*100 -> 0 | M31: 2.341143808 | N31: 2.341143808
E32: 2020-05-06 | F32: =InpC!$F$28 -> 4 | G32: 2021 | H32: 2.203606763 | I32: 2.553791017 | J32: 2.37869889 | K32: =InpC!$F$55*100 -> 0 | L32: =InpC!$F$64*100 -> 0 | M32: 2.37869889 | N32: 2.37869889
E33: 2020-05-07 | F33: =InpC!$F$28 -> 4 | G33: 2021 | H33: 2.217935315 | I33: 2.580304092 | J33: 2.399119704 | K33: =InpC!$F$55*100 -> 0 | L33: =InpC!$F$64*100 -> 0 | M33: 2.399119704 | N33: 2.399119704
E34: 2020-05-08 | F34: =InpC!$F$28 -> 4 | G34: 2021 | K34: =InpC!$F$55*100 -> 0 | L34: =InpC!$F$64*100 -> 0
E35: 2020-05-11 | F35: =InpC!$F$28 -> 4 | G35: 2021 | H35: 2.248191686 | I35: 2.616393434 | J35: 2.43229256 | K35: =InpC!$F$55*100 -> 0 | L35: =InpC!$F$64*100 -> 0 | M35: 2.43229256 | N35: 2.43229256
E36: 2020-05-12 | F36: =InpC!$F$28 -> 4 | G36: 2021 | H36: 2.26168896 | I36: 2.636162638 | J36: 2.448925799 | K36: =InpC!$F$55*100 -> 0 | L36: =InpC!$F$64*100 -> 0 | M36: 2.448925799 | N36: 2.448925799
E37: 2020-05-13 | F37: =InpC!$F$28 -> 4 | G37: 2021 | H37: 2.269477217 | I37: 2.650011854 | J37: 2.459744536 | K37: =InpC!$F$55*100 -> 0 | L37: =InpC!$F$64*100 -> 0 | M37: 2.459744536 | N37: 2.459744536
E38: 2020-05-14 | F38: =InpC!$F$28 -> 4 | G38: 2021 | H38: 2.298545623 | I38: 2.683110969 | J38: 2.490828296 | K38: =InpC!$F$55*100 -> 0 | L38: =InpC!$F$64*100 -> 0 | M38: 2.490828296 | N38: 2.490828296
E39: 2020-05-15 | F39: =InpC!$F$28 -> 4 | G39: 2021 | H39: 2.311834979 | I39: 2.699719999 | J39: 2.505777489 | K39: =InpC!$F$55*100 -> 0 | L39: =InpC!$F$64*100 -> 0 | M39: 2.505777489 | N39: 2.505777489
E40: 2020-05-18 | F40: =InpC!$F$28 -> 4 | G40: 2021 | H40: 2.343609159 | I40: 2.732914542 | J40: 2.53826185 | K40: =InpC!$F$55*100 -> 0 | L40: =InpC!$F$64*100 -> 0 | M40: 2.53826185 | N40: 2.53826185
E41: 2020-05-19 | F41: =InpC!$F$28 -> 4 | G41: 2021 | H41: 2.310581725 | I41: 2.705799082 | J41: 2.508190403 | K41: =InpC!$F$55*100 -> 0 | L41: =InpC!$F$64*100 -> 0 | M41: 2.508190403 | N41: 2.508190403
E42: 2020-05-20 | F42: =InpC!$F$28 -> 4 | G42: 2021 | H42: 2.282605577 | I42: 2.680596223 | J42: 2.4816009 | K42: =InpC!$F$55*100 -> 0 | L42: =InpC!$F$64*100 -> 0 | M42: 2.4816009 | N42: 2.4816009
E43: 2020-05-21 | F43: =InpC!$F$28 -> 4 | G43: 2021 | H43: 2.214569884 | I43: 2.610525191 | J43: 2.412547537 | K43: =InpC!$F$55*100 -> 0 | L43: =InpC!$F$64*100 -> 0 | M43: 2.412547537 | N43: 2.412547537
E44: 2020-05-22 | F44: =InpC!$F$28 -> 4 | G44: 2021 | H44: 2.217595106 | I44: 2.607075513 | J44: 2.412335309 | K44: =InpC!$F$55*100 -> 0 | L44: =InpC!$F$64*100 -> 0 | M44: 2.412335309 | N44: 2.412335309
E45: 2020-05-25 | F45: =InpC!$F$28 -> 4 | G45: 2021 | K45: =InpC!$F$55*100 -> 0 | L45: =InpC!$F$64*100 -> 0
E46: 2020-05-26 | F46: =InpC!$F$28 -> 4 | G46: 2021 | H46: 2.232667648 | I46: 2.620438873 | J46: 2.426553261 | K46: =InpC!$F$55*100 -> 0 | L46: =InpC!$F$64*100 -> 0 | M46: 2.426553261 | N46: 2.426553261
E47: 2020-05-27 | F47: =InpC!$F$28 -> 4 | G47: 2021 | H47: 2.182035211 | I47: 2.553829334 | J47: 2.367932273 | K47: =InpC!$F$55*100 -> 0 | L47: =InpC!$F$64*100 -> 0 | M47: 2.367932273 | N47: 2.367932273
E48: 2020-05-28 | F48: =InpC!$F$28 -> 4 | G48: 2021 | H48: 2.159722067 | I48: 2.533493821 | J48: 2.346607944 | K48: =InpC!$F$55*100 -> 0 | L48: =InpC!$F$64*100 -> 0 | M48: 2.346607944 | N48: 2.346607944
E49: 2020-05-29 | F49: =InpC!$F$28 -> 4 | G49: 2021 | H49: 2.12402733 | I49: 2.497666396 | J49: 2.310846863 | K49: =InpC!$F$55*100 -> 0 | L49: =InpC!$F$64*100 -> 0 | M49: 2.310846863 | N49: 2.310846863
E50: 2020-06-01 | F50: =InpC!$F$28 -> 4 | G50: 2021 | H50: 2.135561713 | I50: 2.525588078 | J50: 2.330574896 | K50: =InpC!$F$55*100 -> 0 | L50: =InpC!$F$64*100 -> 0 | M50: 2.330574896 | N50: 2.330574896
E51: 2020-06-02 | F51: =InpC!$F$28 -> 4 | G51: 2021 | H51: 2.129516141 | I51: 2.517969708 | J51: 2.323742925 | K51: =InpC!$F$55*100 -> 0 | L51: =InpC!$F$64*100 -> 0 | M51: 2.323742925 | N51: 2.323742925
E52: 2020-06-03 | F52: =InpC!$F$28 -> 4 | G52: 2021 | H52: 2.155044728 | I52: 2.540959914 | J52: 2.348002321 | K52: =InpC!$F$55*100 -> 0 | L52: =InpC!$F$64*100 -> 0 | M52: 2.348002321 | N52: 2.348002321
E53: 2020-06-04 | F53: =InpC!$F$28 -> 4 | G53: =YEAR(E53) + IF(MONTH(E53) >= F53, 1, 0) -> 2021 | H53: 2.136785791 | I53: 2.520285168 | J53: =IFERROR(AVERAGE(H53:I53),"") -> 2.328535479 | K53: =InpC!$F$55*100 -> 0 | L53: =InpC!$F$64*100 -> 0 | M53: =IFERROR(J53 - K53,"") -> 2.328535479 | N53: =IFERROR(J53-K53+L53,"") -> 2.328535479
E54: =WORKDAY(E53,1,) -> 2020-06-05 | F54: =InpC!$F$28 -> 4 | G54: 2021 | H54: 2.146773865 | I54: 2.513745372 | J54: 2.330259618 | K54: =InpC!$F$55*100 -> 0 | L54: =InpC!$F$64*100 -> 0 | M54: 2.330259618 | N54: 2.330259618
E55: 2020-06-08 | F55: =InpC!$F$28 -> 4 | G55: 2021 | H55: 2.113146428 | I55: 2.476692681 | J55: 2.294919554 | K55: =InpC!$F$55*100 -> 0 | L55: =InpC!$F$64*100 -> 0 | M55: 2.294919554 | N55: 2.294919554
E56: 2020-06-09 | F56: =InpC!$F$28 -> 4 | G56: 2021 | H56: 2.073808327 | I56: 2.438866429 | J56: 2.256337378 | K56: =InpC!$F$55*100 -> 0 | L56: =InpC!$F$64*100 -> 0 | M56: 2.256337378 | N56: 2.256337378
E57: 2020-06-10 | F57: =InpC!$F$28 -> 4 | G57: 2021 | H57: 2.030134181 | I57: 2.391090315 | J57: 2.210612248 | K57: =InpC!$F$55*100 -> 0 | L57: =InpC!$F$64*100 -> 0 | M57: 2.210612248 | N57: 2.210612248
E58: 2020-06-11 | F58: =InpC!$F$28 -> 4 | G58: 2021 | H58: 2.006467815 | I58: 2.349563684 | J58: 2.178015749 | K58: =InpC!$F$55*100 -> 0 | L58: =InpC!$F$64*100 -> 0 | M58: 2.178015749 | N58: 2.178015749
E59: 2020-06-12 | F59: =InpC!$F$28 -> 4 | G59: 2021 | H59: 2.046768451 | I59: 2.384930854 | J59: 2.215849653 | K59: =InpC!$F$55*100 -> 0 | L59: =InpC!$F$64*100 -> 0 | M59: 2.215849653 | N59: 2.215849653
E60: 2020-06-15 | F60: =InpC!$F$28 -> 4 | G60: 2021 | H60: 2.053567889 | I60: 2.393010947 | J60: 2.223289418 | K60: =InpC!$F$55*100 -> 0 | L60: =InpC!$F$64*100 -> 0 | M60: 2.223289418 | N60: 2.223289418
E61: 2020-06-16 | F61: =InpC!$F$28 -> 4 | G61: 2021 | H61: 2.010106311 | I61: 2.347369158 | J61: 2.178737735 | K61: =InpC!$F$55*100 -> 0 | L61: =InpC!$F$64*100 -> 0 | M61: 2.178737735 | N61: 2.178737735
E62: 2020-06-17 | F62: =InpC!$F$28 -> 4 | G62: 2021 | H62: 1.969875157 | I62: 2.299689861 | J62: 2.134782509 | K62: =InpC!$F$55*100 -> 0 | L62: =InpC!$F$64*100 -> 0 | M62: 2.134782509 | N62: 2.134782509
E63: 2020-06-18 | F63: =InpC!$F$28 -> 4 | G63: 2021 | H63: 2.052092247 | I63: 2.378022644 | J63: 2.215057446 | K63: =InpC!$F$55*100 -> 0 | L63: =InpC!$F$64*100 -> 0 | M63: 2.215057446 | N63: 2.215057446
E64: 2020-06-19 | F64: =InpC!$F$28 -> 4 | G64: 2021 | H64: 2.078867708 | I64: 2.404449769 | J64: 2.241658739 | K64: =InpC!$F$55*100 -> 0 | L64: =InpC!$F$64*100 -> 0 | M64: 2.241658739 | N64: 2.241658739
E65: 2020-06-22 | F65: =InpC!$F$28 -> 4 | G65: 2021 | H65: 2.068532587 | I65: 2.373692117 | J65: 2.221112352 | K65: =InpC!$F$55*100 -> 0 | L65: =InpC!$F$64*100 -> 0 | M65: 2.221112352 | N65: 2.221112352
E66: 2020-06-23 | F66: =InpC!$F$28 -> 4 | G66: 2021 | H66: 2.064827732 | I66: 2.378093736 | J66: 2.221460734 | K66: =InpC!$F$55*100 -> 0 | L66: =InpC!$F$64*100 -> 0 | M66: 2.221460734 | N66: 2.221460734
E67: 2020-06-24 | F67: =InpC!$F$28 -> 4 | G67: 2021 | H67: 2.029918362 | I67: 2.347941199 | J67: 2.188929781 | K67: =InpC!$F$55*100 -> 0 | L67: =InpC!$F$64*100 -> 0 | M67: 2.188929781 | N67: 2.188929781
E68: 2020-06-25 | F68: =InpC!$F$28 -> 4 | G68: 2021 | H68: 1.98565146 | I68: 2.299455097 | J68: 2.142553278 | K68: =InpC!$F$55*100 -> 0 | L68: =InpC!$F$64*100 -> 0 | M68: 2.142553278 | N68: 2.142553278
E69: 2020-06-26 | F69: =InpC!$F$28 -> 4 | G69: 2021 | H69: 2.011151685 | I69: 2.32477279 | J69: 2.167962238 | K69: =InpC!$F$55*100 -> 0 | L69: =InpC!$F$64*100 -> 0 | M69: 2.167962238 | N69: 2.167962238
E70: 2020-06-29 | F70: =InpC!$F$28 -> 4 | G70: 2021 | H70: 2.004642784 | I70: 2.318152346 | J70: 2.161397565 | K70: =InpC!$F$55*100 -> 0 | L70: =InpC!$F$64*100 -> 0 | M70: 2.161397565 | N70: 2.161397565
E71: 2020-06-30 | F71: =InpC!$F$28 -> 4 | G71: 2021 | H71: 2.020661477 | I71: 2.334750215 | J71: 2.177705846 | K71: =InpC!$F$55*100 -> 0 | L71: =InpC!$F$64*100 -> 0 | M71: 2.177705846 | N71: 2.177705846
E72: 2020-07-01 | F72: =InpC!$F$28 -> 4 | G72: 2021 | H72: 2.055495163 | I72: 2.358746941 | J72: 2.207121052 | K72: =InpC!$F$55*100 -> 0 | L72: =InpC!$F$64*100 -> 0 | M72: 2.207121052 | N72: 2.207121052
E73: 2020-07-02 | F73: =InpC!$F$28 -> 4 | G73: 2021 | H73: 2.01457861 | I73: 2.318668215 | J73: 2.166623412 | K73: =InpC!$F$55*100 -> 0 | L73: =InpC!$F$64*100 -> 0 | M73: 2.166623412 | N73: 2.166623412
E74: 2020-07-03 | F74: =InpC!$F$28 -> 4 | G74: 2021 | H74: 2.003816771 | I74: 2.305721715 | J74: 2.154769243 | K74: =InpC!$F$55*100 -> 0 | L74: =InpC!$F$64*100 -> 0 | M74: 2.154769243 | N74: 2.154769243
E75: 2020-07-06 | F75: =InpC!$F$28 -> 4 | G75: 2021 | H75: 1.982936697 | I75: 2.28042732 | J75: 2.131682009 | K75: =InpC!$F$55*100 -> 0 | L75: =InpC!$F$64*100 -> 0 | M75: 2.131682009 | N75: 2.131682009
E76: 2020-07-07 | F76: =InpC!$F$28 -> 4 | G76: 2021 | H76: 1.960390435 | I76: 2.256093152 | J76: 2.108241794 | K76: =InpC!$F$55*100 -> 0 | L76: =InpC!$F$64*100 -> 0 | M76: 2.108241794 | N76: 2.108241794
E77: 2020-07-08 | F77: =InpC!$F$28 -> 4 | G77: 2021 | H77: 1.969052572 | I77: 2.261671046 | J77: 2.115361809 | K77: =InpC!$F$55*100 -> 0 | L77: =InpC!$F$64*100 -> 0 | M77: 2.115361809 | N77: 2.115361809
E78: 2020-07-09 | F78: =InpC!$F$28 -> 4 | G78: 2021 | H78: 1.953897767 | I78: 2.245256872 | J78: 2.09957732 | K78: =InpC!$F$55*100 -> 0 | L78: =InpC!$F$64*100 -> 0 | M78: 2.09957732 | N78: 2.09957732
E79: 2020-07-10 | F79: =InpC!$F$28 -> 4 | G79: 2021 | H79: 1.943333293 | I79: 2.240008238 | J79: 2.091670765 | K79: =InpC!$F$55*100 -> 0 | L79: =InpC!$F$64*100 -> 0 | M79: 2.091670765 | N79: 2.091670765
E80: 2020-07-13 | F80: =InpC!$F$28 -> 4 | G80: 2021 | H80: 1.974458955 | I80: 2.269855272 | J80: 2.122157114 | K80: =InpC!$F$55*100 -> 0 | L80: =InpC!$F$64*100 -> 0 | M80: 2.122157114 | N80: 2.122157114
E81: 2020-07-14 | F81: =InpC!$F$28 -> 4 | G81: 2021 | H81: 1.943351771 | I81: 2.23488348 | J81: 2.089117626 | K81: =InpC!$F$55*100 -> 0 | L81: =InpC!$F$64*100 -> 0 | M81: 2.089117626 | N81: 2.089117626
E82: 2020-07-15 | F82: =InpC!$F$28 -> 4 | G82: 2021 | H82: 1.981628055 | I82: 2.266480732 | J82: 2.124054393 | K82: =InpC!$F$55*100 -> 0 | L82: =InpC!$F$64*100 -> 0 | M82: 2.124054393 | N82: 2.124054393
E83: 2020-07-16 | F83: =InpC!$F$28 -> 4 | G83: 2021 | H83: 1.9487633 | I83: 2.227116273 | J83: 2.087939787 | K83: =InpC!$F$55*100 -> 0 | L83: =InpC!$F$64*100 -> 0 | M83: 2.087939787 | N83: 2.087939787
E84: 2020-07-17 | F84: =InpC!$F$28 -> 4 | G84: 2021 | H84: 1.956383515 | I84: 2.239063864 | J84: 2.097723689 | K84: =InpC!$F$55*100 -> 0 | L84: =InpC!$F$64*100 -> 0 | M84: 2.097723689 | N84: 2.097723689
E85: 2020-07-20 | F85: =InpC!$F$28 -> 4 | G85: 2021 | H85: 1.936914354 | I85: 2.214570456 | J85: 2.075742405 | K85: =InpC!$F$55*100 -> 0 | L85: =InpC!$F$64*100 -> 0 | M85: 2.075742405 | N85: 2.075742405
E86: 2020-07-21 | F86: =InpC!$F$28 -> 4 | G86: 2021 | H86: 1.921417439 | I86: 2.191600422 | J86: 2.05650893 | K86: =InpC!$F$55*100 -> 0 | L86: =InpC!$F$64*100 -> 0 | M86: 2.05650893 | N86: 2.05650893
E87: 2020-07-22 | F87: =InpC!$F$28 -> 4 | G87: 2021 | H87: 1.888556926 | I87: 2.160973079 | J87: 2.024765003 | K87: =InpC!$F$55*100 -> 0 | L87: =InpC!$F$64*100 -> 0 | M87: 2.024765003 | N87: 2.024765003
E88: 2020-07-23 | F88: =InpC!$F$28 -> 4 | G88: 2021 | H88: 1.879881894 | I88: 2.151080403 | J88: 2.015481148 | K88: =InpC!$F$55*100 -> 0 | L88: =InpC!$F$64*100 -> 0 | M88: 2.015481148 | N88: 2.015481148
E89: 2020-07-24 | F89: =InpC!$F$28 -> 4 | G89: 2021 | H89: 1.909910242 | I89: 2.173513743 | J89: 2.041711993 | K89: =InpC!$F$55*100 -> 0 | L89: =InpC!$F$64*100 -> 0 | M89: 2.041711993 | N89: 2.041711993
E90: 2020-07-27 | F90: =InpC!$F$28 -> 4 | G90: 2021 | H90: 1.877552047 | I90: 2.139652669 | J90: 2.008602358 | K90: =InpC!$F$55*100 -> 0 | L90: =InpC!$F$64*100 -> 0 | M90: 2.008602358 | N90: 2.008602358
E91: 2020-07-28 | F91: =InpC!$F$28 -> 4 | G91: 2021 | H91: 1.869357576 | I91: 2.134494564 | J91: 2.00192607 | K91: =InpC!$F$55*100 -> 0 | L91: =InpC!$F$64*100 -> 0 | M91: 2.00192607 | N91: 2.00192607
E92: 2020-07-29 | F92: =InpC!$F$28 -> 4 | G92: 2021 | H92: 1.884743085 | I92: 2.148482876 | J92: 2.016612981 | K92: =InpC!$F$55*100 -> 0 | L92: =InpC!$F$64*100 -> 0 | M92: 2.016612981 | N92: 2.016612981
E93: 2020-07-30 | F93: =InpC!$F$28 -> 4 | G93: 2021 | H93: 1.853338233 | I93: 2.115169517 | J93: 1.984253875 | K93: =InpC!$F$55*100 -> 0 | L93: =InpC!$F$64*100 -> 0 | M93: 1.984253875 | N93: 1.984253875
E94: 2020-07-31 | F94: =InpC!$F$28 -> 4 | G94: 2021 | H94: 1.862828505 | I94: 2.123311067 | J94: 1.993069786 | K94: =InpC!$F$55*100 -> 0 | L94: =InpC!$F$64*100 -> 0 | M94: 1.993069786 | N94: 1.993069786
E95: 2020-08-03 | F95: =InpC!$F$28 -> 4 | G95: 2021 | H95: 1.825897299 | I95: 2.136562071 | J95: 1.981229685 | K95: =InpC!$F$55*100 -> 0 | L95: =InpC!$F$64*100 -> 0 | M95: 1.981229685 | N95: 1.981229685
E96: 2020-08-04 | F96: =InpC!$F$28 -> 4 | G96: 2021 | H96: 1.800117801 | I96: 2.110687223 | J96: 1.955402512 | K96: =InpC!$F$55*100 -> 0 | L96: =InpC!$F$64*100 -> 0 | M96: 1.955402512 | N96: 1.955402512
E97: 2020-08-05 | F97: =InpC!$F$28 -> 4 | G97: 2021 | H97: 1.850481838 | I97: 2.161562525 | J97: 2.006022182 | K97: =InpC!$F$55*100 -> 0 | L97: =InpC!$F$64*100 -> 0 | M97: 2.006022182 | N97: 2.006022182
E98: 2020-08-06 | F98: =InpC!$F$28 -> 4 | G98: 2021 | H98: 1.809728075 | I98: 2.123255788 | J98: 1.966491931 | K98: =InpC!$F$55*100 -> 0 | L98: =InpC!$F$64*100 -> 0 | M98: 1.966491931 | N98: 1.966491931
E99: 2020-08-07 | F99: =InpC!$F$28 -> 4 | G99: 2021 | H99: 1.855331983 | I99: 2.167268161 | J99: 2.011300072 | K99: =InpC!$F$55*100 -> 0 | L99: =InpC!$F$64*100 -> 0 | M99: 2.011300072 | N99: 2.011300072
E100: 2020-08-10 | F100: =InpC!$F$28 -> 4 | G100: 2021 | H100: 1.851650234 | I100: 2.158889268 | J100: 2.005269751 | K100: =InpC!$F$55*100 -> 0 | L100: =InpC!$F$64*100 -> 0 | M100: 2.005269751 | N100: 2.005269751
E101: 2020-08-11 | F101: =InpC!$F$28 -> 4 | G101: 2021 | H101: 1.906677142 | I101: 2.213233302 | J101: 2.059955222 | K101: =InpC!$F$55*100 -> 0 | L101: =InpC!$F$64*100 -> 0 | M101: 2.059955222 | N101: 2.059955222
E102: 2020-08-12 | F102: =InpC!$F$28 -> 4 | G102: 2021 | H102: 1.943820051 | I102: 2.251998999 | J102: 2.097909525 | K102: =InpC!$F$55*100 -> 0 | L102: =InpC!$F$64*100 -> 0 | M102: 2.097909525 | N102: 2.097909525
E103: 2020-08-13 | F103: =InpC!$F$28 -> 4 | G103: 2021 | H103: 1.9524443 | I103: 2.257700721 | J103: 2.105072511 | K103: =InpC!$F$55*100 -> 0 | L103: =InpC!$F$64*100 -> 0 | M103: 2.105072511 | N103: 2.105072511
E104: 2020-08-14 | F104: =InpC!$F$28 -> 4 | G104: 2021 | H104: 1.963734957 | I104: 2.27093699 | J104: 2.117335973 | K104: =InpC!$F$55*100 -> 0 | L104: =InpC!$F$64*100 -> 0 | M104: 2.117335973 | N104: 2.117335973
E105: 2020-08-17 | F105: =InpC!$F$28 -> 4 | G105: 2021 | H105: 1.933669247 | I105: 2.243990832 | J105: 2.088830039 | K105: =InpC!$F$55*100 -> 0 | L105: =InpC!$F$64*100 -> 0 | M105: 2.088830039 | N105: 2.088830039
E106: 2020-08-18 | F106: =InpC!$F$28 -> 4 | G106: 2021 | H106: 1.931111017 | I106: 2.243214144 | J106: 2.087162581 | K106: =InpC!$F$55*100 -> 0 | L106: =InpC!$F$64*100 -> 0 | M106: 2.087162581 | N106: 2.087162581
E107: 2020-08-19 | F107: =InpC!$F$28 -> 4 | G107: 2021 | H107: 1.94764055 | I107: 2.258723622 | J107: 2.103182086 | K107: =InpC!$F$55*100 -> 0 | L107: =InpC!$F$64*100 -> 0 | M107: 2.103182086 | N107: 2.103182086
E108: 2020-08-20 | F108: =InpC!$F$28 -> 4 | G108: 2021 | H108: 1.948155716 | I108: 2.260333279 | J108: 2.104244498 | K108: =InpC!$F$55*100 -> 0 | L108: =InpC!$F$64*100 -> 0 | M108: 2.104244498 | N108: 2.104244498
E109: 2020-08-21 | F109: =InpC!$F$28 -> 4 | G109: 2021 | H109: 1.939304149 | I109: 2.248779786 | J109: 2.094041967 | K109: =InpC!$F$55*100 -> 0 | L109: =InpC!$F$64*100 -> 0 | M109: 2.094041967 | N109: 2.094041967
E110: 2020-08-24 | F110: =InpC!$F$28 -> 4 | G110: 2021 | H110: 1.923648552 | I110: 2.237822305 | J110: 2.080735428 | K110: =InpC!$F$55*100 -> 0 | L110: =InpC!$F$64*100 -> 0 | M110: 2.080735428 | N110: 2.080735428
E111: 2020-08-25 | F111: =InpC!$F$28 -> 4 | G111: 2021 | H111: 1.982642449 | I111: 2.299635698 | J111: 2.141139073 | K111: =InpC!$F$55*100 -> 0 | L111: =InpC!$F$64*100 -> 0 | M111: 2.141139073 | N111: 2.141139073
E112: 2020-08-26 | F112: =InpC!$F$28 -> 4 | G112: 2021 | H112: 2.020496667 | I112: 2.33589583 | J112: 2.178196249 | K112: =InpC!$F$55*100 -> 0 | L112: =InpC!$F$64*100 -> 0 | M112: 2.178196249 | N112: 2.178196249
E113: 2020-08-27 | F113: =InpC!$F$28 -> 4 | G113: 2021 | H113: 2.057172701 | I113: 2.37509412 | J113: 2.216133411 | K113: =InpC!$F$55*100 -> 0 | L113: =InpC!$F$64*100 -> 0 | M113: 2.216133411 | N113: 2.216133411
E114: 2020-08-28 | F114: =InpC!$F$28 -> 4 | G114: 2021 | H114: 2.020094163 | I114: 2.338161607 | J114: 2.179127885 | K114: =InpC!$F$55*100 -> 0 | L114: =InpC!$F$64*100 -> 0 | M114: 2.179127885 | N114: 2.179127885
E115: 2020-08-31 | F115: =InpC!$F$28 -> 4 | G115: 2021 | H115: 2.019548131 | I115: 2.337447533 | J115: 2.178497832 | K115: =InpC!$F$55*100 -> 0 | L115: =InpC!$F$64*100 -> 0 | M115: 2.178497832 | N115: 2.178497832
E116: 2020-09-01 | F116: =InpC!$F$28 -> 4 | G116: 2021 | H116: 2.011026307 | I116: 2.332818791 | J116: 2.171922549 | K116: =InpC!$F$55*100 -> 0 | L116: =InpC!$F$64*100 -> 0 | M116: 2.171922549 | N116: 2.171922549
E117: 2020-09-02 | F117: =InpC!$F$28 -> 4 | G117: =YEAR(E117) + IF(MONTH(E117) >= F117, 1, 0) -> 2021 | H117: 1.945530184 | I117: 2.264555459 | J117: =IFERROR(AVERAGE(H117:I117),"") -> 2.105042822 | K117: =InpC!$F$55*100 -> 0 | L117: =InpC!$F$64*100 -> 0 | M117: =IFERROR(J117 - K117,"") -> 2.105042822 | N117: =IFERROR(J117-K117+L117,"") -> 2.105042822
E118: =WORKDAY(E117,1,) -> 2020-09-03 | F118: =InpC!$F$28 -> 4 | G118: 2021 | H118: 1.923200202 | I118: 2.242473935 | J118: 2.082837068 | K118: =InpC!$F$55*100 -> 0 | L118: =InpC!$F$64*100 -> 0 | M118: 2.082837068 | N118: 2.082837068
E119: 2020-09-04 | F119: =InpC!$F$28 -> 4 | G119: 2021 | H119: 1.945180841 | I119: 2.270290393 | J119: 2.107735617 | K119: =InpC!$F$55*100 -> 0 | L119: =InpC!$F$64*100 -> 0 | M119: 2.107735617 | N119: 2.107735617
E120: 2020-09-07 | F120: =InpC!$F$28 -> 4 | G120: 2021 | H120: 1.941094418 | I120: 2.267399319 | J120: 2.104246868 | K120: =InpC!$F$55*100 -> 0 | L120: =InpC!$F$64*100 -> 0 | M120: 2.104246868 | N120: 2.104246868
E121: 2020-09-08 | F121: =InpC!$F$28 -> 4 | G121: 2021 | H121: 1.864277735 | I121: 2.192581863 | J121: 2.028429799 | K121: =InpC!$F$55*100 -> 0 | L121: =InpC!$F$64*100 -> 0 | M121: 2.028429799 | N121: 2.028429799
E122: 2020-09-09 | F122: =InpC!$F$28 -> 4 | G122: 2021 | H122: 1.927635492 | I122: 2.261414265 | J122: 2.094524879 | K122: =InpC!$F$55*100 -> 0 | L122: =InpC!$F$64*100 -> 0 | M122: 2.094524879 | N122: 2.094524879
E123: 2020-09-10 | F123: =InpC!$F$28 -> 4 | G123: 2021 | H123: 1.943918784 | I123: 2.278321623 | J123: 2.111120203 | K123: =InpC!$F$55*100 -> 0 | L123: =InpC!$F$64*100 -> 0 | M123: 2.111120203 | N123: 2.111120203
E124: 2020-09-11 | F124: =InpC!$F$28 -> 4 | G124: 2021 | H124: 1.886546378 | I124: 2.221023351 | J124: 2.053784865 | K124: =InpC!$F$55*100 -> 0 | L124: =InpC!$F$64*100 -> 0 | M124: 2.053784865 | N124: 2.053784865
E125: 2020-09-14 | F125: =InpC!$F$28 -> 4 | G125: 2021 | H125: 1.896754899 | I125: 2.234287305 | J125: 2.065521102 | K125: =InpC!$F$55*100 -> 0 | L125: =InpC!$F$64*100 -> 0 | M125: 2.065521102 | N125: 2.065521102
E126: 2020-09-15 | F126: =InpC!$F$28 -> 4 | G126: 2021 | H126: 1.90771407 | I126: 2.252063252 | J126: 2.079888661 | K126: =InpC!$F$55*100 -> 0 | L126: =InpC!$F$64*100 -> 0 | M126: 2.079888661 | N126: 2.079888661
E127: 2020-09-16 | F127: =InpC!$F$28 -> 4 | G127: 2021 | H127: 1.902020199 | I127: 2.246410162 | J127: 2.07421518 | K127: =InpC!$F$55*100 -> 0 | L127: =InpC!$F$64*100 -> 0 | M127: 2.07421518 | N127: 2.07421518
E128: 2020-09-17 | F128: =InpC!$F$28 -> 4 | G128: 2021 | H128: 1.879536925 | I128: 2.221776267 | J128: 2.050656596 | K128: =InpC!$F$55*100 -> 0 | L128: =InpC!$F$64*100 -> 0 | M128: 2.050656596 | N128: 2.050656596
E129: 2020-09-18 | F129: =InpC!$F$28 -> 4 | G129: 2021 | H129: 1.878865418 | I129: 2.22116301 | J129: 2.050014214 | K129: =InpC!$F$55*100 -> 0 | L129: =InpC!$F$64*100 -> 0 | M129: 2.050014214 | N129: 2.050014214
E130: 2020-09-21 | F130: =InpC!$F$28 -> 4 | G130: 2021 | H130: 1.861439438 | I130: 2.208459324 | J130: 2.034949381 | K130: =InpC!$F$55*100 -> 0 | L130: =InpC!$F$64*100 -> 0 | M130: 2.034949381 | N130: 2.034949381
E131: 2020-09-22 | F131: =InpC!$F$28 -> 4 | G131: 2021 | H131: 1.906167528 | I131: 2.262423887 | J131: 2.084295707 | K131: =InpC!$F$55*100 -> 0 | L131: =InpC!$F$64*100 -> 0 | M131: 2.084295707 | N131: 2.084295707
E132: 2020-09-23 | F132: =InpC!$F$28 -> 4 | G132: 2021 | H132: 1.936413525 | I132: 2.296277743 | J132: 2.116345634 | K132: =InpC!$F$55*100 -> 0 | L132: =InpC!$F$64*100 -> 0 | M132: 2.116345634 | N132: 2.116345634
E133: 2020-09-24 | F133: =InpC!$F$28 -> 4 | G133: 2021 | H133: 1.939965926 | I133: 2.312798325 | J133: 2.126382126 | K133: =InpC!$F$55*100 -> 0 | L133: =InpC!$F$64*100 -> 0 | M133: 2.126382126 | N133: 2.126382126
E134: 2020-09-25 | F134: =InpC!$F$28 -> 4 | G134: 2021 | H134: 1.920185949 | I134: 2.300067071 | J134: 2.11012651 | K134: =InpC!$F$55*100 -> 0 | L134: =InpC!$F$64*100 -> 0 | M134: 2.11012651 | N134: 2.11012651
E135: 2020-09-28 | F135: =InpC!$F$28 -> 4 | G135: 2021 | H135: 1.937925158 | I135: 2.323629721 | J135: 2.130777439 | K135: =InpC!$F$55*100 -> 0 | L135: =InpC!$F$64*100 -> 0 | M135: 2.130777439 | N135: 2.130777439
E136: 2020-09-29 | F136: =InpC!$F$28 -> 4 | G136: 2021 | H136: 1.915105527 | I136: 2.301378212 | J136: 2.108241869 | K136: =InpC!$F$55*100 -> 0 | L136: =InpC!$F$64*100 -> 0 | M136: 2.108241869 | N136: 2.108241869
E137: 2020-09-30 | F137: =InpC!$F$28 -> 4 | G137: 2021 | H137: 1.952292071 | I137: 2.339453801 | J137: 2.145872936 | K137: =InpC!$F$55*100 -> 0 | L137: =InpC!$F$64*100 -> 0 | M137: 2.145872936 | N137: 2.145872936
E138: 2020-10-01 | F138: =InpC!$F$28 -> 4 | G138: 2021 | H138: 1.965107696 | I138: 2.356356661 | J138: 2.160732179 | K138: =InpC!$F$55*100 -> 0 | L138: =InpC!$F$64*100 -> 0 | M138: 2.160732179 | N138: 2.160732179
E139: 2020-10-02 | F139: =InpC!$F$28 -> 4 | G139: 2021 | H139: 1.983742829 | I139: 2.374975495 | J139: 2.179359162 | K139: =InpC!$F$55*100 -> 0 | L139: =InpC!$F$64*100 -> 0 | M139: 2.179359162 | N139: 2.179359162
E140: 2020-10-05 | F140: =InpC!$F$28 -> 4 | G140: 2021 | H140: 2.016497506 | I140: 2.408102672 | J140: 2.212300089 | K140: =InpC!$F$55*100 -> 0 | L140: =InpC!$F$64*100 -> 0 | M140: 2.212300089 | N140: 2.212300089
E141: 2020-10-06 | F141: =InpC!$F$28 -> 4 | G141: 2021 | H141: 2.002946659 | I141: 2.392997904 | J141: 2.197972282 | K141: =InpC!$F$55*100 -> 0 | L141: =InpC!$F$64*100 -> 0 | M141: 2.197972282 | N141: 2.197972282
E142: 2020-10-07 | F142: =InpC!$F$28 -> 4 | G142: 2021 | H142: 2.010082416 | I142: 2.398221704 | J142: 2.20415206 | K142: =InpC!$F$55*100 -> 0 | L142: =InpC!$F$64*100 -> 0 | M142: 2.20415206 | N142: 2.20415206
E143: 2020-10-08 | F143: =InpC!$F$28 -> 4 | G143: 2021 | H143: 1.990214184 | I143: 2.375381855 | J143: 2.182798019 | K143: =InpC!$F$55*100 -> 0 | L143: =InpC!$F$64*100 -> 0 | M143: 2.182798019 | N143: 2.182798019
E144: 2020-10-09 | F144: =InpC!$F$28 -> 4 | G144: 2021 | H144: 1.972297809 | I144: 2.354280441 | J144: 2.163289125 | K144: =InpC!$F$55*100 -> 0 | L144: =InpC!$F$64*100 -> 0 | M144: 2.163289125 | N144: 2.163289125
E145: 2020-10-12 | F145: =InpC!$F$28 -> 4 | G145: 2021 | H145: 1.975405596 | I145: 2.358218497 | J145: 2.166812047 | K145: =InpC!$F$55*100 -> 0 | L145: =InpC!$F$64*100 -> 0 | M145: 2.166812047 | N145: 2.166812047
E146: 2020-10-13 | F146: =InpC!$F$28 -> 4 | G146: 2021 | H146: 1.925566808 | I146: 2.30535099 | J146: 2.115458899 | K146: =InpC!$F$55*100 -> 0 | L146: =InpC!$F$64*100 -> 0 | M146: 2.115458899 | N146: 2.115458899
E147: 2020-10-14 | F147: =InpC!$F$28 -> 4 | G147: 2021 | H147: 1.899296425 | I147: 2.280061614 | J147: 2.08967902 | K147: =InpC!$F$55*100 -> 0 | L147: =InpC!$F$64*100 -> 0 | M147: 2.08967902 | N147: 2.08967902
E148: 2020-10-15 | F148: =InpC!$F$28 -> 4 | G148: 2021 | H148: 1.858352785 | I148: 2.241975913 | J148: 2.050164349 | K148: =InpC!$F$55*100 -> 0 | L148: =InpC!$F$64*100 -> 0 | M148: 2.050164349 | N148: 2.050164349
E149: 2020-10-16 | F149: =InpC!$F$28 -> 4 | G149: 2021 | H149: 1.863155992 | I149: 2.244210383 | J149: 2.053683187 | K149: =InpC!$F$55*100 -> 0 | L149: =InpC!$F$64*100 -> 0 | M149: 2.053683187 | N149: 2.053683187
E150: 2020-10-19 | F150: =InpC!$F$28 -> 4 | G150: 2021 | H150: 1.85094915 | I150: 2.230637807 | J150: 2.040793478 | K150: =InpC!$F$55*100 -> 0 | L150: =InpC!$F$64*100 -> 0 | M150: 2.040793478 | N150: 2.040793478
E151: 2020-10-20 | F151: =InpC!$F$28 -> 4 | G151: 2021 | H151: 1.871375453 | I151: 2.249141929 | J151: 2.060258691 | K151: =InpC!$F$55*100 -> 0 | L151: =InpC!$F$64*100 -> 0 | M151: 2.060258691 | N151: 2.060258691
E152: 2020-10-21 | F152: =InpC!$F$28 -> 4 | G152: 2021 | H152: 1.909491699 | I152: 2.279548736 | J152: 2.094520217 | K152: =InpC!$F$55*100 -> 0 | L152: =InpC!$F$64*100 -> 0 | M152: 2.094520217 | N152: 2.094520217
E153: 2020-10-22 | F153: =InpC!$F$28 -> 4 | G153: 2021 | H153: 1.946823293 | I153: 2.318293173 | J153: 2.132558233 | K153: =InpC!$F$55*100 -> 0 | L153: =InpC!$F$64*100 -> 0 | M153: 2.132558233 | N153: 2.132558233
E154: 2020-10-23 | F154: =InpC!$F$28 -> 4 | G154: 2021 | H154: 1.938320839 | I154: 2.307224326 | J154: 2.122772582 | K154: =InpC!$F$55*100 -> 0 | L154: =InpC!$F$64*100 -> 0 | M154: 2.122772582 | N154: 2.122772582
E155: 2020-10-26 | F155: =InpC!$F$28 -> 4 | G155: 2021 | H155: 1.931270978 | I155: 2.29787129 | J155: 2.114571134 | K155: =InpC!$F$55*100 -> 0 | L155: =InpC!$F$64*100 -> 0 | M155: 2.114571134 | N155: 2.114571134
E156: 2020-10-27 | F156: =InpC!$F$28 -> 4 | G156: 2021 | H156: 1.873611005 | I156: 2.237813063 | J156: 2.055712034 | K156: =InpC!$F$55*100 -> 0 | L156: =InpC!$F$64*100 -> 0 | M156: 2.055712034 | N156: 2.055712034
E157: 2020-10-28 | F157: =InpC!$F$28 -> 4 | G157: 2021 | H157: 1.863166583 | I157: 2.23204735 | J157: 2.047606967 | K157: =InpC!$F$55*100 -> 0 | L157: =InpC!$F$64*100 -> 0 | M157: 2.047606967 | N157: 2.047606967
E158: 2020-10-29 | F158: =InpC!$F$28 -> 4 | G158: 2021 | H158: 1.893855892 | I158: 2.269023346 | J158: 2.081439619 | K158: =InpC!$F$55*100 -> 0 | L158: =InpC!$F$64*100 -> 0 | M158: 2.081439619 | N158: 2.081439619
E159: 2020-10-30 | F159: =InpC!$F$28 -> 4 | G159: 2021 | H159: 1.96317213 | I159: 2.33976031 | J159: 2.15146622 | K159: =InpC!$F$55*100 -> 0 | L159: =InpC!$F$64*100 -> 0 | M159: 2.15146622 | N159: 2.15146622
E160: 2020-11-02 | F160: =InpC!$F$28 -> 4 | G160: 2021 | H160: 1.918478891 | I160: 2.307857408 | J160: 2.11316815 | K160: =InpC!$F$55*100 -> 0 | L160: =InpC!$F$64*100 -> 0 | M160: 2.11316815 | N160: 2.11316815
E161: 2020-11-03 | F161: =InpC!$F$28 -> 4 | G161: 2021 | H161: 1.949276962 | I161: 2.341882993 | J161: 2.145579977 | K161: =InpC!$F$55*100 -> 0 | L161: =InpC!$F$64*100 -> 0 | M161: 2.145579977 | N161: 2.145579977
E162: 2020-11-04 | F162: =InpC!$F$28 -> 4 | G162: 2021 | H162: 1.86939128 | I162: 2.270040891 | J162: 2.069716085 | K162: =InpC!$F$55*100 -> 0 | L162: =InpC!$F$64*100 -> 0 | M162: 2.069716085 | N162: 2.069716085
E163: 2020-11-05 | F163: =InpC!$F$28 -> 4 | G163: 2021 | H163: 1.873975973 | I163: 2.264622652 | J163: 2.069299312 | K163: =InpC!$F$55*100 -> 0 | L163: =InpC!$F$64*100 -> 0 | M163: 2.069299312 | N163: 2.069299312
E164: 2020-11-06 | F164: =InpC!$F$28 -> 4 | G164: 2021 | H164: 1.925295778 | I164: 2.304070215 | J164: 2.114682997 | K164: =InpC!$F$55*100 -> 0 | L164: =InpC!$F$64*100 -> 0 | M164: 2.114682997 | N164: 2.114682997
E165: 2020-11-09 | F165: =InpC!$F$28 -> 4 | G165: 2021 | H165: 2.011641869 | I165: 2.35847734 | J165: 2.185059605 | K165: =InpC!$F$55*100 -> 0 | L165: =InpC!$F$64*100 -> 0 | M165: 2.185059605 | N165: 2.185059605
E166: 2020-11-10 | F166: =InpC!$F$28 -> 4 | G166: 2021 | H166: 2.020482884 | I166: 2.356014261 | J166: 2.188248573 | K166: =InpC!$F$55*100 -> 0 | L166: =InpC!$F$64*100 -> 0 | M166: 2.188248573 | N166: 2.188248573
E167: 2020-11-11 | F167: =InpC!$F$28 -> 4 | G167: 2021 | H167: 2.035222195 | I167: 2.366074846 | J167: 2.20064852 | K167: =InpC!$F$55*100 -> 0 | L167: =InpC!$F$64*100 -> 0 | M167: 2.20064852 | N167: 2.20064852
E168: 2020-11-12 | F168: =InpC!$F$28 -> 4 | G168: 2021 | H168: 1.967464212 | I168: 2.294941607 | J168: 2.131202909 | K168: =InpC!$F$55*100 -> 0 | L168: =InpC!$F$64*100 -> 0 | M168: 2.131202909 | N168: 2.131202909
E169: 2020-11-13 | F169: =InpC!$F$28 -> 4 | G169: 2021 | H169: 1.95224611 | I169: 2.273546153 | J169: 2.112896131 | K169: =InpC!$F$55*100 -> 0 | L169: =InpC!$F$64*100 -> 0 | M169: 2.112896131 | N169: 2.112896131
E170: 2020-11-16 | F170: =InpC!$F$28 -> 4 | G170: 2021 | H170: 1.959789654 | I170: 2.263001914 | J170: 2.111395784 | K170: =InpC!$F$55*100 -> 0 | L170: =InpC!$F$64*100 -> 0 | M170: 2.111395784 | N170: 2.111395784
E171: 2020-11-17 | F171: =InpC!$F$28 -> 4 | G171: 2021 | H171: 1.925208271 | I171: 2.216066177 | J171: 2.070637224 | K171: =InpC!$F$55*100 -> 0 | L171: =InpC!$F$64*100 -> 0 | M171: 2.070637224 | N171: 2.070637224
E172: 2020-11-18 | F172: =InpC!$F$28 -> 4 | G172: 2021 | H172: 1.931734947 | I172: 2.209430487 | J172: 2.070582717 | K172: =InpC!$F$55*100 -> 0 | L172: =InpC!$F$64*100 -> 0 | M172: 2.070582717 | N172: 2.070582717
E173: 2020-11-19 | F173: =InpC!$F$28 -> 4 | G173: 2021 | H173: 1.919951194 | I173: 2.188043328 | J173: 2.053997261 | K173: =InpC!$F$55*100 -> 0 | L173: =InpC!$F$64*100 -> 0 | M173: 2.053997261 | N173: 2.053997261
E174: 2020-11-20 | F174: =InpC!$F$28 -> 4 | G174: 2021 | H174: 1.891160495 | I174: 2.155143506 | J174: 2.023152001 | K174: =InpC!$F$55*100 -> 0 | L174: =InpC!$F$64*100 -> 0 | M174: 2.023152001 | N174: 2.023152001
E175: 2020-11-23 | F175: =InpC!$F$28 -> 4 | G175: 2021 | H175: 1.901487349 | I175: 2.157395549 | J175: 2.029441449 | K175: =InpC!$F$55*100 -> 0 | L175: =InpC!$F$64*100 -> 0 | M175: 2.029441449 | N175: 2.029441449
E176: 2020-11-24 | F176: =InpC!$F$28 -> 4 | G176: 2021 | H176: 1.879598118 | I176: 2.127892989 | J176: 2.003745553 | K176: =InpC!$F$55*100 -> 0 | L176: =InpC!$F$64*100 -> 0 | M176: 2.003745553 | N176: 2.003745553
E177: 2020-11-25 | F177: =InpC!$F$28 -> 4 | G177: 2021 | H177: 1.856900734 | I177: 2.101246016 | J177: 1.979073375 | K177: =InpC!$F$55*100 -> 0 | L177: =InpC!$F$64*100 -> 0 | M177: 1.979073375 | N177: 1.979073375
E178: 2020-11-26 | F178: =InpC!$F$28 -> 4 | G178: 2021 | H178: 1.817460281 | I178: 2.058218611 | J178: 1.937839446 | K178: =InpC!$F$55*100 -> 0 | L178: =InpC!$F$64*100 -> 0 | M178: 1.937839446 | N178: 1.937839446
E179: 2020-11-27 | F179: =InpC!$F$28 -> 4 | G179: 2021 | H179: 1.822650621 | I179: 2.069081324 | J179: 1.945865972 | K179: =InpC!$F$55*100 -> 0 | L179: =InpC!$F$64*100 -> 0 | M179: 1.945865972 | N179: 1.945865972
E180: 2020-11-30 | F180: =InpC!$F$28 -> 4 | G180: 2021 | H180: 1.828705526 | I180: 2.076641201 | J180: 1.952673363 | K180: =InpC!$F$55*100 -> 0 | L180: =InpC!$F$64*100 -> 0 | M180: 1.952673363 | N180: 1.952673363
E181: 2020-12-01 | F181: =InpC!$F$28 -> 4 | G181: =YEAR(E181) + IF(MONTH(E181) >= F181, 1, 0) -> 2021 | H181: 1.873505735 | I181: 2.11896012 | J181: =IFERROR(AVERAGE(H181:I181),"") -> 1.996232927 | K181: =InpC!$F$55*100 -> 0 | L181: =InpC!$F$64*100 -> 0 | M181: =IFERROR(J181 - K181,"") -> 1.996232927 | N181: =IFERROR(J181-K181+L181,"") -> 1.996232927
E182: =WORKDAY(E181,1,) -> 2020-12-02 | F182: =InpC!$F$28 -> 4 | G182: 2021 | H182: 1.8595406 | I182: 2.103542242 | J182: 1.981541421 | K182: =InpC!$F$55*100 -> 0 | L182: =InpC!$F$64*100 -> 0 | M182: 1.981541421 | N182: 1.981541421
E183: 2020-12-03 | F183: =InpC!$F$28 -> 4 | G183: 2021 | H183: 1.838011602 | I183: 2.073783394 | J183: 1.955897498 | K183: =InpC!$F$55*100 -> 0 | L183: =InpC!$F$64*100 -> 0 | M183: 1.955897498 | N183: 1.955897498
E184: 2020-12-04 | F184: =InpC!$F$28 -> 4 | G184: 2021 | H184: 1.849175164 | I184: 2.083031637 | J184: 1.9661034 | K184: =InpC!$F$55*100 -> 0 | L184: =InpC!$F$64*100 -> 0 | M184: 1.9661034 | N184: 1.9661034
E185: 2020-12-07 | F185: =InpC!$F$28 -> 4 | G185: 2021 | H185: 1.778089951 | I185: 2.011707228 | J185: 1.894898589 | K185: =InpC!$F$55*100 -> 0 | L185: =InpC!$F$64*100 -> 0 | M185: 1.894898589 | N185: 1.894898589
E186: 2020-12-08 | F186: =InpC!$F$28 -> 4 | G186: 2021 | H186: 1.736911602 | I186: 1.970613083 | J186: 1.853762343 | K186: =InpC!$F$55*100 -> 0 | L186: =InpC!$F$64*100 -> 0 | M186: 1.853762343 | N186: 1.853762343
E187: 2020-12-09 | F187: =InpC!$F$28 -> 4 | G187: 2021 | H187: 1.734347011 | I187: 1.969257498 | J187: 1.851802254 | K187: =InpC!$F$55*100 -> 0 | L187: =InpC!$F$64*100 -> 0 | M187: 1.851802254 | N187: 1.851802254
E188: 2020-12-10 | F188: =InpC!$F$28 -> 4 | G188: 2021 | H188: 1.677394792 | I188: 1.911695177 | J188: 1.794544985 | K188: =InpC!$F$55*100 -> 0 | L188: =InpC!$F$64*100 -> 0 | M188: 1.794544985 | N188: 1.794544985
E189: 2020-12-11 | F189: =InpC!$F$28 -> 4 | G189: 2021 | H189: 1.642449071 | I189: 1.884331923 | J189: 1.763390497 | K189: =InpC!$F$55*100 -> 0 | L189: =InpC!$F$64*100 -> 0 | M189: 1.763390497 | N189: 1.763390497
E190: 2020-12-14 | F190: =InpC!$F$28 -> 4 | G190: 2021 | H190: 1.698853613 | I190: 1.940790213 | J190: 1.819821913 | K190: =InpC!$F$55*100 -> 0 | L190: =InpC!$F$64*100 -> 0 | M190: 1.819821913 | N190: 1.819821913
E191: 2020-12-15 | F191: =InpC!$F$28 -> 4 | G191: 2021 | H191: 1.746610235 | I191: 1.987675069 | J191: 1.867142652 | K191: =InpC!$F$55*100 -> 0 | L191: =InpC!$F$64*100 -> 0 | M191: 1.867142652 | N191: 1.867142652
E192: 2020-12-16 | F192: =InpC!$F$28 -> 4 | G192: 2021 | H192: 1.770839505 | I192: 2.008872219 | J192: 1.889855862 | K192: =InpC!$F$55*100 -> 0 | L192: =InpC!$F$64*100 -> 0 | M192: 1.889855862 | N192: 1.889855862
E193: 2020-12-17 | F193: =InpC!$F$28 -> 4 | G193: 2021 | H193: 1.746786691 | I193: 1.987133888 | J193: 1.866960289 | K193: =InpC!$F$55*100 -> 0 | L193: =InpC!$F$64*100 -> 0 | M193: 1.866960289 | N193: 1.866960289
E194: 2020-12-18 | F194: =InpC!$F$28 -> 4 | G194: 2021 | H194: 1.718813789 | I194: 1.959786527 | J194: 1.839300158 | K194: =InpC!$F$55*100 -> 0 | L194: =InpC!$F$64*100 -> 0 | M194: 1.839300158 | N194: 1.839300158
E195: 2020-12-21 | F195: =InpC!$F$28 -> 4 | G195: 2021 | H195: 1.681974473 | I195: 1.927445652 | J195: 1.804710062 | K195: =InpC!$F$55*100 -> 0 | L195: =InpC!$F$64*100 -> 0 | M195: 1.804710062 | N195: 1.804710062
E196: 2020-12-22 | F196: =InpC!$F$28 -> 4 | G196: 2021 | H196: 1.662978574 | I196: 1.908202777 | J196: 1.785590675 | K196: =InpC!$F$55*100 -> 0 | L196: =InpC!$F$64*100 -> 0 | M196: 1.785590675 | N196: 1.785590675
E197: 2020-12-23 | F197: =InpC!$F$28 -> 4 | G197: 2021 | H197: 1.787937346 | I197: 2.037798731 | J197: 1.912868038 | K197: =InpC!$F$55*100 -> 0 | L197: =InpC!$F$64*100 -> 0 | M197: 1.912868038 | N197: 1.912868038
E198: 2020-12-24 | F198: =InpC!$F$28 -> 4 | G198: 2021 | H198: 1.743504161 | I198: 1.991152831 | J198: 1.867328496 | K198: =InpC!$F$55*100 -> 0 | L198: =InpC!$F$64*100 -> 0 | M198: 1.867328496 | N198: 1.867328496
E199: 2020-12-25 | F199: =InpC!$F$28 -> 4 | G199: 2021 | K199: =InpC!$F$55*100 -> 0 | L199: =InpC!$F$64*100 -> 0
E200: 2020-12-28 | F200: =InpC!$F$28 -> 4 | G200: 2021 | K200: =InpC!$F$55*100 -> 0 | L200: =InpC!$F$64*100 -> 0
E201: 2020-12-29 | F201: =InpC!$F$28 -> 4 | G201: 2021 | H201: 1.693185899 | I201: 1.933585055 | J201: 1.813385477 | K201: =InpC!$F$55*100 -> 0 | L201: =InpC!$F$64*100 -> 0 | M201: 1.813385477 | N201: 1.813385477
E202: 2020-12-30 | F202: =InpC!$F$28 -> 4 | G202: 2021 | H202: 1.69066432 | I202: 1.931781048 | J202: 1.811222684 | K202: =InpC!$F$55*100 -> 0 | L202: =InpC!$F$64*100 -> 0 | M202: 1.811222684 | N202: 1.811222684
E203: 2020-12-31 | F203: =InpC!$F$28 -> 4 | G203: 2021 | H203: 1.664854624 | I203: 1.905927802 | J203: 1.785391213 | K203: =InpC!$F$55*100 -> 0 | L203: =InpC!$F$64*100 -> 0 | M203: 1.785391213 | N203: 1.785391213
... 3739 more rows

Sheet RCV and post 2020 investment
A1: =RIGHT(CELL("filename", $A$1), LEN(CELL("filename", $A$1)) - SEARCH("]", CELL("filename", $A$1))) -> RCV and post 2020 investment
E2: =Time!E$22 -> Model Period END | J2: =Time!J$22 -> 2020-03-31 | K2: =Time!K$22 -> 2021-03-31 | L2: =Time!L$22 -> 2022-03-31 | M2: =Time!M$22 -> 2023-03-31 | N2: =Time!N$22 -> 2024-03-31 | O2: =Time!O$22 -> 2025-03-31 | P2: =Time!P$22 -> 2026-03-31
E3: =Time!E$58 -> Pre Forecast vs Forecast | J3: =Time!J$58 -> Pre Fcst | K3: =Time!K$58 -> Forecast | L3: =Time!L$58 -> Forecast | M3: =Time!M$58 -> Forecast | N3: =Time!N$58 -> Forecast | O3: =Time!O$58 -> Forecast | P3: =Time!P$58 -> Post-Fcst
E4: =Time!E$86 -> Financial Year Ending | J4: =Time!J$86 -> 2020 | K4: =Time!K$86 -> 2021 | L4: =Time!L$86 -> 2022 | M4: =Time!M$86 -> 2023 | N4: =Time!N$86 -> 2024 | O4: =Time!O$86 -> 2025 | P4: =Time!P$86 -> 2026
E5: =Time!E$10 -> Model column counter | F5: Constant | G5: Unit | H5: Total | J5: =Time!J$10 -> 1 | K5: =Time!K$10 -> 2 | L5: =Time!L$10 -> 3 | M5: =Time!M$10 -> 4 | N5: =Time!N$10 -> 5 | O5: =Time!O$10 -> 6 | P5: =Time!P$10 -> 7
A7: Water Resources
A8: =InpR!A$15 -> 0 | B8: =InpR!B$15 -> 0 | C8: =InpR!C$15 -> 0 | D8: =InpR!D$15 -> 0 | E8: =InpR!E$15 -> Water resources RCV year start | F8: =InpR!F$15 -> 0 | G8: =InpR!G$15 -> £m, (CPIH, 2017/18 prices) | H8: =InpR!H$15 -> 0 | I8: =InpR!I$15 -> 0 | J8: =InpR!J$15 -> 0 | K8: =InpR!K$15 -> 299.8394655 | L8: =InpR!L$15 -> 291.213257 | M8: =InpR!M$15 -> 283.7529853 | N8: =InpR!N$15 -> 275.3198461 | O8: =InpR!O$15 -> 266.0246983 | P8: =InpR!P$15 -> 0
A9: =InpR!A$16 -> 0 | B9: =InpR!B$16 -> 0 | C9: =InpR!C$16 -> 0 | D9: =InpR!D$16 -> 0 | E9: =InpR!E$16 -> Water Resources RCV year end | F9: =InpR!F$16 -> 0 | G9: =InpR!G$16 -> £m, (CPIH, 2017/18 prices) | H9: =InpR!H$16 -> 0 | I9: =InpR!I$16 -> 0 | J9: =InpR!J$16 -> 0 | K9: =InpR!K$16 -> 291.213257 | L9: =InpR!L$16 -> 283.7529853 | M9: =InpR!M$16 -> 275.3198461 | N9: =InpR!N$16 -> 266.0246983 | O9: =InpR!O$16 -> 257.2163456 | P9: =InpR!P$16 -> 0
E10: Water resources asset base for return | G10: £m | J10: =AVERAGE(J8:J9) -> 0 | K10: =AVERAGE(K8:K9) -> 295.5263613 | L10: =AVERAGE(L8:L9) -> 287.4831211 | M10: 279.5364157 | N10: 270.6722722 | O10: 261.6205219 | P10: 0
E12: =InpC!E$57 -> Notional gearing | F12: =InpC!F$57 -> 0.6 | G12: =InpC!G$57 -> percentage
A13: =A$10 -> 0 | B13: =B$10 -> 0 | C13: =C$10 -> 0 | D13: =D$10 -> 0 | E13: =E$10 -> Water resources asset base for return | F13: =F$10 -> 0 | G13: £m | H13: 0 | I13: 0 | J13: 0 | K13: =K$10 -> 295.5263613 | L13: 287.4831211 | M13: 279.5364157 | N13: 270.6722722 | O13: 261.6205219 | P13: 0
E14: Water Resources Notional debt | G14: £m | H14: =SUM(J14:P14) -> 836.9032153 | J14: =$F12 * J13 -> 0 | K14: =$F12 * K13 -> 177.3158168 | L14: 172.4898727 | M14: 167.7218494 | N14: 162.4033633 | O14: 156.9723132 | P14: 0
A16: =A$14 -> 0 | B16: =B$14 -> 0 | C16: =C$14 -> 0 | D16: =D$14 -> 0 | E16: =E$14 -> Water Resources Notional debt | F16: =F$14 -> 0 | G16: £m | H16: 836.9032153 | I16: 0 | J16: 0 | K16: 177.3158168 | L16: 172.4898727 | M16: 167.7218494 | N16: 162.4033633 | O16: 156.9723132 | P16: 0
A17: =InpR!A$57 -> 0 | B17: =InpR!B$57 -> 0 | C17: =InpR!C$57 -> 0 | D17: =InpR!D$57 -> 0 | E17: =InpR!E$57 -> Proportion of notional debt subject to indexation (year average) | F17: =InpR!F$57 -> 0 | G17: =InpR!G$57 -> percentage | H17: =InpR!H$57 -> 0 | I17: =InpR!I$57 -> 0 | J17: =InpR!J$57 -> 0 | K17: =InpR!K$57 -> 0.034 | L17: =InpR!L$57 -> 0.102 | M17: =InpR!M$57 -> 0.17 | N17: =InpR!N$57 -> 0.238 | O17: =InpR!O$57 -> 0.306 | P17: =InpR!P$57 -> 0.374
E18: Water Resources New debt for return | G18: £m | H18: =SUM(J18:O18) -> 138.8209475 | J18: =J16 * J17 -> 0 | K18: 6.02873777 | L18: 17.59396701 | M18: 28.5127144 | N18: 38.65200047 | O18: 48.03352783 | P18: 0
E20: =E$14 -> Water Resources Notional debt | F20: =F$14 -> 0 | G20: £m | H20: 836.9032153 | I20: 0 | J20: 0 | K20: =K$14 -> 177.3158168 | L20: 172.4898727 | M20: 167.7218494 | N20: 162.4033633 | O20: =O$14 -> 156.9723132 | P20: =P$14 -> 0
D21: less | E21: =E$18 -> Water Resources New debt for return | F21: =F$18 -> 0 | G21: £m | H21: 138.8209475 | I21: 0 | J21: 0 | K21: 6.02873777 | L21: 17.59396701 | M21: 28.5127144 | N21: 38.65200047 | O21: 48.03352783 | P21: 0
E22: Water Resources Embedded debt for return | G22: £m | H22: =SUM(J22:O22) -> 698.0822679 | J22: =J20 - J21 -> 0 | K22: =K20 - K21 -> 171.287079 | L22: 154.8959057 | M22: 139.209135 | N22: 123.7513629 | O22: 108.9387853 | P22: 0
A24: Water Network Plus
A25: =InpR!A$15 -> 0 | B25: =InpR!B$15 -> 0 | C25: =InpR!C$15 -> 0 | D25: =InpR!D$15 -> 0 | E25: =InpR!E$19 -> Water Network Plus RCV year start | F25: =InpR!F$19 -> 0 | G25: =InpR!G$19 -> £m, (CPIH, 2017/18 prices) | H25: =InpR!H$19 -> 0 | I25: =InpR!I$19 -> 0 | J25: =InpR!J$19 -> 0 | K25: =InpR!K$19 -> 1701.167938 | L25: =InpR!L$19 -> 1737.995331 | M25: =InpR!M$19 -> 1788.92989 | N25: =InpR!N$19 -> 1830.970088 | O25: =InpR!O$19 -> 1854.874833 | P25: =InpR!P$19 -> 0
A26: =InpR!A$16 -> 0 | B26: =InpR!B$16 -> 0 | C26: =InpR!C$16 -> 0 | D26: =InpR!D$16 -> 0 | E26: =InpR!E$20 -> Water Network Plus RCV year end | F26: =InpR!F$20 -> 0 | G26: =InpR!G$20 -> £m, (CPIH, 2017/18 prices) | H26: =InpR!H$20 -> 0 | I26: =InpR!I$20 -> 0 | J26: =InpR!J$20 -> 0 | K26: =InpR!K$20 -> 1737.995331 | L26: =InpR!L$20 -> 1788.92989 | M26: =InpR!M$20 -> 1830.970088 | N26: =InpR!N$20 -> 1854.874833 | O26: =InpR!O$20 -> 1864.40339 | P26: =InpR!P$20 -> 0
E27: Water Network Plus asset base for return | G27: £m | J27: =AVERAGE(J25:J26) -> 0 | K27: =AVERAGE(K25:K26) -> 1719.581634 | L27: 1763.462611 | M27: 1809.949989 | N27: 1842.92246 | O27: 1859.639111 | P27: 0
E29: =InpC!E$57 -> Notional gearing | F29: =InpC!F$57 -> 0.6 | G29: =InpC!G$57 -> percentage
A30: =A$10 -> 0 | B30: =B$10 -> 0 | C30: =C$10 -> 0 | D30: =D$10 -> 0 | E30: =E$27 -> Water Network Plus asset base for return | F30: =F$27 -> 0 | G30: £m | H30: 0 | I30: 0 | J30: 0 | K30: =K$27 -> 1719.581634 | L30: 1763.462611 | M30: 1809.949989 | N30: 1842.92246 | O30: 1859.639111 | P30: 0
E31: Water Network Plus Notional debt | G31: =G$10 -> £m | H31: =SUM(J31:P31) -> 5397.333483 | J31: =J30 * $F29 -> 0 | K31: 1031.748981 | L31: 1058.077566 | M31: 1085.969993 | N31: 1105.753476 | O31: 1115.783467 | P31: 0
E33: =E$31 -> Water Network Plus Notional debt | F33: 0 | G33: £m | H33: 5397.333483 | I33: 0 | J33: 0 | K33: 1031.748981 | L33: 1058.077566 | M33: 1085.969993 | N33: 1105.753476 | O33: 1115.783467 | P33: 0
A34: =A$14 -> 0 | B34: =B$14 -> 0 | C34: =C$14 -> 0 | D34: =D$14 -> 0 | E34: =InpR!E$57 -> Proportion of notional debt subject to indexation (year average) | F34: =InpR!F$57 -> 0 | G34: =InpR!G$57 -> percentage | H34: =InpR!H$57 -> 0 | I34: =InpR!I$57 -> 0 | J34: =InpR!J$57 -> 0 | K34: =InpR!K$57 -> 0.034 | L34: =InpR!L$57 -> 0.102 | M34: =InpR!M$57 -> 0.17 | N34: =InpR!N$57 -> 0.238 | O34: =InpR!O$57 -> 0.306 | P34: =InpR!P$57 -> 0.374
A35: =InpR!A$57 -> 0 | B35: =InpR!B$57 -> 0 | C35: =InpR!C$57 -> 0 | D35: =InpR!D$57 -> 0 | E35: Water Network Plus New debt for return | G35: £m | H35: =SUM(J35:O35) -> 932.2173441 | J35: =J33 * J34 -> 0 | K35: 35.07946534 | L35: 107.9239118 | M35: 184.6148989 | N35: 263.1693273 | O35: 341.4297408
E37: =E$31 -> Water Network Plus Notional debt | F37: 0 | G37: £m | H37: 5397.333483 | I37: 0 | J37: 0 | K37: 1031.748981 | L37: 1058.077566 | M37: 1085.969993 | N37: 1105.753476 | O37: 1115.783467 | P37: 0
D38: less | E38: =E$35 -> Water Network Plus New debt for return | F38: =F$35 -> 0 | G38: £m | H38: 932.2173441 | I38: 0 | J38: 0 | K38: 35.07946534 | L38: 107.9239118 | M38: 184.6148989 | N38: 263.1693273 | O38: 341.4297408 | P38: 0
E39: Water Network Plus Embedded debt for return | G39: £m | H39: =SUM(J39:O39) -> 4465.116139 | J39: =J37- J38 -> 0 | K39: 996.6695153 | L39: 950.1536546 | M39: 901.3550945 | N39: 842.5841488 | O39: 774.3537259 | P39: 0
A41: WasteWater Network Plus
A42: =InpR!A$15 -> 0 | B42: =InpR!B$15 -> 0 | C42: =InpR!C$15 -> 0 | D42: =InpR!D$15 -> 0 | E42: =InpR!E$23 -> Watewater Network Plus RCV year start | F42: =InpR!F$23 -> 0 | G42: =InpR!G$23 -> £m, (CPIH, 2017/18 prices) | H42: =InpR!H$23 -> 0 | I42: =InpR!I$23 -> 0 | J42: =InpR!J$23 -> 0 | K42: =InpR!K$23 -> 1831.484586 | L42: =InpR!L$23 -> 1827.348116 | M42: =InpR!M$23 -> 1845.794641 | N42: =InpR!N$23 -> 1886.249933 | O42: =InpR!O$23 -> 1981.024865 | P42: =InpR!P$23 -> 0
A43: =InpR!A$16 -> 0 | B43: =InpR!B$16 -> 0 | C43: =InpR!C$16 -> 0 | D43: =InpR!D$16 -> 0 | E43: =InpR!E$24 -> Watewater Network Plus RCV year end | F43: =InpR!F$24 -> 0 | G43: =InpR!G$24 -> £m, (CPIH, 2017/18 prices) | H43: =InpR!H$24 -> 0 | I43: =InpR!I$24 -> 0 | J43: =InpR!J$24 -> 0 | K43: =InpR!K$24 -> 1827.348116 | L43: =InpR!L$24 -> 1845.794641 | M43: =InpR!M$24 -> 1886.249933 | N43: =InpR!N$24 -> 1981.024865 | O43: =InpR!O$24 -> 2024.275246 | P43: =InpR!P$24 -> 0
E44: Watewater Network Plus asset base for return | G44: £m | J44: =AVERAGE(J42:J43) -> 0 | K44: =AVERAGE(K42:K43) -> 1829.416351 | L44: 1836.571379 | M44: 1866.022287 | N44: 1933.637399 | O44: 2002.650055 | P44: 0
E46: =InpC!E$57 -> Notional gearing | F46: =InpC!F$57 -> 0.6 | G46: =InpC!G$57 -> percentage
A47: =A$10 -> 0 | B47: =B$10 -> 0 | C47: =C$10 -> 0 | D47: =D$10 -> 0 | E47: =E$44 -> Watewater Network Plus asset base for return | F47: =F$44 -> 0 | G47: £m | H47: 0 | I47: 0 | J47: 0 | K47: 1829.416351 | L47: 1836.571379 | M47: 1866.022287 | N47: 1933.637399 | O47: 2002.650055 | P47: 0
E48: Wastewater Network Plus Notional debt | G48: =G$10 -> £m | H48: =SUM(J48:P48) -> 5680.978482 | J48: =J47 * $F46 -> 0 | K48: 1097.649811 | L48: 1101.942827 | M48: 1119.613372 | N48: 1160.182439 | O48: 1201.590033 | P48: 0
A50: =A$14 -> 0 | B50: =B$14 -> 0 | C50: =C$14 -> 0 | D50: =D$14 -> 0 | E50: =E$48 -> Wastewater Network Plus Notional debt | F50: =F$48 -> 0 | G50: £m | H50: 5680.978482 | I50: 0 | J50: 0 | K50: 1097.649811 | L50: 1101.942827 | M50: 1119.613372 | N50: 1160.182439 | O50: 1201.590033 | P50: 0
A51: =InpR!A$57 -> 0 | B51: =InpR!B$57 -> 0 | C51: =InpR!C$57 -> 0 | D51: =InpR!D$57 -> 0 | E51: =InpR!E$57 -> Proportion of notional debt subject to indexation (year average) | F51: =InpR!F$57 -> 0 | G51: =InpR!G$57 -> percentage | H51: =InpR!H$57 -> 0 | I51: =InpR!I$57 -> 0 | J51: =InpR!J$57 -> 0 | K51: =InpR!K$57 -> 0.034 | L51: =InpR!L$57 -> 0.102 | M51: =InpR!M$57 -> 0.17 | N51: =InpR!N$57 -> 0.238 | O51: =InpR!O$57 -> 0.306 | P51: =InpR!P$57 -> 0.374
E52: Wastewater Network Plus New debt for return | G52: £m | H52: =SUM(J52:O52) -> 983.8625059 | J52: =J50 * J51 -> 0 | K52: 37.32009356 | L52: 112.3981684 | M52: 190.3342732 | N52: 276.1234206 | O52: 367.6865502
E54: =E$48 -> Wastewater Network Plus Notional debt | F54: =F$48 -> 0 | G54: £m | H54: 5680.978482 | I54: 0 | J54: 0 | K54: 1097.649811 | L54: 1101.942827 | M54: 1119.613372 | N54: 1160.182439 | O54: 1201.590033 | P54: 0
D55: less | E55: =E$52 -> Wastewater Network Plus New debt for return | F55: =F$52 -> 0 | G55: £m | H55: 983.8625059 | I55: 0 | J55: 0 | K55: 37.32009356 | L55: 112.3981684 | M55: 190.3342732 | N55: 276.1234206 | O55: 367.6865502 | P55: 0
E56: Wastewater Network Plus Embedded debt for return | G56: £m | H56: =SUM(J56:O56) -> 4697.115977 | J56: =J54-J55 -> 0 | K56: =K54-K55 -> 1060.329717 | L56: 989.5446588 | M56: 929.2790988 | N56: 884.0590188 | O56: 833.9034831 | P56: 0
A58: Bioresources
A59: =InpR!A$15 -> 0 | B59: =InpR!B$15 -> 0 | C59: =InpR!C$15 -> 0 | D59: =InpR!D$15 -> 0 | E59: =InpR!E$27 -> Bioresources RCV year start | F59: =InpR!F$27 -> 0 | G59: =InpR!G$27 -> £m, (CPIH, 2017/18 prices) | H59: =InpR!H$27 -> 0 | I59: =InpR!I$27 -> 0 | J59: =InpR!J$27 -> 0 | K59: =InpR!K$27 -> 137.9980477 | L59: =InpR!L$27 -> 137.0332007 | M59: =InpR!M$27 -> 136.8578403 | N59: =InpR!N$27 -> 137.1440544 | O59: =InpR!O$27 -> 137.7865564 | P59: =InpR!P$27 -> 0
A60: =InpR!A$16 -> 0 | B60: =InpR!B$16 -> 0 | C60: =InpR!C$16 -> 0 | D60: =InpR!D$16 -> 0 | E60: =InpR!E$28 -> Bioresources RCV year end | F60: =InpR!F$28 -> 0 | G60: =InpR!G$28 -> £m, (CPIH, 2017/18 prices) | H60: =InpR!H$28 -> 0 | I60: =InpR!I$28 -> 0 | J60: =InpR!J$28 -> 0 | K60: =InpR!K$28 -> 137.0332007 | L60: =InpR!L$28 -> 136.8578403 | M60: =InpR!M$28 -> 137.1440544 | N60: =InpR!N$28 -> 137.7865564 | O60: =InpR!O$28 -> 138.731273 | P60: =InpR!P$28 -> 0
E61: Bioresources asset base for return | G61: £m | J61: =AVERAGE(J59:J60) -> 0 | K61: =AVERAGE(K59:K60) -> 137.5156242 | L61: 136.9455205 | M61: 137.0009473 | N61: 137.4653054 | O61: 138.2589147 | P61: 0
E63: =InpC!E$57 -> Notional gearing | F63: =InpC!F$57 -> 0.6 | G63: =InpC!G$57 -> percentage
A64: =A$10 -> 0 | B64: =B$10 -> 0 | C64: =C$10 -> 0 | D64: =D$10 -> 0 | E64: =E$61 -> Bioresources asset base for return | F64: =F$61 -> 0 | G64: £m | H64: 0 | I64: 0 | J64: 0 | K64: 137.5156242 | L64: 136.9455205 | M64: 137.0009473 | N64: 137.4653054 | O64: 138.2589147 | P64: 0
E65: Bioresources Notional debt | G65: =G$10 -> £m | H65: =SUM(J65:P65) -> 412.3117873 | J65: =J64 * $F63 -> 0 | K65: 82.50937453 | L65: 82.1673123 | M65: 82.20056841 | N65: 82.47918323 | O65: =O64 * $F63 -> 82.95534881 | P65: 0
A67: =A$14 -> 0 | B67: =B$14 -> 0 | C67: =C$14 -> 0 | D67: =D$14 -> 0 | E67: =E$65 -> Bioresources Notional debt | F67: =F$65 -> 0 | G67: £m | H67: 412.3117873 | I67: 0 | J67: 0 | K67: 82.50937453 | L67: 82.1673123 | M67: 82.20056841 | N67: 82.47918323 | O67: 82.95534881 | P67: 0
A68: =InpR!A$57 -> 0 | B68: =InpR!B$57 -> 0 | C68: =InpR!C$57 -> 0 | D68: =InpR!D$57 -> 0 | E68: =InpR!E$57 -> Proportion of notional debt subject to indexation (year average) | F68: =InpR!F$57 -> 0 | G68: =InpR!G$57 -> percentage | H68: =InpR!H$57 -> 0 | I68: =InpR!I$57 -> 0 | J68: =InpR!J$57 -> 0 | K68: =InpR!K$57 -> 0.034 | L68: =InpR!L$57 -> 0.102 | M68: =InpR!M$57 -> 0.17 | N68: =InpR!N$57 -> 0.238 | O68: =InpR!O$57 -> 0.306 | P68: =InpR!P$57 -> 0.374
E69: Bioresources New debt for return | G69: £m | H69: =SUM(J69:O69) -> 70.17486356 | J69: =J67 * J68 -> 0 | K69: 2.805318734 | L69: 8.381065854 | M69: 13.97409663 | N69: 19.63004561 | O69: 25.38433674
E71: =E$65 -> Bioresources Notional debt | F71: =F$65 -> 0 | G71: £m | H71: 412.3117873 | I71: 0 | J71: 0 | K71: 82.50937453 | L71: 82.1673123 | M71: 82.20056841 | N71: 82.47918323 | O71: 82.95534881 | P71: 0
E72: =E$69 -> Bioresources New debt for return | F72: =F$69 -> 0 | G72: £m | H72: 70.17486356 | I72: 0 | J72: 0 | K72: 2.805318734 | L72: 8.381065854 | M72: 13.97409663 | N72: 19.63004561 | O72: 25.38433674 | P72: 0
E73: Bioresources Embedded debt for return | G73: £m | H73: =SUM(J73:O73) -> 342.1369237 | J73: =J71 - J72 -> 0 | K73: =K71 - K72 -> 79.70405579 | L73: 73.78624644 | M73: 68.22647178 | N73: 62.84913762 | O73: 57.57101207 | P73: 0
A75: Dummy
A76: =InpR!A$15 -> 0 | B76: =InpR!B$15 -> 0 | C76: =InpR!C$15 -> 0 | D76: =InpR!D$15 -> 0 | E76: =InpR!E31 -> Dummy RCV year start | F76: =InpR!F$27 -> 0 | G76: =InpR!G$27 -> £m, (CPIH, 2017/18 prices) | H76: =InpR!H$27 -> 0 | I76: =InpR!I$27 -> 0 | J76: =InpR!J$27 -> 0 | K76: =InpR!K31 -> 0 | L76: =InpR!L31 -> 0 | M76: =InpR!M31 -> 0 | N76: =InpR!N31 -> 0 | O76: =InpR!O31 -> 0 | P76: =InpR!P$27 -> 0
A77: =InpR!A$16 -> 0 | B77: =InpR!B$16 -> 0 | C77: =InpR!C$16 -> 0 | D77: =InpR!D$16 -> 0 | E77: =InpR!E32 -> Dummy RCV year end | F77: =InpR!F$28 -> 0 | G77: =InpR!G$28 -> £m, (CPIH, 2017/18 prices) | H77: =InpR!H$28 -> 0 | I77: =InpR!I$28 -> 0 | J77: =InpR!J$28 -> 0 | K77: =InpR!K32 -> 0 | L77: =InpR!L32 -> 0 | M77: =InpR!M32 -> 0 | N77: =InpR!N32 -> 0 | O77: =InpR!O32 -> 0 | P77: =InpR!P$28 -> 0
E78: Dummy asset base for return | G78: £m | J78: =AVERAGE(J76:J77) -> 0 | K78: =AVERAGE(K76:K77) -> 0 | L78: 0 | M78: 0 | N78: 0 | O78: 0 | P78: 0
E80: =InpC!E$57 -> Notional gearing | F80: =InpC!F$57 -> 0.6 | G80: =InpC!G$57 -> percentage
A81: =A$10 -> 0 | B81: =B$10 -> 0 | C81: =C$10 -> 0 | D81: =D$10 -> 0 | E81: =E$78 -> Dummy asset base for return | F81: =F$61 -> 0 | G81: £m | H81: 0 | I81: 0 | J81: 0 | K81: =K78 -> 0 | L81: =L78 -> 0 | M81: 0 | N81: 0 | O81: 0 | P81: 0
E82: Dummy Notional debt | G82: =G$10 -> £m | H82: =SUM(J82:P82) -> 0 | J82: =J81 * $F80 -> 0 | K82: 0 | L82: 0 | M82: 0 | N82: 0 | O82: =O81 * $F80 -> 0 | P82: =P81 * $F80 -> 0
A84: =A$14 -> 0 | B84: =B$14 -> 0 | C84: =C$14 -> 0 | D84: =D$14 -> 0 | E84: =E82 -> Dummy Notional debt | F84: =F$65 -> 0 | G84: £m | H84: 412.3117873 | I84: 0 | J84: 0 | K84: =K82 -> 0 | L84: =L82 -> 0 | M84: 0 | N84: 0 | O84: 0 | P84: 0
A85: =InpR!A$57 -> 0 | B85: =InpR!B$57 -> 0 | C85: =InpR!C$57 -> 0 | D85: =InpR!D$57 -> 0 | E85: =InpR!E$57 -> Proportion of notional debt subject to indexation (year average) | F85: =InpR!F$57 -> 0 | G85: =InpR!G$57 -> percentage | H85: =InpR!H$57 -> 0 | I85: =InpR!I$57 -> 0 | J85: =InpR!J$57 -> 0 | K85: =InpR!K$57 -> 0.034 | L85: =InpR!L$57 -> 0.102 | M85: =InpR!M$57 -> 0.17 | N85: =InpR!N$57 -> 0.238 | O85: =InpR!O$57 -> 0.306 | P85: =InpR!P$57 -> 0.374
E86: Dummy New debt for return | G86: £m | H86: =SUM(J86:O86) -> 0 | J86: =J84 * J85 -> 0 | K86: =K84 * K85 -> 0 | L86: =L84 * L85 -> 0 | M86: =M84 * M85 -> 0 | N86: =N84 * N85 -> 0 | O86: =O84 * O85 -> 0
E88: =E82 -> Dummy Notional debt | F88: =F$65 -> 0 | G88: £m | H88: 412.3117873 | I88: 0 | J88: 0 | K88: =K82 -> 0 | L88: =L82 -> 0 | M88: 0 | N88: 0 | O88: 0 | P88: 0
E89: =E86 -> Dummy New debt for return | F89: =F$69 -> 0 | G89: £m | H89: 70.17486356 | I89: 0 | J89: 0 | K89: =K86 -> 0 | L89: =L86 -> 0 | M89: 0 | N89: 0 | O89: 0 | P89: 0
E90: Dummy Embedded debt for return | G90: £m | H90: =SUM(J90:O90) -> 0 | J90: =J88 - J89 -> 0 | K90: =K88 - K89 -> 0 | L90: 0 | M90: 0 | N90: 0 | O90: 0 | P90: 0

Sheet Cost of Debt
A1: =RIGHT(CELL("filename", $A$1), LEN(CELL("filename", $A$1)) - SEARCH("]", CELL("filename", $A$1))) -> Cost of Debt
J2: =Time!J$22 -> 2020-03-31 | K2: =Time!K$22 -> 2021-03-31 | L2: =Time!L$22 -> 2022-03-31 | M2: =Time!M$22 -> 2023-03-31 | N2: =Time!N$22 -> 2024-03-31 | O2: =Time!O$22 -> 2025-03-31 | P2: =Time!P$22 -> 2026-03-31
J3: =Time!J$58 -> Pre Fcst | K3: =Time!K$58 -> Forecast | L3: =Time!L$58 -> Forecast | M3: =Time!M$58 -> Forecast | N3: =Time!N$58 -> Forecast | O3: =Time!O$58 -> Forecast | P3: =Time!P$58 -> Post-Fcst
E4: =Time!E$86 -> Financial Year Ending | J4: =Time!J$86 -> 2020 | K4: =Time!K$86 -> 2021 | L4: =Time!L$86 -> 2022 | M4: =Time!M$86 -> 2023 | N4: =Time!N$86 -> 2024 | O4: =Time!O$86 -> 2025 | P4: =Time!P$86 -> 2026
E5: =Time!E$10 -> Model column counter | F5: Constant | G5: Unit | H5: Total | J5: =Time!J$10 -> 1 | K5: =Time!K$10 -> 2 | L5: =Time!L$10 -> 3 | M5: =Time!M$10 -> 4 | N5: =Time!N$10 -> 5 | O5: =Time!O$10 -> 6 | P5: =Time!P$10 -> 7
A7: Nominal cost of debt
E8: =Time!E$53 -> Forecast Period Flag | F8: =Time!F$53 -> 0 | G8: =Time!G$53 -> flag | H8: =Time!H$53 -> 5 | I8: =Time!I$53 -> 0 | J8: =Time!J$53 -> 0 | K8: =Time!K$53 -> 1 | L8: =Time!L$53 -> 1 | M8: =Time!M$53 -> 1 | N8: =Time!N$53 -> 1 | O8: =Time!O$53 -> 1 | P8: =Time!P$53 -> 0
E9: =InpR!E$41 -> 1 Year average of iBoxx adjusted for 'outperformance wedge' (base) | F9: =InpR!F$41 -> 0 | G9: =InpR!G$41 -> Percentage | H9: =InpR!H$41 -> 0 | I9: =InpR!I$41 -> 0 | J9: =InpR!J$41 -> 0 | K9: =InpR!K$41 -> 0.02163974363 | L9: =InpR!L$41 -> 0.02446005109 | M9: =InpR!M$41 -> 0.04819417725 | N9: =InpR!N$41 -> 0.05888902545 | O9: =InpR!O$41 -> 0.05969169553 | P9: =InpR!P$41 -> 0
E10: Forecast Period 1 Year average of iBoxx at year end | G10: Percentage | J10: =J8 * J9 -> 0 | K10: 0.02163974363 | L10: 0.02446005109 | M10: 0.04819417725 | N10: 0.05888902545 | O10: 0.05969169553 | P10: 0
E12: =E$10 -> Forecast Period 1 Year average of iBoxx at year end | F12: 0 | G12: Percentage | H12: 0 | I12: 0 | J12: 0 | K12: =K$10 -> 0.02163974363 | L12: 0.02446005109 | M12: 0.04819417725 | N12: 0.05888902545 | O12: 0.05969169553 | P12: 0
E13: =InpR!E59 -> CPIH inflation allowance (long-term assumption) | F13: =InpR!F59 -> 0.02 | G13: =InpR!G59 -> percentage | H13: =InpR!H59 -> 0 | I13: =InpR!I59 -> 0 | J13: =InpR!J59 -> 0 | K13: =InpR!K59 -> 0.02 | L13: =InpR!L59 -> 0.02 | M13: =InpR!M59 -> 0.02 | N13: =InpR!N59 -> 0.02 | O13: =InpR!O59 -> 0.02 | P13: =InpR!P59 -> 0
E14: 1 year real-CPIH average debt cost | G14: Percentage | J14: =(1+J12) / (1+J13) - 1 -> 0 | K14: =(1+K12) / (1+K13) - 1 -> 0.001607591799 | L14: 0.004372599105 | M14: 0.02764135025 | N14: 0.03812649554 | O14: 0.03891342699 | P14: 0
B16: Real-CPIH average debt cost by year
E17: =E$14 -> 1 year real-CPIH average debt cost | F17: =F$14 -> 0 | G17: Percentage | H17: 0 | I17: 0 | J17: 0 | K17: 0.001607591799 | L17: 0.004372599105 | M17: 0.02764135025 | N17: 0.03812649554 | O17: 0.03891342699 | P17: 0
E18: =InpR!E$64 -> Average debt cost weighting 2021 | F18: =InpR!F$64 -> 0 | G18: =InpR!G$64 -> Weighting | H18: =InpR!H$64 -> 0 | I18: =InpR!I$64 -> 0 | J18: =InpR!J$64 -> 0 | K18: =InpR!K$64 -> 1 | L18: =InpR!L$64 -> 0 | M18: =InpR!M$64 -> 0 | N18: =InpR!N$64 -> 0 | O18: =InpR!O$64 -> 0 | P18: =InpR!P$64 -> 0
E19: =Time!E$92 -> First modelling period flag | F19: =Time!F$92 -> 0 | G19: =Time!G$92 -> flag | H19: =Time!H$92 -> 0 | I19: =Time!I$92 -> 0 | J19: =Time!J$92 -> 0 | K19: =Time!K$92 -> 1 | L19: =Time!L$92 -> 0 | M19: =Time!M$92 -> 0 | N19: =Time!N$92 -> 0 | O19: =Time!O$92 -> 0 | P19: =Time!P$92 -> 0
E20: 1 year real-CPIH average debt cost 2021 | G20: Percentage | J20: =IFERROR(SUMPRODUCT($J18:J18,$J17:J17) / SUM($J18:J18) * J19,0) -> 0 | K20: =IFERROR(SUMPRODUCT($J18:K18,$J17:K17) / SUM($J18:K18) * K19,0) -> 0.001607591799 | L20: =IFERROR(SUMPRODUCT($J18:L18,$J17:L17) / SUM($J18:L18) * L19,0) -> 0 | M20: =IFERROR(SUMPRODUCT($J18:M18,$J17:M17) / SUM($J18:M18) * M19,0) -> 0 | N20: =IFERROR(SUMPRODUCT($J18:N18,$J17:N17) / SUM($J18:N18) * N19,0) -> 0 | O20: =IFERROR(SUMPRODUCT($J18:O18,$J17:O17) / SUM($J18:O18) * O19,0) -> 0 | P20: =IFERROR(SUMPRODUCT($J18:P18,$J17:P17) / SUM($J18:P18) * P19,0) -> 0
E22: =E$14 -> 1 year real-CPIH average debt cost | F22: =F$14 -> 0 | G22: Percentage | H22: 0 | I22: 0 | J22: 0 | K22: 0.001607591799 | L22: 0.004372599105 | M22: 0.02764135025 | N22: 0.03812649554 | O22: 0.03891342699 | P22: 0
E23: =InpR!E$65 -> Average debt cost weighting 2022 | F23: =InpR!F$65 -> 0 | G23: =InpR!G$65 -> Weighting | H23: =InpR!H$65 -> 0 | I23: =InpR!I$65 -> 0 | J23: =InpR!J$65 -> 0 | K23: =InpR!K$65 -> 1 | L23: =InpR!L$65 -> 0.5 | M23: =InpR!M$65 -> 0 | N23: =InpR!N$65 -> 0 | O23: =InpR!O$65 -> 0 | P23: =InpR!P$65 -> 0
E24: =Time!E$96 -> Second modelling period flag | F24: =Time!F$96 -> 0 | G24: =Time!G$96 -> flag | H24: =Time!H$96 -> 0 | I24: =Time!I$96 -> 0 | J24: =Time!J$96 -> 0 | K24: =Time!K$96 -> 0 | L24: =Time!L$96 -> 1 | M24: =Time!M$96 -> 0 | N24: =Time!N$96 -> 0 | O24: =Time!O$96 -> 0 | P24: =Time!P$96 -> 0
E25: 1 year real-CPIH average debt cost 2022 | G25: Percentage | J25: =IFERROR(SUMPRODUCT($J23:J23,$J22:J22) / SUM($J23:J23) * J24,0) -> 0 | K25: =IFERROR(SUMPRODUCT($J23:K23,$J22:K22) / SUM($J23:K23) * K24,0) -> 0 | L25: =IFERROR(SUMPRODUCT($J23:L23,$J22:L22) / SUM($J23:L23) * L24,0) -> 0.002529260901 | M25: =IFERROR(SUMPRODUCT($J23:M23,$J22:M22) / SUM($J23:M23) * M24,0) -> 0 | N25: =IFERROR(SUMPRODUCT($J23:N23,$J22:N22) / SUM($J23:N23) * N24,0) -> 0 | O25: =IFERROR(SUMPRODUCT($J23:O23,$J22:O22) / SUM($J23:O23) * O24,0) -> 0 | P25: =IFERROR(SUMPRODUCT($J23:P23,$J22:P22) / SUM($J23:P23) * P24,0) -> 0
E27: =E$14 -> 1 year real-CPIH average debt cost | F27: =F$14 -> 0 | G27: Percentage | H27: 0 | I27: 0 | J27: 0 | K27: 0.001607591799 | L27: 0.004372599105 | M27: 0.02764135025 | N27: 0.03812649554 | O27: 0.03891342699 | P27: 0
E28: =InpR!E$66 -> Average debt cost weighting 2023 | F28: =InpR!F$66 -> 0 | G28: =InpR!G$66 -> Weighting | H28: =InpR!H$66 -> 0 | I28: =InpR!I$66 -> 0 | J28: =InpR!J$66 -> 0 | K28: =InpR!K$66 -> 1 | L28: =InpR!L$66 -> 1 | M28: =InpR!M$66 -> 0.5 | N28: =InpR!N$66 -> 0 | O28: =InpR!O$66 -> 0 | P28: =InpR!P$66 -> 0
E29: =Time!E$100 -> Third modelling period flag | F29: =Time!F$100 -> 0 | G29: =Time!G$100 -> flag | H29: =Time!H$100 -> 0 | I29: =Time!I$100 -> 0 | J29: =Time!J$100 -> 0 | K29: =Time!K$100 -> 0 | L29: =Time!L$100 -> 0 | M29: =Time!M$100 -> 1 | N29: =Time!N$100 -> 0 | O29: =Time!O$100 -> 0 | P29: =Time!P$100 -> 0
E30: 1 year real-CPIH average debt cost 2023 | G30: Percentage | J30: =IFERROR(SUMPRODUCT($J28:J28,$J27:J27) / SUM($J28:J28) * J29,0) -> 0 | K30: =IFERROR(SUMPRODUCT($J28:K28,$J27:K27) / SUM($J28:K28) * K29,0) -> 0 | L30: =IFERROR(SUMPRODUCT($J28:L28,$J27:L27) / SUM($J28:L28) * L29,0) -> 0 | M30: =IFERROR(SUMPRODUCT($J28:M28,$J27:M27) / SUM($J28:M28) * M29,0) -> 0.007920346411 | N30: =IFERROR(SUMPRODUCT($J28:N28,$J27:N27) / SUM($J28:N28) * N29,0) -> 0 | O30: =IFERROR(SUMPRODUCT($J28:O28,$J27:O27) / SUM($J28:O28) * O29,0) -> 0 | P30: =IFERROR(SUMPRODUCT($J28:P28,$J27:P27) / SUM($J28:P28) * P29,0) -> 0
E32: =E$14 -> 1 year real-CPIH average debt cost | F32: =F$14 -> 0 | G32: Percentage | H32: 0 | I32: 0 | J32: 0 | K32: 0.001607591799 | L32: 0.004372599105 | M32: 0.02764135025 | N32: 0.03812649554 | O32: 0.03891342699 | P32: 0
E33: =InpR!E$67 -> Average debt cost weighting 2024 | F33: =InpR!F$67 -> 0 | G33: =InpR!G$67 -> Weighting | H33: =InpR!H$67 -> 0 | I33: =InpR!I$67 -> 0 | J33: =InpR!J$67 -> 0 | K33: =InpR!K$67 -> 1 | L33: =InpR!L$67 -> 1 | M33: =InpR!M$67 -> 1 | N33: =InpR!N$67 -> 0.5 | O33: =InpR!O$67 -> 0 | P33: =InpR!P$67 -> 0
E34: =Time!E$104 -> Fourth modelling period flag | F34: =Time!F$104 -> 0 | G34: =Time!G$104 -> flag | H34: =Time!H$104 -> 0 | I34: =Time!I$104 -> 0 | J34: =Time!J$104 -> 0 | K34: =Time!K$104 -> 0 | L34: =Time!L$104 -> 0 | M34: =Time!M$104 -> 0 | N34: =Time!N$104 -> 1 | O34: =Time!O$104 -> 0 | P34: =Time!P$104 -> 0
E35: 1 year real-CPIH average debt cost 2024 | G35: Percentage | J35: =IFERROR(SUMPRODUCT($J33:J33,$J32:J32) / SUM($J33:J33) * J34,0) -> 0 | K35: =IFERROR(SUMPRODUCT($J33:K33,$J32:K32) / SUM($J33:K33) * K34,0) -> 0 | L35: =IFERROR(SUMPRODUCT($J33:L33,$J32:L32) / SUM($J33:L33) * L34,0) -> 0 | M35: =IFERROR(SUMPRODUCT($J33:M33,$J32:M32) / SUM($J33:M33) * M34,0) -> 0 | N35: =IFERROR(SUMPRODUCT($J33:N33,$J32:N32) / SUM($J33:N33) * N34,0) -> 0.01505279683 | O35: =IFERROR(SUMPRODUCT($J33:O33,$J32:O32) / SUM($J33:O33) * O34,0) -> 0 | P35: =IFERROR(SUMPRODUCT($J33:P33,$J32:P32) / SUM($J33:P33) * P34,0) -> 0
E37: =E$14 -> 1 year real-CPIH average debt cost | F37: =F$14 -> 0 | G37: Percentage | H37: 0 | I37: 0 | J37: 0 | K37: 0.001607591799 | L37: 0.004372599105 | M37: 0.02764135025 | N37: 0.03812649554 | O37: 0.03891342699 | P37: 0
E38: =InpR!E$68 -> Average debt cost weighting 2025 | F38: =InpR!F$68 -> 0 | G38: =InpR!G$68 -> Weighting | H38: =InpR!H$68 -> 0 | I38: =InpR!I$68 -> 0 | J38: =InpR!J$68 -> 0 | K38: =InpR!K$68 -> 1 | L38: =InpR!L$68 -> 1 | M38: =InpR!M$68 -> 1 | N38: =InpR!N$68 -> 1 | O38: =InpR!O$68 -> 0.5 | P38: =InpR!P$68 -> 0
E39: =Time!E$108 -> Fifth modelling period flag | F39: =Time!F$108 -> 0 | G39: =Time!G$108 -> flag | H39: =Time!H$108 -> 0 | I39: =Time!I$108 -> 0 | J39: =Time!J$108 -> 0 | K39: =Time!K$108 -> 0 | L39: =Time!L$108 -> 0 | M39: =Time!M$108 -> 0 | N39: =Time!N$108 -> 0 | O39: =Time!O$108 -> 1 | P39: =Time!P$108 -> 0
E40: 1 year real-CPIH average debt cost 2025 | G40: Percentage | J40: =IFERROR(SUMPRODUCT($J38:J38,$J37:J37) / SUM($J38:J38) * J39,0) -> 0 | K40: =IFERROR(SUMPRODUCT($J38:K38,$J37:K37) / SUM($J38:K38) * K39,0) -> 0 | L40: =IFERROR(SUMPRODUCT($J38:L38,$J37:L37) / SUM($J38:L38) * L39,0) -> 0 | M40: =IFERROR(SUMPRODUCT($J38:M38,$J37:M37) / SUM($J38:M38) * M39,0) -> 0 | N40: =IFERROR(SUMPRODUCT($J38:N38,$J37:N37) / SUM($J38:N38) * N39,0) -> 0 | O40: =IFERROR(SUMPRODUCT($J38:O38,$J37:O37) / SUM($J38:O38) * O39,0) -> 0.02026772226 | P40: =IFERROR(SUMPRODUCT($J38:P38,$J37:P37) / SUM($J38:P38) * P39,0) -> 0
E43: =E$20 -> 1 year real-CPIH average debt cost 2021 | F43: =F$20 -> 0 | G43: Percentage | H43: 0 | I43: 0 | J43: 0 | K43: 0.001607591799 | L43: 0 | M43: 0 | N43: 0 | O43: 0 | P43: 0
E44: =E$25 -> 1 year real-CPIH average debt cost 2022 | F44: =F$25 -> 0 | G44: Percentage | H44: 0 | I44: 0 | J44: 0 | K44: 0 | L44: 0.002529260901 | M44: 0 | N44: 0 | O44: 0 | P44: 0
E45: =E$30 -> 1 year real-CPIH average debt cost 2023 | F45: =F$30 -> 0 | G45: Percentage | H45: 0 | I45: 0 | J45: 0 | K45: 0 | L45: 0 | M45: 0.007920346411 | N45: 0 | O45: 0 | P45: 0
E46: =E$35 -> 1 year real-CPIH average debt cost 2024 | F46: =F$35 -> 0 | G46: Percentage | H46: 0 | I46: 0 | J46: 0 | K46: 0 | L46: 0 | M46: 0 | N46: 0.01505279683 | O46: 0 | P46: 0
E47: =E$40 -> 1 year real-CPIH average debt cost 2025 | F47: =F$40 -> 0 | G47: Percentage | H47: 0 | I47: 0 | J47: 0 | K47: 0 | L47: 0 | M47: 0 | N47: 0 | O47: 0.02026772226 | P47: 0
E48: Extending trailing average rate | G48: Percentage | J48: =SUM(J43:J47) -> 0 | K48: =SUM(K43:K47) -> 0.001607591799 | L48: =SUM(L43:L47) -> 0.002529260901 | M48: 0.007920346411 | N48: 0.01505279683 | O48: 0.02026772226 | P48: 0

Sheet Water resources
A1: =RIGHT(CELL("filename", $A$1), LEN(CELL("filename", $A$1)) - SEARCH("]", CELL("filename", $A$1))) -> Water resources
J2: =Time!J$22 -> 2020-03-31 | K2: =Time!K$22 -> 2021-03-31 | L2: =Time!L$22 -> 2022-03-31 | M2: =Time!M$22 -> 2023-03-31 | N2: =Time!N$22 -> 2024-03-31 | O2: =Time!O$22 -> 2025-03-31 | P2: =Time!P$22 -> 2026-03-31
J3: =Time!J$58 -> Pre Fcst | K3: =Time!K$58 -> Forecast | L3: =Time!L$58 -> Forecast | M3: =Time!M$58 -> Forecast | N3: =Time!N$58 -> Forecast | O3: =Time!O$58 -> Forecast | P3: =Time!P$58 -> Post-Fcst
E4: =Time!E$86 -> Financial Year Ending | J4: =Time!J$86 -> 2020 | K4: =Time!K$86 -> 2021 | L4: =Time!L$86 -> 2022 | M4: =Time!M$86 -> 2023 | N4: =Time!N$86 -> 2024 | O4: =Time!O$86 -> 2025 | P4: =Time!P$86 -> 2026
E5: =Time!E$10 -> Model column counter | F5: Constant | G5: Unit | H5: Total | J5: =Time!J$10 -> 1 | K5: =Time!K$10 -> 2 | L5: =Time!L$10 -> 3 | M5: =Time!M$10 -> 4 | N5: =Time!N$10 -> 5 | O5: =Time!O$10 -> 6 | P5: =Time!P$10 -> 7
A7: COST OF DEBT CALCULATION BASED ON INDEX OUTTURN
E8: Company-specific adjustment flag | F8: =IF(InpC!$F$66="YES",1,0) -> 0 | G8: Flag | K8: =$F$8 -> 0 | L8: =$F$8 -> 0 | M8: 0 | N8: 0 | O8: 0
E9: =InpC!E64 -> Company-specific adjustment (new debt) | F9: =InpC!F64 -> 0 | G9: ='Cost of Debt'!G47 -> Percentage | K9: =$F$9 -> 0 | L9: =$F$9 -> 0 | M9: 0 | N9: 0 | O9: 0 | P9: 0
E10: =InpC!E65 -> Company-specific adjustment (embedded debt) | F10: =InpC!$F$65 -> 0 | G10: ='Cost of Debt'!G48 -> Percentage | K10: =$F$10 -> 0 | L10: =$F$10 -> 0 | M10: =$F$10 -> 0 | N10: =$F$10 -> 0 | O10: =$F$10 -> 0
E11: ='Cost of Debt'!E48 -> Extending trailing average rate | F11: ='Cost of Debt'!F48 -> 0 | G11: ='Cost of Debt'!G48 -> Percentage | H11: ='Cost of Debt'!H48 -> 0 | I11: ='Cost of Debt'!I48 -> 0 | J11: ='Cost of Debt'!J48 -> 0 | K11: ='Cost of Debt'!K48 -> 0.001607591799 | L11: ='Cost of Debt'!L48 -> 0.002529260901 | M11: ='Cost of Debt'!M48 -> 0.007920346411 | N11: ='Cost of Debt'!N48 -> 0.01505279683 | O11: ='Cost of Debt'!O48 -> 0.02026772226 | P11: ='Cost of Debt'!P48 -> 0
E12: Extending trailing average rate (after any CSA adjustments) | G12: Percentage | K12: =K11+(K8*K9) -> 0.001607591799 | L12: =L11+(L8*L9) -> 0.002529260901 | M12: 0.007920346411 | N12: 0.01505279683 | O12: 0.02026772226 | P12: 0
E13: ='RCV and post 2020 investment'!E18 -> Water Resources New debt for return | F13: ='RCV and post 2020 investment'!F18 -> 0 | G13: ='RCV and post 2020 investment'!G18 -> £m | H13: ='RCV and post 2020 investment'!H18 -> 138.8209475 | I13: ='RCV and post 2020 investment'!I18 -> 0 | J13: ='RCV and post 2020 investment'!J18 -> 0 | K13: ='RCV and post 2020 investment'!K18 -> 6.02873777 | L13: ='RCV and post 2020 investment'!L18 -> 17.59396701 | M13: ='RCV and post 2020 investment'!M18 -> 28.5127144 | N13: ='RCV and post 2020 investment'!N18 -> 38.65200047 | O13: ='RCV and post 2020 investment'!O18 -> 48.03352783 | P13: ='RCV and post 2020 investment'!P52 -> 0
E14: Water resources extending trailing average interest cost | G14: £m | H14: =SUM(J14:O14) -> 1.835372969 | J14: =J11 * J13 -> 0 | K14: =K12 * K13 -> 0.009691749395 | L14: =L12 * L13 -> 0.04449973286 | M14: 0.2258305752 | N14: 0.5818207103 | O14: 0.9735302013 | P14: 0
E16: ='RCV and post 2020 investment'!E22 -> Water Resources Embedded debt for return | F16: ='RCV and post 2020 investment'!F22 -> 0 | G16: ='RCV and post 2020 investment'!G22 -> £m | H16: ='RCV and post 2020 investment'!H22 -> 698.0822679 | I16: ='RCV and post 2020 investment'!I22 -> 0 | J16: ='RCV and post 2020 investment'!J22 -> 0 | K16: ='RCV and post 2020 investment'!K22 -> 171.287079 | L16: ='RCV and post 2020 investment'!L22 -> 154.8959057 | M16: ='RCV and post 2020 investment'!M22 -> 139.209135 | N16: ='RCV and post 2020 investment'!N22 -> 123.7513629 | O16: ='RCV and post 2020 investment'!O22 -> 108.9387853 | P16: ='RCV and post 2020 investment'!P56 -> 0
E17: =InpR!E$37 -> Allowed sector embedded debt cost (not inc. CSA) - final determination (CPIH real) | F17: =InpR!F$37 -> 0 | G17: =InpR!G$37 -> percentage | H17: =InpR!H$37 -> 0 | I17: =InpR!I$37 -> 0 | J17: =InpR!J$37 -> 0 | K17: =InpR!K$37 -> 0.02470588235 | L17: =InpR!L$37 -> 0.02470588235 | M17: =InpR!M$37 -> 0.02470588235 | N17: =InpR!N$37 -> 0.02470588235 | O17: =InpR!O$37 -> 0.02470588235 | P17: =InpR!P$37 -> 0
E18: Allowed sector embedded debt cost (after any CSA adjustments) | K18: =K17+(K8*K10) -> 0.02470588235 | L18: =L17+(L8*L10) -> 0.02470588235 | M18: 0.02470588235 | N18: 0.02470588235 | O18: 0.02470588235
E19: Water resources Embedded debt interest cost | G19: £m | H19: =SUM(J19:O19) -> 17.24673838 | J19: =J16 * J17 -> 0 | K19: =K16 * K18 -> 4.231798422 | L19: =L16 * L18 -> 3.826840022 | M19: 3.439284512 | N19: 3.057386612 | O19: 2.691428814 | P19: =P16 * P17 -> 0
E21: Water resources outturn allowed new debt cost (CPIH real) | F21: 0 | G21: Percentage | K21: =K12 -> 0.001607591799 | L21: =L12 -> 0.002529260901 | M21: 0.007920346411 | N21: 0.01505279683 | O21: 0.02026772226
E22: Water resources allowed embedded debt cost (CPIH real) | F22: 0 | G22: Percentage | K22: =K18 -> 0.02470588235 | L22: =L18 -> 0.02470588235 | M22: 0.02470588235 | N22: 0.02470588235 | O22: 0.02470588235 | P22: =P17 -> 0
E23: Ratio of new to embedded debt for outturn cost of debt allowance | F23: 0 | G23: Percentage | K23: =InpR!K57 -> 0.034 | L23: =InpR!L57 -> 0.102 | M23: =InpR!M57 -> 0.17 | N23: =InpR!N57 -> 0.238 | O23: =InpR!O57 -> 0.306
E24: Water resources outturn allowed cost of overall debt (CPIH real) | F24: 0 | G24: Percentage | K24: =(K23*K21)+(1-K23)*K22 -> 0.02392054047 | L24: =(L23*L21)+(1-L23)*L22 -> 0.02244386696 | M24: =(M23*M21)+(1-M23)*M22 -> 0.02185234124 | N24: =(N23*N21)+(1-N23)*N22 -> 0.022408448 | O24: =(O23*O21)+(1-O23)*O22 -> 0.02334780537
E25: CPIH inflation (long-term assumption) | F25: 0 | G25: Percentage | K25: =InpR!K59 -> 0.02 | L25: =InpR!L59 -> 0.02 | M25: =InpR!M59 -> 0.02 | N25: =InpR!N59 -> 0.02 | O25: =InpR!O59 -> 0.02
E26: Issuance and liquidity costs | G26: Percentage | K26: =InpR!K38 -> 0.001 | L26: =InpR!L38 -> 0.001 | M26: =InpR!M38 -> 0.001 | N26: =InpR!N38 -> 0.001 | O26: =InpR!O38 -> 0.001
E27: Water resources outturn allowed cost of overall debt (Nominal) | F27: 0 | G27: Percentage | K27: =((1+K24)*(1+K25)-1)+K26 -> 0.04539895128 | L27: 0.0438927443 | M27: =((1+M24)*(1+M25)-1)+M26 -> 0.04328938807 | N27: =((1+N24)*(1+N25)-1)+N26 -> 0.04385661696 | O27: =((1+O24)*(1+O25)-1)+O26 -> 0.04481476147
E29: =E$14 -> Water resources extending trailing average interest cost | F29: =F$14 -> 0 | G29: £m | H29: 1.835372969 | I29: 0 | J29: 0 | K29: 0.009691749395 | L29: 0.04449973286 | M29: 0.2258305752 | N29: 0.5818207103 | O29: 0.9735302013 | P29: 0
E30: =E$19 -> Water resources Embedded debt interest cost | F30: =F$19 -> 0 | G30: =G$19 -> £m | H30: 17.24673838 | I30: 0 | J30: 0 | K30: 4.231798422 | L30: 3.826840022 | M30: 3.439284512 | N30: 3.057386612 | O30: 2.691428814 | P30: 0
E31: Water resources outturn debt allowance | G31: £m | H31: =SUM(J31:O31) -> 19.08211135 | J31: =SUM(J29:J30) -> 0 | K31: 4.241490171 | L31: 3.871339755 | M31: 3.665115087 | N31: 3.639207322 | O31: 3.664959015 | P31: 0
A33: FD ALLOWANCE
E34: =InpC!E51 -> Notional % of 'new' debt over period | F34: =InpC!F51 -> 0.17 | G34: =InpC!G51 -> percentage | K34: =$F$34 -> 0.17 | L34: =$F$34 -> 0.17 | M34: 0.17 | N34: 0.17 | O34: 0.17 | P34: =InpR!P36 -> 0
E35: =InpR!E36 -> Allowed sector new debt cost (not inc. CSA) - final determination (CPIH real) | F35: =InpR!F36 -> 0 | G35: =InpR!G36 -> percentage | H35: =InpR!H36 -> 0 | I35: =InpR!I36 -> 0 | J35: =InpR!J36 -> 0 | K35: =InpR!K36 -> 0.001862745098 | L35: =InpR!L36 -> 0.001862745098 | M35: =InpR!M36 -> 0.001862745098 | N35: =InpR!N36 -> 0.001862745098 | O35: =InpR!O36 -> 0.001862745098 | P35: =P13 -> 0
E36: Allowed sector cost of new debt (after any CSA adjustments) | K36: =K35+(K8*K9) -> 0.001862745098 | L36: =L35+(L8*L9) -> 0.001862745098 | M36: =M35+(M8*M9) -> 0.001862745098 | N36: =N35+(N8*N9) -> 0.001862745098 | O36: =O35+(O8*O9) -> 0.001862745098
E37: =InpR!E37 -> Allowed sector embedded debt cost (not inc. CSA) - final determination (CPIH real) | F37: =InpR!F37 -> 0 | G37: =InpR!G37 -> percentage | H37: =InpR!H37 -> 0 | I37: =InpR!I37 -> 0 | J37: =InpR!J37 -> 0 | K37: =InpR!K37 -> 0.02470588235 | L37: =InpR!L37 -> 0.02470588235 | M37: =InpR!M37 -> 0.02470588235 | N37: =InpR!N37 -> 0.02470588235 | O37: =InpR!O37 -> 0.02470588235 | P37: =P34*P35 -> 0
E38: Allowed sector cost of embedded debt (after any CSA adjustments) | K38: =K37+(K8*K10) -> 0.02470588235 | L38: =L37+(L8*L10) -> 0.02470588235 | M38: =M37+(M8*M10) -> 0.02470588235 | N38: =N37+(N8*N10) -> 0.02470588235 | O38: =O37+(O8*O10) -> 0.02470588235
E39: ='RCV and post 2020 investment'!E14 -> Water Resources Notional debt | F39: ='RCV and post 2020 investment'!F14 -> 0 | G39: ='RCV and post 2020 investment'!G14 -> £m | H39: ='RCV and post 2020 investment'!H14 -> 836.9032153 | I39: ='RCV and post 2020 investment'!I14 -> 0 | J39: ='RCV and post 2020 investment'!J14 -> 0 | K39: ='RCV and post 2020 investment'!K14 -> 177.3158168 | L39: ='RCV and post 2020 investment'!L14 -> 172.4898727 | M39: ='RCV and post 2020 investment'!M14 -> 167.7218494 | N39: ='RCV and post 2020 investment'!N14 -> 162.4033633 | O39: ='RCV and post 2020 investment'!O14 -> 156.9723132
E40: Water resources initial cost of debt allowance | G40: £m | I40: =I$14 -> 0 | K40: =(K39 * K34 * K36) + (K39 * (1-K34) * K38) -> 3.692167286 | L40: =(L39 * L34 * L36) + (L39 * (1-L34) * L38) -> 3.591678829 | M40: 3.492396431 | N40: 3.381651994 | O40: 3.268563686 | P40: =(P39 * $F34 * P35) + (P39 * (1-$F34) * P37) -> 0
P41: =P14 -> 0
A42: RECONCILIATION ADJUSTMENTS | P42: =P40-P41 -> 0
E43: =E$31 -> Water resources outturn debt allowance | F43: =F$31 -> 0 | G43: £m | H43: 19.08211135 | I43: 0 | J43: 0 | K43: 4.241490171 | L43: 3.871339755 | M43: 3.665115087 | N43: 3.639207322 | O43: 3.664959015
E44: =E$40 -> Water resources initial cost of debt allowance | F44: =F$40 -> 0 | G44: £m | H44: 0 | I44: 0 | J44: 0 | K44: 3.692167286 | L44: 3.591678829 | M44: 3.492396431 | N44: 3.381651994 | O44: 3.268563686
E45: Reconciliation (in-year values) - Water resources | G45: £m | H45: =SUM(J45:O45) -> 1.655653125 | J45: =J43-J44 -> 0 | K45: 0.549322885 | L45: 0.2796609259 | M45: 0.1727186562 | N45: 0.2575553282 | O45: 0.3963953299
E47: =InpC!E$61 -> PV base date | F47: =InpC!F$61 -> 2025-03-31 | G47: =InpC!G$61 -> date
E48: =InpC!E$62 -> Days in a year | F48: =InpC!F$62 -> 365 | G48: =InpC!G$62 -> days
E49: =Time!E$22 -> Model Period END | F49: =Time!F$22 -> 0 | G49: =Time!G$22 -> date | H49: =Time!H$22 -> 00:00:00 | I49: =Time!I$22 -> 00:00:00 | J49: =Time!J$22 -> 2020-03-31 | K49: =Time!K$22 -> 2021-03-31 | L49: =Time!L$22 -> 2022-03-31 | M49: =Time!M$22 -> 2023-03-31 | N49: =Time!N$22 -> 2024-03-31 | O49: =Time!O$22 -> 2025-03-31 | P49: =Time!P$22 -> 2026-03-31
E50: Years from valuation date - Water resources | G50: years | J50: =( ( J49 - $F47 ) / $F48 ) * -1 -> 5.002739726 | K50: 4.002739726 | L50: 3.002739726 | M50: 2.002739726 | N50: 1 | O50: 0
E52: =InpC!E56 -> PR19 appointee allowed return on capital (CPIH-deflated using long-term assumption) | F52: =InpC!F56 -> 0.0319998 | G52: =InpC!G56 -> percentage | K52: =$F$52 -> 0.0319998 | L52: =$F$52 -> 0.0319998 | M52: 0.0319998 | N52: 0.0319998 | O52: 0.0319998
E53: =E$50 -> Years from valuation date - Water resources | F53: =F$50 -> 0 | G53: years | H53: 0 | I53: 0 | J53: 5.002739726 | K53: 4.002739726 | L53: 3.002739726 | M53: 2.002739726 | N53: 1 | O53: 0
E54: Discount factor - Water resources | G54: Factor | J54: =(1+$F52) ^J53 -> 1.170672844 | K54: 1.13437313 | L54: 1.099198983 | M54: 1.0651155 | N54: 1.0319998 | O54: 1
E56: =E$45 -> Reconciliation (in-year values) - Water resources | F56: =F$45 -> 0 | G56: £m | H56: 1.655653125 | I56: 0 | J56: 0 | K56: 0.549322885 | L56: 0.2796609259 | M56: 0.1727186562 | N56: 0.2575553282 | O56: 0.3963953299
E57: =E$54 -> Discount factor - Water resources | F57: =F$54 -> 0 | G57: Factor | H57: 0 | I57: 0 | J57: 1.170672844 | K57: 1.13437313 | L57: 1.099198983 | M57: 1.0651155 | N57: 1.0319998 | O57: 1
E58: Discounted reconciliation (in-year values) Water resources | G58: £m | K58: =K57*K56 -> 0.6231371206 | L58: =L57*L56 -> 0.3074030053 | M58: =M57*M56 -> 0.1839653178 | N58: =N57*N56 -> 0.2657970472 | O58: =O57*O56 -> 0.3963953299
E60: =E$58 -> Discounted reconciliation (in-year values) Water resources | F60: =F$58 -> 0 | G60: £m | H60: 0 | I60: 0 | J60: 0 | K60: 0.6231371206 | L60: 0.3074030053 | M60: 0.1839653178 | N60: 0.2657970472 | O60: 0.3963953299
E61: Total value of reconciliation (31 March 2025 present values): Water resources | G61: £m | H61: =SUM(K60:O60) -> 1.776697821

Sheet Water network +
A1: =RIGHT(CELL("filename", $A$1), LEN(CELL("filename", $A$1)) - SEARCH("]", CELL("filename", $A$1))) -> Water network +
J2: =Time!J$22 -> 2020-03-31 | K2: =Time!K$22 -> 2021-03-31 | L2: =Time!L$22 -> 2022-03-31 | M2: =Time!M$22 -> 2023-03-31 | N2: =Time!N$22 -> 2024-03-31 | O2: =Time!O$22 -> 2025-03-31 | P2: =Time!P$22 -> 2026-03-31
J3: =Time!J$58 -> Pre Fcst | K3: =Time!K$58 -> Forecast | L3: =Time!L$58 -> Forecast | M3: =Time!M$58 -> Forecast | N3: =Time!N$58 -> Forecast | O3: =Time!O$58 -> Forecast | P3: =Time!P$58 -> Post-Fcst
E4: =Time!E$86 -> Financial Year Ending | J4: =Time!J$86 -> 2020 | K4: =Time!K$86 -> 2021 | L4: =Time!L$86 -> 2022 | M4: =Time!M$86 -> 2023 | N4: =Time!N$86 -> 2024 | O4: =Time!O$86 -> 2025 | P4: =Time!P$86 -> 2026
E5: =Time!E$10 -> Model column counter | F5: Constant | G5: Unit | H5: Total | J5: =Time!J$10 -> 1 | K5: =Time!K$10 -> 2 | L5: =Time!L$10 -> 3 | M5: =Time!M$10 -> 4 | N5: =Time!N$10 -> 5 | O5: =Time!O$10 -> 6 | P5: =Time!P$10 -> 7
A7: COST OF DEBT CALCULATION BASED ON INDEX OUTTURN
E8: Company-specific adjustment flag | F8: =IF(InpC!$F$67="YES",1,0) -> 0 | G8: Flag | K8: =$F$8 -> 0 | L8: =$F$8 -> 0 | M8: 0 | N8: 0 | O8: 0
E9: =InpC!E64 -> Company-specific adjustment (new debt) | F9: =InpC!F64 -> 0 | G9: ='Cost of Debt'!G47 -> Percentage | K9: =$F$9 -> 0 | L9: =$F$9 -> 0 | M9: 0 | N9: 0 | O9: 0
E10: =InpC!E65 -> Company-specific adjustment (embedded debt) | F10: =InpC!$F$65 -> 0 | G10: ='Cost of Debt'!G48 -> Percentage | K10: =$F$10 -> 0 | L10: =$F$10 -> 0 | M10: =$F$10 -> 0 | N10: =$F$10 -> 0 | O10: =$F$10 -> 0
E11: ='Cost of Debt'!E48 -> Extending trailing average rate | F11: ='Cost of Debt'!F48 -> 0 | G11: ='Cost of Debt'!G48 -> Percentage | H11: ='Cost of Debt'!H48 -> 0 | I11: ='Cost of Debt'!I48 -> 0 | J11: ='Cost of Debt'!J48 -> 0 | K11: ='Cost of Debt'!K48 -> 0.001607591799 | L11: ='Cost of Debt'!L48 -> 0.002529260901 | M11: ='Cost of Debt'!M48 -> 0.007920346411 | N11: ='Cost of Debt'!N48 -> 0.01505279683 | O11: ='Cost of Debt'!O48 -> 0.02026772226 | P11: ='Cost of Debt'!P48 -> 0
E12: Extending trailing average rate (after any CSA adjustments) | G12: Percentage | K12: =K11+(K8*K9) -> 0.001607591799 | L12: =L11+(L8*L9) -> 0.002529260901 | M12: 0.007920346411 | N12: 0.01505279683 | O12: 0.02026772226 | P12: 0
E13: ='RCV and post 2020 investment'!E35 -> Water Network Plus New debt for return | F13: ='RCV and post 2020 investment'!F35 -> 0 | G13: ='RCV and post 2020 investment'!G35 -> £m | H13: ='RCV and post 2020 investment'!H35 -> 932.2173441 | I13: ='RCV and post 2020 investment'!I35 -> 0 | J13: ='RCV and post 2020 investment'!J35 -> 0 | K13: ='RCV and post 2020 investment'!K35 -> 35.07946534 | L13: ='RCV and post 2020 investment'!L35 -> 107.9239118 | M13: ='RCV and post 2020 investment'!M35 -> 184.6148989 | N13: ='RCV and post 2020 investment'!N35 -> 263.1693273 | O13: ='RCV and post 2020 investment'!O35 -> 341.4297408 | P13: ='RCV and post 2020 investment'!P35 -> 0
E14: Water network + extending trailing average interest cost | G14: £m | H14: =SUM(J14:O14) -> 12.67301272 | J14: =J11 * J13 -> 0 | K14: =K12 * K13 -> 0.05639346079 | L14: =L12 * L13 -> 0.2729677303 | M14: 1.462213952 | N14: 3.961434417 | O14: 6.920003159 | P14: 0
E16: ='RCV and post 2020 investment'!E39 -> Water Network Plus Embedded debt for return | F16: ='RCV and post 2020 investment'!F39 -> 0 | G16: ='RCV and post 2020 investment'!G39 -> £m | H16: ='RCV and post 2020 investment'!H39 -> 4465.116139 | I16: ='RCV and post 2020 investment'!I39 -> 0 | J16: ='RCV and post 2020 investment'!J39 -> 0 | K16: ='RCV and post 2020 investment'!K39 -> 996.6695153 | L16: ='RCV and post 2020 investment'!L39 -> 950.1536546 | M16: ='RCV and post 2020 investment'!M39 -> 901.3550945 | N16: ='RCV and post 2020 investment'!N39 -> 842.5841488 | O16: ='RCV and post 2020 investment'!O39 -> 774.3537259 | P16: ='RCV and post 2020 investment'!P56 -> 0
E17: =InpR!E$37 -> Allowed sector embedded debt cost (not inc. CSA) - final determination (CPIH real) | F17: =InpR!F$37 -> 0 | G17: =InpR!G$37 -> percentage | H17: =InpR!H$37 -> 0 | I17: =InpR!I$37 -> 0 | J17: =InpR!J$37 -> 0 | K17: =InpR!K$37 -> 0.02470588235 | L17: =InpR!L$37 -> 0.02470588235 | M17: =InpR!M$37 -> 0.02470588235 | N17: =InpR!N$37 -> 0.02470588235 | O17: =InpR!O$37 -> 0.02470588235 | P17: =InpR!P$37 -> 0
E18: Allowed sector embedded debt cost (after any CSA adjustments) | K18: =K17+(K8*K10) -> 0.02470588235 | L18: =L17+(L8*L10) -> 0.02470588235 | M18: 0.02470588235 | N18: 0.02470588235 | O18: 0.02470588235
E19: Water network + Embedded debt interest cost | G19: £m | H19: =SUM(J19:O19) -> 110.314634 | J19: =J16 * J17 -> 0 | K19: =K16 * K18 -> 24.62359979 | L19: =L16 * L18 -> 23.47438441 | M19: 22.26877292 | N19: 20.81678485 | O19: 19.13109205 | P19: =P16 * P17 -> 0
E21: Water network + outturn allowed new debt cost (CPIH real) | F21: 0 | G21: Percentage | K21: =K12 -> 0.001607591799 | L21: =L12 -> 0.002529260901 | M21: 0.007920346411 | N21: 0.01505279683 | O21: 0.02026772226
E22: Water network + allowed embedded debt cost (CPIH real) | F22: 0 | G22: Percentage | K22: =K18 -> 0.02470588235 | L22: =L18 -> 0.02470588235 | M22: 0.02470588235 | N22: 0.02470588235 | O22: 0.02470588235 | P22: =P17 -> 0
E23: Ratio of new to embedded debt for outturn cost of debt allowance | F23: 0 | G23: Percentage | K23: =InpR!K57 -> 0.034 | L23: =InpR!L57 -> 0.102 | M23: =InpR!M57 -> 0.17 | N23: =InpR!N57 -> 0.238 | O23: =InpR!O57 -> 0.306
E24: Water network + outturn allowed cost of overall debt (CPIH real) | F24: 0 | G24: Percentage | K24: =(K23*K21)+(1-K23)*K22 -> 0.02392054047 | L24: =(L23*L21)+(1-L23)*L22 -> 0.02244386696 | M24: =(M23*M21)+(1-M23)*M22 -> 0.02185234124 | N24: =(N23*N21)+(1-N23)*N22 -> 0.022408448 | O24: =(O23*O21)+(1-O23)*O22 -> 0.02334780537
E25: CPIH inflation (long-term assumption) | F25: 0 | G25: Percentage | K25: =InpR!K59 -> 0.02 | L25: =InpR!L59 -> 0.02 | M25: =InpR!M59 -> 0.02 | N25: =InpR!N59 -> 0.02 | O25: =InpR!O59 -> 0.02
E26: Issuance and liquidity costs | G26: Percentage | K26: =InpR!K38 -> 0.001 | L26: =InpR!L38 -> 0.001 | M26: =InpR!M38 -> 0.001 | N26: =InpR!N38 -> 0.001 | O26: =InpR!O38 -> 0.001
E27: Water network + outturn allowed cost of overall debt (Nominal) | F27: 0 | G27: Percentage | K27: =((1+K24)*(1+K25)-1)+K26 -> 0.04539895128 | L27: 0.0438927443 | M27: =((1+M24)*(1+M25)-1)+M26 -> 0.04328938807 | N27: =((1+N24)*(1+N25)-1)+N26 -> 0.04385661696 | O27: 0.04481476147
E29: =E$14 -> Water network + extending trailing average interest cost | F29: 0 | G29: £m | H29: 12.67301272 | I29: 0 | J29: 0 | K29: 0.05639346079 | L29: 0.2729677303 | M29: 1.462213952 | N29: 3.961434417 | O29: 6.920003159 | P29: 0
E30: =E$19 -> Water network + Embedded debt interest cost | F30: =F$19 -> 0 | G30: =G$19 -> £m | H30: 110.314634 | I30: 0 | J30: 0 | K30: 24.62359979 | L30: 23.47438441 | M30: 22.26877292 | N30: 20.81678485 | O30: 19.13109205 | P30: 0
E31: Water network + outturn debt allowance | G31: £m | H31: =SUM(J31:O31) -> 122.9876467 | J31: =SUM(J29:J30) -> 0 | K31: 24.67999325 | L31: 23.74735214 | M31: 23.73098688 | N31: 24.77821927 | O31: 26.05109521 | P31: 0
A33: FD ALLOWANCE
E34: =InpC!E51 -> Notional % of 'new' debt over period | F34: =InpC!F51 -> 0.17 | G34: =InpC!G51 -> percentage | K34: =$F$34 -> 0.17 | L34: =$F$34 -> 0.17 | M34: 0.17 | N34: 0.17 | O34: 0.17 | P34: =InpR!P36 -> 0
E35: =InpR!E36 -> Allowed sector new debt cost (not inc. CSA) - final determination (CPIH real) | F35: =InpR!F36 -> 0 | G35: =InpR!G36 -> percentage | H35: =InpR!H36 -> 0 | I35: =InpR!I36 -> 0 | J35: =InpR!J36 -> 0 | K35: =InpR!K36 -> 0.001862745098 | L35: =InpR!L36 -> 0.001862745098 | M35: =InpR!M36 -> 0.001862745098 | N35: =InpR!N36 -> 0.001862745098 | O35: =InpR!O36 -> 0.001862745098 | P35: =P13 -> 0
E36: Allowed sector cost of new debt (after any CSA adjustments) | K36: =K35+(K8*K9) -> 0.001862745098 | L36: =L35+(L8*L9) -> 0.001862745098 | M36: =M35+(M8*M9) -> 0.001862745098 | N36: =N35+(N8*N9) -> 0.001862745098 | O36: =O35+(O8*O9) -> 0.001862745098
E37: =InpR!E37 -> Allowed sector embedded debt cost (not inc. CSA) - final determination (CPIH real) | F37: =InpR!F37 -> 0 | G37: =InpR!G37 -> percentage | H37: =InpR!H37 -> 0 | I37: =InpR!I37 -> 0 | J37: =InpR!J37 -> 0 | K37: =InpR!K37 -> 0.02470588235 | L37: =InpR!L37 -> 0.02470588235 | M37: =InpR!M37 -> 0.02470588235 | N37: =InpR!N37 -> 0.02470588235 | O37: =InpR!O37 -> 0.02470588235 | P37: =P34*P35 -> 0
E38: Allowed sector cost of embedded debt (after any CSA adjustments) | K38: =K37+(K8*K10) -> 0.02470588235 | L38: =L37+(L8*L10) -> 0.02470588235 | M38: =M37+(M8*M10) -> 0.02470588235 | N38: =N37+(N8*N10) -> 0.02470588235 | O38: =O37+(O8*O10) -> 0.02470588235
E39: ='RCV and post 2020 investment'!E31 -> Water Network Plus Notional debt | F39: ='RCV and post 2020 investment'!F31 -> 0 | G39: ='RCV and post 2020 investment'!G31 -> £m | H39: ='RCV and post 2020 investment'!H31 -> 5397.333483 | I39: ='RCV and post 2020 investment'!I31 -> 0 | J39: ='RCV and post 2020 investment'!J31 -> 0 | K39: ='RCV and post 2020 investment'!K31 -> 1031.748981 | L39: ='RCV and post 2020 investment'!L31 -> 1058.077566 | M39: ='RCV and post 2020 investment'!M31 -> 1085.969993 | N39: ='RCV and post 2020 investment'!N31 -> 1105.753476 | O39: ='RCV and post 2020 investment'!O31 -> 1115.783467
E40: Water network + initial cost of debt allowance | G40: £m | I40: =I$14 -> 0 | K40: =(K39 * $K34 * K36) + (K39 * (1-$K34) * K38) -> 21.48364373 | L40: =(L39 * $K34 * L36) + (L39 * (1-$K34) * L38) -> 22.03187199 | M40: 22.61266342 | N40: 23.02460596 | O40: 23.23345593 | P40: =(P39 * $F34 * P35) + (P39 * (1-$F34) * P37) -> 0
P41: =P14 -> 0
A42: RECONCILIATION ADJUSTMENTS | P42: =P40-P41 -> 0
E43: =E$31 -> Water network + outturn debt allowance | F43: =F$31 -> 0 | G43: £m | H43: 122.9876467 | I43: 0 | J43: 0 | K43: 24.67999325 | L43: 23.74735214 | M43: 23.73098688 | N43: 24.77821927 | O43: 26.05109521
E44: =E$40 -> Water network + initial cost of debt allowance | F44: =F$40 -> 0 | G44: £m | H44: 0 | I44: 0 | J44: 0 | K44: 21.48364373 | L44: 22.03187199 | M44: 22.61266342 | N44: 23.02460596 | O44: 23.23345593
E45: Reconciliation (in-year values) - Water network + | G45: £m | H45: =SUM(J45:O45) -> 10.60140571 | J45: =J43-J44 -> 0 | K45: 3.196349525 | L45: 1.715480146 | M45: 1.118323454 | N45: 1.75361331 | O45: 2.81763928
E47: =InpC!E$61 -> PV base date | F47: =InpC!F$61 -> 2025-03-31 | G47: =InpC!G$61 -> date
E48: =InpC!E$62 -> Days in a year | F48: =InpC!F$62 -> 365 | G48: =InpC!G$62 -> days
E49: =Time!E$22 -> Model Period END | F49: =Time!F$22 -> 0 | G49: =Time!G$22 -> date | H49: =Time!H$22 -> 00:00:00 | I49: =Time!I$22 -> 00:00:00 | J49: =Time!J$22 -> 2020-03-31 | K49: =Time!K$22 -> 2021-03-31 | L49: =Time!L$22 -> 2022-03-31 | M49: =Time!M$22 -> 2023-03-31 | N49: =Time!N$22 -> 2024-03-31 | O49: =Time!O$22 -> 2025-03-31 | P49: =Time!P$22 -> 2026-03-31
E50: Years from valuation date - Water network + | G50: years | J50: =( ( J49 - $F47 ) / $F48 ) * -1 -> 5.002739726 | K50: 4.002739726 | L50: 3.002739726 | M50: 2.002739726 | N50: 1 | O50: 0
E52: =InpC!E56 -> PR19 appointee allowed return on capital (CPIH-deflated using long-term assumption) | F52: =InpC!F56 -> 0.0319998 | G52: =InpC!G56 -> percentage | K52: =$F$52 -> 0.0319998 | L52: =$F$52 -> 0.0319998 | M52: 0.0319998 | N52: 0.0319998 | O52: 0.0319998
E53: =E$50 -> Years from valuation date - Water network + | F53: =F$50 -> 0 | G53: years | H53: 0 | I53: 0 | J53: 5.002739726 | K53: 4.002739726 | L53: 3.002739726 | M53: 2.002739726 | N53: 1 | O53: 0
E54: Discount factor - Water network + | G54: Factor | J54: =(1+$F52) ^J53 -> 1.170672844 | K54: 1.13437313 | L54: 1.099198983 | M54: 1.0651155 | N54: 1.0319998 | O54: 1
E56: =E$45 -> Reconciliation (in-year values) - Water network + | F56: =F$45 -> 0 | G56: £m | H56: 10.60140571 | I56: 0 | J56: 0 | K56: 3.196349525 | L56: 1.715480146 | M56: 1.118323454 | N56: 1.75361331 | O56: 2.81763928
E57: =E$54 -> Discount factor - Water network + | F57: =F$54 -> 0 | G57: Factor | H57: 0 | I57: 0 | J57: 1.170672844 | K57: 1.13437313 | L57: 1.099198983 | M57: 1.0651155 | N57: 1.0319998 | O57: 1
E58: Discounted reconciliation (in-year values) Water network + | G58: £m | K58: =K57*K56 -> 3.625853016 | L58: =L57*L56 -> 1.885654031 | M58: =M57*M56 -> 1.191143644 | N58: =N57*N56 -> 1.809728585 | O58: =O57*O56 -> 2.81763928
E60: =E$58 -> Discounted reconciliation (in-year values) Water network + | F60: =F$58 -> 0 | G60: £m | H60: 0 | I60: 0 | J60: 0 | K60: 3.625853016 | L60: 1.885654031 | M60: 1.191143644 | N60: 1.809728585 | O60: 2.81763928
E61: Total value of reconciliation (31 March 2025 present values): Water network + | G61: £m | H61: =SUM(K60:O60) -> 11.33001856

Sheet Wastewater network +
A1: =RIGHT(CELL("filename", $A$1), LEN(CELL("filename", $A$1)) - SEARCH("]", CELL("filename", $A$1))) -> Wastewater network +
J2: =Time!J$22 -> 2020-03-31 | K2: =Time!K$22 -> 2021-03-31 | L2: =Time!L$22 -> 2022-03-31 | M2: =Time!M$22 -> 2023-03-31 | N2: =Time!N$22 -> 2024-03-31 | O2: =Time!O$22 -> 2025-03-31 | P2: =Time!P$22 -> 2026-03-31
J3: =Time!J$58 -> Pre Fcst | K3: =Time!K$58 -> Forecast | L3: =Time!L$58 -> Forecast | M3: =Time!M$58 -> Forecast | N3: =Time!N$58 -> Forecast | O3: =Time!O$58 -> Forecast | P3: =Time!P$58 -> Post-Fcst
E4: =Time!E$86 -> Financial Year Ending | J4: =Time!J$86 -> 2020 | K4: =Time!K$86 -> 2021 | L4: =Time!L$86 -> 2022 | M4: =Time!M$86 -> 2023 | N4: =Time!N$86 -> 2024 | O4: =Time!O$86 -> 2025 | P4: =Time!P$86 -> 2026
E5: =Time!E$10 -> Model column counter | F5: Constant | G5: Unit | H5: Total | J5: =Time!J$10 -> 1 | K5: =Time!K$10 -> 2 | L5: =Time!L$10 -> 3 | M5: =Time!M$10 -> 4 | N5: =Time!N$10 -> 5 | O5: =Time!O$10 -> 6 | P5: =Time!P$10 -> 7
A7: COST OF DEBT CALCULATION BASED ON INDEX OUTTURN
E8: Company-specific adjustment flag | F8: =IF(InpC!$F$68="YES",1,0) -> 0 | G8: Flag | K8: =$F$8 -> 0 | L8: =$F$8 -> 0 | M8: 0 | N8: 0 | O8: 0
E9: =InpC!E64 -> Company-specific adjustment (new debt) | F9: =InpC!F64 -> 0 | G9: ='Cost of Debt'!G47 -> Percentage | K9: =$F$9 -> 0 | L9: =$F$9 -> 0 | M9: 0 | N9: 0 | O9: 0
E10: =InpC!E65 -> Company-specific adjustment (embedded debt) | F10: =InpC!$F$65 -> 0 | G10: ='Cost of Debt'!G48 -> Percentage | K10: =$F$10 -> 0 | L10: =$F$10 -> 0 | M10: =$F$10 -> 0 | N10: =$F$10 -> 0 | O10: =$F$10 -> 0
E11: ='Cost of Debt'!E48 -> Extending trailing average rate | F11: ='Cost of Debt'!F48 -> 0 | G11: ='Cost of Debt'!G48 -> Percentage | H11: ='Cost of Debt'!H48 -> 0 | I11: ='Cost of Debt'!I48 -> 0 | J11: ='Cost of Debt'!J48 -> 0 | K11: ='Cost of Debt'!K48 -> 0.001607591799 | L11: ='Cost of Debt'!L48 -> 0.002529260901 | M11: ='Cost of Debt'!M48 -> 0.007920346411 | N11: ='Cost of Debt'!N48 -> 0.01505279683 | O11: ='Cost of Debt'!O48 -> 0.02026772226 | P11: ='Cost of Debt'!P48 -> 0
E12: Extending trailing average rate (after any CSA adjustments) | G12: Percentage | K12: =K11+(K8*K9) -> 0.001607591799 | L12: =L11+(L8*L9) -> 0.002529260901 | M12: 0.007920346411 | N12: 0.01505279683 | O12: 0.02026772226 | P12: 0
E13: ='RCV and post 2020 investment'!E52 -> Wastewater Network Plus New debt for return | F13: ='RCV and post 2020 investment'!F52 -> 0 | G13: ='RCV and post 2020 investment'!G52 -> £m | H13: ='RCV and post 2020 investment'!H52 -> 983.8625059 | I13: ='RCV and post 2020 investment'!I52 -> 0 | J13: ='RCV and post 2020 investment'!J52 -> 0 | K13: ='RCV and post 2020 investment'!K52 -> 37.32009356 | L13: ='RCV and post 2020 investment'!L52 -> 112.3981684 | M13: ='RCV and post 2020 investment'!M52 -> 190.3342732 | N13: ='RCV and post 2020 investment'!N52 -> 276.1234206 | O13: ='RCV and post 2020 investment'!O52 -> 367.6865502 | P13: ='RCV and post 2020 investment'!P52 -> 0
E14: Wastewater network + extending trailing average interest cost | G14: £m | H14: =SUM(J14:O14) -> 13.46039178 | J14: =J11 * J13 -> 0 | K14: =K12 * K13 -> 0.05999547634 | L14: =L12 * L13 -> 0.2842842926 | M14: 1.507513378 | N14: 4.156429751 | O14: 7.452168879 | P14: 0
E16: ='RCV and post 2020 investment'!E56 -> Wastewater Network Plus Embedded debt for return | F16: ='RCV and post 2020 investment'!F56 -> 0 | G16: ='RCV and post 2020 investment'!G56 -> £m | H16: ='RCV and post 2020 investment'!H56 -> 4697.115977 | I16: ='RCV and post 2020 investment'!I56 -> 0 | J16: ='RCV and post 2020 investment'!J56 -> 0 | K16: ='RCV and post 2020 investment'!K56 -> 1060.329717 | L16: ='RCV and post 2020 investment'!L56 -> 989.5446588 | M16: ='RCV and post 2020 investment'!M56 -> 929.2790988 | N16: ='RCV and post 2020 investment'!N56 -> 884.0590188 | O16: ='RCV and post 2020 investment'!O56 -> 833.9034831 | P16: ='RCV and post 2020 investment'!P56 -> 0
E17: =InpR!E$37 -> Allowed sector embedded debt cost (not inc. CSA) - final determination (CPIH real) | F17: =InpR!F$37 -> 0 | G17: =InpR!G$37 -> percentage | H17: =InpR!H$37 -> 0 | I17: =InpR!I$37 -> 0 | J17: =InpR!J$37 -> 0 | K17: =InpR!K$37 -> 0.02470588235 | L17: =InpR!L$37 -> 0.02470588235 | M17: =InpR!M$37 -> 0.02470588235 | N17: =InpR!N$37 -> 0.02470588235 | O17: =InpR!O$37 -> 0.02470588235 | P17: =InpR!P$37 -> 0
E18: Allowed sector embedded debt cost (after any CSA adjustments) | K18: =K17+(K8*K10) -> 0.02470588235 | L18: =L17+(L8*L10) -> 0.02470588235 | M18: 0.02470588235 | N18: 0.02470588235 | O18: 0.02470588235
E19: Wastewater network + Embedded debt interest cost | G19: £m | H19: =SUM(J19:O19) -> 116.0463947 | J19: =J16 * J17 -> 0 | K19: =K16 * K18 -> 26.19638125 | L19: =L16 * L18 -> 24.44757392 | M19: 22.95866009 | N19: 21.84145811 | O19: 20.60232135 | P19: =P16 * P17 -> 0
E21: Wastewater network + outturn allowed new debt cost (CPIH real) | F21: 0 | G21: Percentage | K21: =K12 -> 0.001607591799 | L21: =L12 -> 0.002529260901 | M21: 0.007920346411 | N21: 0.01505279683 | O21: 0.02026772226
E22: Wastewater network + allowed embedded debt cost (CPIH real) | F22: 0 | G22: Percentage | K22: =K18 -> 0.02470588235 | L22: =L18 -> 0.02470588235 | M22: 0.02470588235 | N22: 0.02470588235 | O22: 0.02470588235 | P22: =P17 -> 0
E23: Ratio of new to embedded debt for outturn cost of debt allowance | F23: 0 | G23: Percentage | K23: =InpR!K57 -> 0.034 | L23: =InpR!L57 -> 0.102 | M23: =InpR!M57 -> 0.17 | N23: =InpR!N57 -> 0.238 | O23: =InpR!O57 -> 0.306
E24: Wastewater network + outturn allowed cost of overall debt (CPIH real) | F24: 0 | G24: Percentage | K24: =(K23*K21)+(1-K23)*K22 -> 0.02392054047 | L24: =(L23*L21)+(1-L23)*L22 -> 0.02244386696 | M24: =(M23*M21)+(1-M23)*M22 -> 0.02185234124 | N24: =(N23*N21)+(1-N23)*N22 -> 0.022408448 | O24: =(O23*O21)+(1-O23)*O22 -> 0.02334780537
E25: CPIH inflation (long-term assumption) | F25: 0 | G25: Percentage | K25: =InpR!K59 -> 0.02 | L25: =InpR!L59 -> 0.02 | M25: =InpR!M59 -> 0.02 | N25: =InpR!N59 -> 0.02 | O25: =InpR!O59 -> 0.02
E26: Issuance and liquidity costs | G26: Percentage | K26: =InpR!K38 -> 0.001 | L26: =InpR!L38 -> 0.001 | M26: =InpR!M38 -> 0.001 | N26: =InpR!N38 -> 0.001 | O26: =InpR!O38 -> 0.001
E27: Wastewater network + outturn allowed cost of overall debt (Nominal) | F27: 0 | G27: Percentage | K27: =((1+K24)*(1+K25)-1)+K26 -> 0.04539895128 | L27: 0.0438927443 | M27: =((1+M24)*(1+M25)-1)+M26 -> 0.04328938807 | N27: =((1+N24)*(1+N25)-1)+N26 -> 0.04385661696 | O27: 0.04481476147
E29: =E$14 -> Wastewater network + extending trailing average interest cost | F29: 0 | G29: £m | H29: 13.46039178 | I29: 0 | J29: 0 | K29: 0.05999547634 | L29: 0.2842842926 | M29: 1.507513378 | N29: 4.156429751 | O29: 7.452168879 | P29: 0
E30: =E$19 -> Wastewater network + Embedded debt interest cost | F30: =F$19 -> 0 | G30: =G$19 -> £m | H30: 116.0463947 | I30: 0 | J30: 0 | K30: 26.19638125 | L30: 24.44757392 | M30: 22.95866009 | N30: 21.84145811 | O30: 20.60232135 | P30: 0
E31: Wastewater network + outturn debt allowance | G31: £m | H31: =SUM(J31:O31) -> 129.5067865 | J31: =SUM(J29:J30) -> 0 | K31: 26.25637672 | L31: 24.73185822 | M31: 24.46617346 | N31: 25.99788786 | O31: 28.05449023 | P31: 0
A33: FD ALLOWANCE
E34: =InpC!E51 -> Notional % of 'new' debt over period | F34: =InpC!F51 -> 0.17 | G34: =InpC!G51 -> percentage | K34: =$F$34 -> 0.17 | L34: =$F$34 -> 0.17 | M34: 0.17 | N34: 0.17 | O34: 0.17 | P34: =InpR!P36 -> 0
E35: =InpR!E36 -> Allowed sector new debt cost (not inc. CSA) - final determination (CPIH real) | F35: =InpR!F36 -> 0 | G35: =InpR!G36 -> percentage | H35: =InpR!H36 -> 0 | I35: =InpR!I36 -> 0 | J35: =InpR!J36 -> 0 | K35: =InpR!K36 -> 0.001862745098 | L35: =InpR!L36 -> 0.001862745098 | M35: =InpR!M36 -> 0.001862745098 | N35: =InpR!N36 -> 0.001862745098 | O35: =InpR!O36 -> 0.001862745098 | P35: =P13 -> 0
E36: Allowed sector cost of new debt (after any CSA adjustments) | K36: =K35+(K8*K9) -> 0.001862745098 | L36: =L35+(L8*L9) -> 0.001862745098 | M36: =M35+(M8*M9) -> 0.001862745098 | N36: =N35+(N8*N9) -> 0.001862745098 | O36: =O35+(O8*O9) -> 0.001862745098
E37: =InpR!E37 -> Allowed sector embedded debt cost (not inc. CSA) - final determination (CPIH real) | F37: =InpR!F37 -> 0 | G37: =InpR!G37 -> percentage | H37: =InpR!H37 -> 0 | I37: =InpR!I37 -> 0 | J37: =InpR!J37 -> 0 | K37: =InpR!K37 -> 0.02470588235 | L37: =InpR!L37 -> 0.02470588235 | M37: =InpR!M37 -> 0.02470588235 | N37: =InpR!N37 -> 0.02470588235 | O37: =InpR!O37 -> 0.02470588235 | P37: =P34*P35 -> 0
E38: Allowed sector cost of embedded debt (after any CSA adjustments) | K38: =K37+(K8*K10) -> 0.02470588235 | L38: =L37+(L8*L10) -> 0.02470588235 | M38: =M37+(M8*M10) -> 0.02470588235 | N38: =N37+(N8*N10) -> 0.02470588235 | O38: =O37+(O8*O10) -> 0.02470588235
E39: ='RCV and post 2020 investment'!E48 -> Wastewater Network Plus Notional debt | F39: ='RCV and post 2020 investment'!F48 -> 0 | G39: ='RCV and post 2020 investment'!G48 -> £m | H39: ='RCV and post 2020 investment'!H48 -> 5680.978482 | I39: ='RCV and post 2020 investment'!I48 -> 0 | J39: ='RCV and post 2020 investment'!J48 -> 0 | K39: ='RCV and post 2020 investment'!K48 -> 1097.649811 | L39: ='RCV and post 2020 investment'!L48 -> 1101.942827 | M39: ='RCV and post 2020 investment'!M48 -> 1119.613372 | N39: ='RCV and post 2020 investment'!N48 -> 1160.182439 | O39: ='RCV and post 2020 investment'!O48 -> 1201.590033
E40: Wastewater network + initial cost of debt allowance | G40: £m | I40: =I$14 -> 0 | K40: =(K39 * $K34 * K36) + (K39 * (1-$K34) * K38) -> 22.85586699 | L40: =(L39 * $K34 * L36) + (L39 * (1-$K34) * L38) -> 22.94525854 | M40: 23.31320432 | N40: 24.15795572 | O40: 25.02016737 | P40: =(P39 * $F34 * P35) + (P39 * (1-$F34) * P37) -> 0
P41: =P14 -> 0
A42: RECONCILIATION ADJUSTMENTS | P42: =P40-P41 -> 0
E43: =E$31 -> Wastewater network + outturn debt allowance | F43: =F$31 -> 0 | G43: £m | H43: 129.5067865 | I43: 0 | J43: 0 | K43: 26.25637672 | L43: 24.73185822 | M43: 24.46617346 | N43: 25.99788786 | O43: 28.05449023
E44: =E$40 -> Wastewater network + initial cost of debt allowance | F44: =F$40 -> 0 | G44: £m | H44: 0 | I44: 0 | J44: 0 | K44: 22.85586699 | L44: 22.94525854 | M44: 23.31320432 | N44: 24.15795572 | O44: 25.02016737
E45: Reconciliation (in-year values) - Wastewater network + | G45: £m | H45: =SUM(J45:O45) -> 11.21433356 | J45: =J43-J44 -> 0 | K45: 3.400509734 | L45: 1.78659968 | M45: 1.152969143 | N45: 1.839932147 | O45: 3.034322857
E47: =InpC!E$61 -> PV base date | F47: =InpC!F$61 -> 2025-03-31 | G47: =InpC!G$61 -> date
E48: =InpC!E$62 -> Days in a year | F48: =InpC!F$62 -> 365 | G48: =InpC!G$62 -> days
E49: =Time!E$22 -> Model Period END | F49: =Time!F$22 -> 0 | G49: =Time!G$22 -> date | H49: =Time!H$22 -> 00:00:00 | I49: =Time!I$22 -> 00:00:00 | J49: =Time!J$22 -> 2020-03-31 | K49: =Time!K$22 -> 2021-03-31 | L49: =Time!L$22 -> 2022-03-31 | M49: =Time!M$22 -> 2023-03-31 | N49: =Time!N$22 -> 2024-03-31 | O49: =Time!O$22 -> 2025-03-31 | P49: =Time!P$22 -> 2026-03-31
E50: Years from valuation date - Wastewater network + | G50: years | J50: =( ( J49 - $F47 ) / $F48 ) * -1 -> 5.002739726 | K50: 4.002739726 | L50: 3.002739726 | M50: 2.002739726 | N50: 1 | O50: 0
E52: =InpC!E56 -> PR19 appointee allowed return on capital (CPIH-deflated using long-term assumption) | F52: =InpC!F56 -> 0.0319998 | G52: =InpC!G56 -> percentage | K52: =$F$52 -> 0.0319998 | L52: =$F$52 -> 0.0319998 | M52: 0.0319998 | N52: 0.0319998 | O52: 0.0319998
E53: =E$50 -> Years from valuation date - Wastewater network + | F53: =F$50 -> 0 | G53: years | H53: 0 | I53: 0 | J53: 5.002739726 | K53: 4.002739726 | L53: 3.002739726 | M53: 2.002739726 | N53: 1 | O53: 0
E54: Discount factor - Wastewater network + | G54: Factor | J54: =(1+$F52) ^J53 -> 1.170672844 | K54: 1.13437313 | L54: 1.099198983 | M54: 1.0651155 | N54: 1.0319998 | O54: 1
E56: =E$45 -> Reconciliation (in-year values) - Wastewater network + | F56: =F$45 -> 0 | G56: £m | H56: 11.21433356 | I56: 0 | J56: 0 | K56: 3.400509734 | L56: 1.78659968 | M56: 1.152969143 | N56: 1.839932147 | O56: 3.034322857
E57: =E$54 -> Discount factor - Wastewater network + | F57: =F$54 -> 0 | G57: Factor | H57: 0 | I57: 0 | J57: 1.170672844 | K57: 1.13437313 | L57: 1.099198983 | M57: 1.0651155 | N57: 1.0319998 | O57: 1
E58: Discounted reconciliation (in-year values) Wastewater network + | G58: £m | K58: =K57*K56 -> 3.857446871 | L58: =L57*L56 -> 1.963828551 | M58: =M57*M56 -> 1.228045305 | N58: =N57*N56 -> 1.898809608 | O58: =O57*O56 -> 3.034322857
E60: =E$58 -> Discounted reconciliation (in-year values) Wastewater network + | F60: =F$58 -> 0 | G60: £m | H60: 0 | I60: 0 | J60: 0 | K60: 3.857446871 | L60: 1.963828551 | M60: 1.228045305 | N60: 1.898809608 | O60: 3.034322857
E61: Total value of reconciliation (31 March 2025 present values): Wastewater network + | G61: £m | H61: =SUM(K60:O60) -> 11.98245319

Sheet Bioresources
A1: =RIGHT(CELL("filename", $A$1), LEN(CELL("filename", $A$1)) - SEARCH("]", CELL("filename", $A$1))) -> Bioresources
J2: =Time!J$22 -> 2020-03-31 | K2: =Time!K$22 -> 2021-03-31 | L2: =Time!L$22 -> 2022-03-31 | M2: =Time!M$22 -> 2023-03-31 | N2: =Time!N$22 -> 2024-03-31 | O2: =Time!O$22 -> 2025-03-31 | P2: =Time!P$22 -> 2026-03-31
J3: =Time!J$58 -> Pre Fcst | K3: =Time!K$58 -> Forecast | L3: =Time!L$58 -> Forecast | M3: =Time!M$58 -> Forecast | N3: =Time!N$58 -> Forecast | O3: =Time!O$58 -> Forecast | P3: =Time!P$58 -> Post-Fcst
E4: =Time!E$86 -> Financial Year Ending | J4: =Time!J$86 -> 2020 | K4: =Time!K$86 -> 2021 | L4: =Time!L$86 -> 2022 | M4: =Time!M$86 -> 2023 | N4: =Time!N$86 -> 2024 | O4: =Time!O$86 -> 2025 | P4: =Time!P$86 -> 2026
E5: =Time!E$10 -> Model column counter | F5: Constant | G5: Unit | H5: Total | J5: =Time!J$10 -> 1 | K5: =Time!K$10 -> 2 | L5: =Time!L$10 -> 3 | M5: =Time!M$10 -> 4 | N5: =Time!N$10 -> 5 | O5: =Time!O$10 -> 6 | P5: =Time!P$10 -> 7
A7: COST OF DEBT CALCULATION BASED ON INDEX OUTTURN
E8: Company-specific adjustment flag | F8: =IF(InpC!$F$69="YES",1,0) -> 0 | G8: Flag | K8: =$F$8 -> 0 | L8: =$F$8 -> 0 | M8: 0 | N8: 0 | O8: 0
E9: =InpC!E64 -> Company-specific adjustment (new debt) | F9: =InpC!F64 -> 0 | G9: ='Cost of Debt'!G47 -> Percentage | K9: =$F$9 -> 0 | L9: =$F$9 -> 0 | M9: 0 | N9: 0 | O9: 0
E10: =InpC!E65 -> Company-specific adjustment (embedded debt) | F10: =InpC!$F$65 -> 0 | G10: ='Cost of Debt'!G48 -> Percentage | K10: =$F$10 -> 0 | L10: =$F$10 -> 0 | M10: =$F$10 -> 0 | N10: =$F$10 -> 0 | O10: =$F$10 -> 0
E11: ='Cost of Debt'!E48 -> Extending trailing average rate | F11: ='Cost of Debt'!F48 -> 0 | G11: ='Cost of Debt'!G48 -> Percentage | H11: ='Cost of Debt'!H48 -> 0 | I11: ='Cost of Debt'!I48 -> 0 | J11: ='Cost of Debt'!J48 -> 0 | K11: ='Cost of Debt'!K48 -> 0.001607591799 | L11: ='Cost of Debt'!L48 -> 0.002529260901 | M11: ='Cost of Debt'!M48 -> 0.007920346411 | N11: ='Cost of Debt'!N48 -> 0.01505279683 | O11: ='Cost of Debt'!O48 -> 0.02026772226 | P11: ='Cost of Debt'!P48 -> 0
E12: Extending trailing average rate (after any CSA adjustments) | G12: Percentage | K12: =K11+(K8*K9) -> 0.001607591799 | L12: =L11+(L8*L9) -> 0.002529260901 | M12: 0.007920346411 | N12: 0.01505279683 | O12: 0.02026772226 | P12: 0
E13: ='RCV and post 2020 investment'!E69 -> Bioresources New debt for return | F13: ='RCV and post 2020 investment'!F69 -> 0 | G13: ='RCV and post 2020 investment'!G69 -> £m | H13: ='RCV and post 2020 investment'!H69 -> 70.17486356 | I13: ='RCV and post 2020 investment'!I69 -> 0 | J13: ='RCV and post 2020 investment'!J69 -> 0 | K13: ='RCV and post 2020 investment'!K69 -> 2.805318734 | L13: ='RCV and post 2020 investment'!L69 -> 8.381065854 | M13: ='RCV and post 2020 investment'!M69 -> 13.97409663 | N13: ='RCV and post 2020 investment'!N69 -> 19.63004561 | O13: ='RCV and post 2020 investment'!O69 -> 25.38433674 | P13: ='RCV and post 2020 investment'!P69 -> 0
E14: Bioresources extending trailing average interest cost | G14: £m | H14: =SUM(J14:O14) -> 0.9463571708 | J14: =J11 * J13 -> 0 | K14: =K12 * K13 -> 0.00450980739 | L14: =L12 * L13 -> 0.02119790217 | M14: 0.1106796861 | N14: 0.2954870884 | O14: 0.5144826868 | P14: 0
E16: ='RCV and post 2020 investment'!E73 -> Bioresources Embedded debt for return | F16: ='RCV and post 2020 investment'!F73 -> 0 | G16: ='RCV and post 2020 investment'!G73 -> £m | H16: ='RCV and post 2020 investment'!H73 -> 342.1369237 | I16: ='RCV and post 2020 investment'!I73 -> 0 | J16: ='RCV and post 2020 investment'!J73 -> 0 | K16: ='RCV and post 2020 investment'!K73 -> 79.70405579 | L16: ='RCV and post 2020 investment'!L73 -> 73.78624644 | M16: ='RCV and post 2020 investment'!M73 -> 68.22647178 | N16: ='RCV and post 2020 investment'!N73 -> 62.84913762 | O16: ='RCV and post 2020 investment'!O73 -> 57.57101207 | P16: ='RCV and post 2020 investment'!P73 -> 0
E17: =InpR!E$37 -> Allowed sector embedded debt cost (not inc. CSA) - final determination (CPIH real) | F17: =InpR!F$37 -> 0 | G17: =InpR!G$37 -> percentage | H17: =InpR!H$37 -> 0 | I17: =InpR!I$37 -> 0 | J17: =InpR!J$37 -> 0 | K17: =InpR!K$37 -> 0.02470588235 | L17: =InpR!L$37 -> 0.02470588235 | M17: =InpR!M$37 -> 0.02470588235 | N17: =InpR!N$37 -> 0.02470588235 | O17: =InpR!O$37 -> 0.02470588235 | P17: =InpR!P$37 -> 0
E18: Allowed sector embedded debt cost (after any CSA adjustments) | K18: =K17+(K8*K10) -> 0.02470588235 | L18: =L17+(L8*L10) -> 0.02470588235 | M18: 0.02470588235 | N18: 0.02470588235 | O18: 0.02470588235
E19: Bioresources Embedded debt interest cost | G19: £m | H19: =SUM(J19:O19) -> 8.452794586 | J19: =J16 * J17 -> 0 | K19: =K16 * K18 -> 1.969159025 | L19: =L16 * L18 -> 1.822954324 | M19: 1.685595185 | N19: 1.5527434 | O19: 1.422342651 | P19: =P16 * P17 -> 0
E21: Bioresources outturn allowed new debt cost (CPIH real) | F21: 0 | G21: Percentage | K21: =K12 -> 0.001607591799 | L21: =L12 -> 0.002529260901 | M21: 0.007920346411 | N21: 0.01505279683 | O21: 0.02026772226
E22: Bioresources allowed embedded debt cost (CPIH real) | F22: 0 | G22: Percentage | K22: =K18 -> 0.02470588235 | L22: =L18 -> 0.02470588235 | M22: 0.02470588235 | N22: 0.02470588235 | O22: 0.02470588235 | P22: =P17 -> 0
E23: Ratio of new to embedded debt for outturn cost of debt allowance | F23: 0 | G23: Percentage | K23: =InpR!K57 -> 0.034 | L23: =InpR!L57 -> 0.102 | M23: =InpR!M57 -> 0.17 | N23: =InpR!N57 -> 0.238 | O23: =InpR!O57 -> 0.306
E24: Bioresources outturn allowed cost of overall debt (CPIH real) | F24: 0 | G24: Percentage | K24: =(K23*K21)+(1-K23)*K22 -> 0.02392054047 | L24: =(L23*L21)+(1-L23)*L22 -> 0.02244386696 | M24: =(M23*M21)+(1-M23)*M22 -> 0.02185234124 | N24: =(N23*N21)+(1-N23)*N22 -> 0.022408448 | O24: =(O23*O21)+(1-O23)*O22 -> 0.02334780537
E25: CPIH inflation (long-term assumption) | F25: 0 | G25: Percentage | K25: =InpR!K59 -> 0.02 | L25: =InpR!L59 -> 0.02 | M25: =InpR!M59 -> 0.02 | N25: =InpR!N59 -> 0.02 | O25: =InpR!O59 -> 0.02
E26: Issuance and liquidity costs | G26: Percentage | K26: =InpR!K38 -> 0.001 | L26: =InpR!L38 -> 0.001 | M26: =InpR!M38 -> 0.001 | N26: =InpR!N38 -> 0.001 | O26: =InpR!O38 -> 0.001
E27: Bioresources outturn allowed cost of overall debt (Nominal) | F27: 0 | G27: Percentage | K27: =((1+K24)*(1+K25)-1)+K26 -> 0.04539895128 | L27: 0.0438927443 | M27: =((1+M24)*(1+M25)-1)+M26 -> 0.04328938807 | N27: =((1+N24)*(1+N25)-1)+N26 -> 0.04385661696 | O27: 0.04481476147
E29: =E$14 -> Bioresources extending trailing average interest cost | F29: 0 | G29: £m | H29: 0.9463571708 | I29: 0 | J29: 0 | K29: 0.00450980739 | L29: 0.02119790217 | M29: 0.1106796861 | N29: 0.2954870884 | O29: 0.5144826868 | P29: 0
E30: =E$19 -> Bioresources Embedded debt interest cost | F30: =F$19 -> 0 | G30: =G$19 -> £m | H30: 8.452794586 | I30: 0 | J30: 0 | K30: 1.969159025 | L30: 1.822954324 | M30: 1.685595185 | N30: 1.5527434 | O30: 1.422342651 | P30: 0
E31: Bioresources outturn debt allowance | G31: £m | H31: =SUM(J31:O31) -> 9.399151757 | J31: =SUM(J29:J30) -> 0 | K31: 1.973668833 | L31: 1.844152226 | M31: 1.796274871 | N31: 1.848230488 | O31: 1.936825338 | P31: 0
A33: FD ALLOWANCE
E34: =InpC!E51 -> Notional % of 'new' debt over period | F34: =InpC!F51 -> 0.17 | G34: =InpC!G51 -> percentage | K34: =$F$34 -> 0.17 | L34: =$F$34 -> 0.17 | M34: 0.17 | N34: 0.17 | O34: 0.17 | P34: =InpR!P36 -> 0
E35: =InpR!E36 -> Allowed sector new debt cost (not inc. CSA) - final determination (CPIH real) | F35: =InpR!F36 -> 0 | G35: =InpR!G36 -> percentage | H35: =InpR!H36 -> 0 | I35: =InpR!I36 -> 0 | J35: =InpR!J36 -> 0 | K35: =InpR!K36 -> 0.001862745098 | L35: =InpR!L36 -> 0.001862745098 | M35: =InpR!M36 -> 0.001862745098 | N35: =InpR!N36 -> 0.001862745098 | O35: =InpR!O36 -> 0.001862745098 | P35: =P13 -> 0
E36: Allowed sector cost of new debt (after any CSA adjustments) | K36: =K35+(K8*K9) -> 0.001862745098 | L36: =L35+(L8*L9) -> 0.001862745098 | M36: =M35+(M8*M9) -> 0.001862745098 | N36: =N35+(N8*N9) -> 0.001862745098 | O36: =O35+(O8*O9) -> 0.001862745098
E37: =InpR!E37 -> Allowed sector embedded debt cost (not inc. CSA) - final determination (CPIH real) | F37: =InpR!F37 -> 0 | G37: =InpR!G37 -> percentage | H37: =InpR!H37 -> 0 | I37: =InpR!I37 -> 0 | J37: =InpR!J37 -> 0 | K37: =InpR!K37 -> 0.02470588235 | L37: =InpR!L37 -> 0.02470588235 | M37: =InpR!M37 -> 0.02470588235 | N37: =InpR!N37 -> 0.02470588235 | O37: =InpR!O37 -> 0.02470588235 | P37: =P34*P35 -> 0
E38: Allowed sector cost of embedded debt (after any CSA adjustments) | K38: =K37+(K8*K10) -> 0.02470588235 | L38: =L37+(L8*L10) -> 0.02470588235 | M38: =M37+(M8*M10) -> 0.02470588235 | N38: =N37+(N8*N10) -> 0.02470588235 | O38: =O37+(O8*O10) -> 0.02470588235
E39: ='RCV and post 2020 investment'!E65 -> Bioresources Notional debt | F39: ='RCV and post 2020 investment'!F65 -> 0 | G39: ='RCV and post 2020 investment'!G65 -> £m | H39: ='RCV and post 2020 investment'!H65 -> 412.3117873 | I39: ='RCV and post 2020 investment'!I65 -> 0 | J39: ='RCV and post 2020 investment'!J65 -> 0 | K39: ='RCV and post 2020 investment'!K65 -> 82.50937453 | L39: ='RCV and post 2020 investment'!L65 -> 82.1673123 | M39: ='RCV and post 2020 investment'!M65 -> 82.20056841 | N39: ='RCV and post 2020 investment'!N65 -> 82.47918323 | O39: ='RCV and post 2020 investment'!O65 -> 82.95534881
E40: Bioresources initial cost of debt allowance | G40: £m | I40: =I$14 -> 0 | K40: =(K39 * $K34 * K36) + (K39 * (1-$K34) * K38) -> 1.718055496 | L40: =(L39 * $K34 * L36) + (L39 * (1-$K34) * L38) -> 1.710932888 | M40: 1.711625365 | N40: 1.717426836 | O40: 1.727341817 | P40: =(P39 * $F34 * P35) + (P39 * (1-$F34) * P37) -> 0
P41: =P14 -> 0
A42: RECONCILIATION ADJUSTMENTS | P42: =P40-P41 -> 0
E43: =E$31 -> Bioresources outturn debt allowance | F43: =F$31 -> 0 | G43: £m | H43: 9.399151757 | I43: 0 | J43: 0 | K43: 1.973668833 | L43: 1.844152226 | M43: 1.796274871 | N43: 1.848230488 | O43: 1.936825338
E44: =E$40 -> Bioresources initial cost of debt allowance | F44: =F$40 -> 0 | G44: £m | H44: 0 | I44: 0 | J44: 0 | K44: 1.718055496 | L44: 1.710932888 | M44: 1.711625365 | N44: 1.717426836 | O44: 1.727341817
E45: Reconciliation (in-year values) - Bioresources | G45: £m | H45: =SUM(J45:O45) -> 0.8137693548 | J45: =J43-J44 -> 0 | K45: 0.2556133372 | L45: 0.1332193379 | M45: 0.08464950609 | N45: 0.1308036526 | O45: 0.209483521
E47: =InpC!E$61 -> PV base date | F47: =InpC!F$61 -> 2025-03-31 | G47: =InpC!G$61 -> date
E48: =InpC!E$62 -> Days in a year | F48: =InpC!F$62 -> 365 | G48: =InpC!G$62 -> days
E49: =Time!E$22 -> Model Period END | F49: =Time!F$22 -> 0 | G49: =Time!G$22 -> date | H49: =Time!H$22 -> 00:00:00 | I49: =Time!I$22 -> 00:00:00 | J49: =Time!J$22 -> 2020-03-31 | K49: =Time!K$22 -> 2021-03-31 | L49: =Time!L$22 -> 2022-03-31 | M49: =Time!M$22 -> 2023-03-31 | N49: =Time!N$22 -> 2024-03-31 | O49: =Time!O$22 -> 2025-03-31 | P49: =Time!P$22 -> 2026-03-31
E50: Years from valuation date - Bioresources | G50: years | J50: =( ( J49 - $F47 ) / $F48 ) * -1 -> 5.002739726 | K50: 4.002739726 | L50: 3.002739726 | M50: 2.002739726 | N50: 1 | O50: 0
E52: =InpC!E56 -> PR19 appointee allowed return on capital (CPIH-deflated using long-term assumption) | F52: =InpC!F56 -> 0.0319998 | G52: =InpC!G56 -> percentage | K52: =$F$52 -> 0.0319998 | L52: =$F$52 -> 0.0319998 | M52: 0.0319998 | N52: 0.0319998 | O52: 0.0319998
E53: =E$50 -> Years from valuation date - Bioresources | F53: =F$50 -> 0 | G53: years | H53: 0 | I53: 0 | J53: 5.002739726 | K53: 4.002739726 | L53: 3.002739726 | M53: 2.002739726 | N53: 1 | O53: 0
E54: Discount factor - Bioresources | G54: Factor | J54: =(1+$F52) ^J53 -> 1.170672844 | K54: 1.13437313 | L54: 1.099198983 | M54: 1.0651155 | N54: 1.0319998 | O54: 1
E56: =E$45 -> Reconciliation (in-year values) - Bioresources | F56: =F$45 -> 0 | G56: £m | H56: 0.8137693548 | I56: 0 | J56: 0 | K56: 0.2556133372 | L56: 0.1332193379 | M56: 0.08464950609 | N56: 0.1308036526 | O56: 0.209483521
E57: =E$54 -> Discount factor - Bioresources | F57: =F$54 -> 0 | G57: Factor | H57: 0 | I57: 0 | J57: 1.170672844 | K57: 1.13437313 | L57: 1.099198983 | M57: 1.0651155 | N57: 1.0319998 | O57: 1
E58: Discounted reconciliation (in-year values) Bioresources | G58: £m | K58: =K57*K56 -> 0.2899609015 | L58: =L57*L56 -> 0.1464345607 | M58: =M57*M56 -> 0.09016150098 | N58: =N57*N56 -> 0.1349893433 | O58: =O57*O56 -> 0.209483521
E60: =E$58 -> Discounted reconciliation (in-year values) Bioresources | F60: =F$58 -> 0 | G60: £m | H60: 0 | I60: 0 | J60: 0 | K60: 0.2899609015 | L60: 0.1464345607 | M60: 0.09016150098 | N60: 0.1349893433 | O60: 0.209483521
E61: Total value of reconciliation (31 March 2025 present values): Bioresources | G61: £m | H61: =SUM(K60:O60) -> 0.8710298274

Sheet Dummy
A1: =RIGHT(CELL("filename", $A$1), LEN(CELL("filename", $A$1)) - SEARCH("]", CELL("filename", $A$1))) -> Dummy
J2: =Time!J$22 -> 2020-03-31 | K2: =Time!K$22 -> 2021-03-31 | L2: =Time!L$22 -> 2022-03-31 | M2: =Time!M$22 -> 2023-03-31 | N2: =Time!N$22 -> 2024-03-31 | O2: =Time!O$22 -> 2025-03-31 | P2: =Time!P$22 -> 2026-03-31
J3: =Time!J$58 -> Pre Fcst | K3: =Time!K$58 -> Forecast | L3: =Time!L$58 -> Forecast | M3: =Time!M$58 -> Forecast | N3: =Time!N$58 -> Forecast | O3: =Time!O$58 -> Forecast | P3: =Time!P$58 -> Post-Fcst
E4: =Time!E$86 -> Financial Year Ending | J4: =Time!J$86 -> 2020 | K4: =Time!K$86 -> 2021 | L4: =Time!L$86 -> 2022 | M4: =Time!M$86 -> 2023 | N4: =Time!N$86 -> 2024 | O4: =Time!O$86 -> 2025 | P4: =Time!P$86 -> 2026
E5: =Time!E$10 -> Model column counter | F5: Constant | G5: Unit | H5: Total | J5: =Time!J$10 -> 1 | K5: =Time!K$10 -> 2 | L5: =Time!L$10 -> 3 | M5: =Time!M$10 -> 4 | N5: =Time!N$10 -> 5 | O5: =Time!O$10 -> 6 | P5: =Time!P$10 -> 7
A7: COST OF DEBT CALCULATION BASED ON INDEX OUTTURN
E8: Company-specific adjustment flag | F8: =IF(InpC!$F$70="YES",1,0) -> 0 | G8: Flag | K8: =$F$8 -> 0 | L8: =$F$8 -> 0 | M8: 0 | N8: 0 | O8: 0
E9: =InpC!E64 -> Company-specific adjustment (new debt) | F9: =InpC!F64 -> 0 | G9: ='Cost of Debt'!G47 -> Percentage | K9: =$F$9 -> 0 | L9: =$F$9 -> 0 | M9: 0 | N9: 0 | O9: 0
E10: =InpC!E65 -> Company-specific adjustment (embedded debt) | F10: =InpC!$F$65 -> 0 | G10: ='Cost of Debt'!G48 -> Percentage | K10: =$F$10 -> 0 | L10: =$F$10 -> 0 | M10: =$F$10 -> 0 | N10: =$F$10 -> 0 | O10: =$F$10 -> 0
E11: ='Cost of Debt'!E48 -> Extending trailing average rate | F11: ='Cost of Debt'!F48 -> 0 | G11: ='Cost of Debt'!G48 -> Percentage | H11: ='Cost of Debt'!H48 -> 0 | I11: ='Cost of Debt'!I48 -> 0 | J11: ='Cost of Debt'!J48 -> 0 | K11: ='Cost of Debt'!K48 -> 0.001607591799 | L11: ='Cost of Debt'!L48 -> 0.002529260901 | M11: ='Cost of Debt'!M48 -> 0.007920346411 | N11: ='Cost of Debt'!N48 -> 0.01505279683 | O11: ='Cost of Debt'!O48 -> 0.02026772226 | P11: ='Cost of Debt'!P48 -> 0
E12: Extending trailing average rate (after any CSA adjustments) | G12: Percentage | K12: =K11+(K8*K9) -> 0.001607591799 | L12: =L11+(L8*L9) -> 0.002529260901 | M12: 0.007920346411 | N12: 0.01505279683 | O12: 0.02026772226 | P12: 0
E13: ='RCV and post 2020 investment'!E86 -> Dummy New debt for return | F13: ='RCV and post 2020 investment'!F86 -> 0 | G13: ='RCV and post 2020 investment'!G86 -> £m | H13: ='RCV and post 2020 investment'!H86 -> 0 | I13: ='RCV and post 2020 investment'!I86 -> 0 | J13: ='RCV and post 2020 investment'!J86 -> 0 | K13: ='RCV and post 2020 investment'!K86 -> 0 | L13: ='RCV and post 2020 investment'!L86 -> 0 | M13: ='RCV and post 2020 investment'!M86 -> 0 | N13: ='RCV and post 2020 investment'!N86 -> 0 | O13: ='RCV and post 2020 investment'!O86 -> 0 | P13: ='RCV and post 2020 investment'!P52 -> 0
E14: Dummy extending trailing average interest cost | G14: £m | H14: =SUM(J14:O14) -> 0 | J14: =J11 * J13 -> 0 | K14: =K12 * K13 -> 0 | L14: =L12 * L13 -> 0 | M14: 0 | N14: 0 | O14: 0 | P14: 0
E16: ='RCV and post 2020 investment'!E90 -> Dummy Embedded debt for return | F16: ='RCV and post 2020 investment'!F56 -> 0 | G16: ='RCV and post 2020 investment'!G56 -> £m | H16: ='RCV and post 2020 investment'!H90 -> 0 | I16: ='RCV and post 2020 investment'!I56 -> 0 | J16: ='RCV and post 2020 investment'!J56 -> 0 | K16: ='RCV and post 2020 investment'!K90 -> 0 | L16: ='RCV and post 2020 investment'!L90 -> 0 | M16: ='RCV and post 2020 investment'!M90 -> 0 | N16: ='RCV and post 2020 investment'!N90 -> 0 | O16: ='RCV and post 2020 investment'!O90 -> 0 | P16: ='RCV and post 2020 investment'!P56 -> 0
E17: =InpR!E$37 -> Allowed sector embedded debt cost (not inc. CSA) - final determination (CPIH real) | F17: =InpR!F$37 -> 0 | G17: =InpR!G$37 -> percentage | H17: =InpR!H$37 -> 0 | I17: =InpR!I$37 -> 0 | J17: =InpR!J$37 -> 0 | K17: =InpR!K$37 -> 0.02470588235 | L17: =InpR!L$37 -> 0.02470588235 | M17: =InpR!M$37 -> 0.02470588235 | N17: =InpR!N$37 -> 0.02470588235 | O17: =InpR!O$37 -> 0.02470588235 | P17: =InpR!P$37 -> 0
E18: Allowed sector embedded debt cost (after any CSA adjustments) | K18: =K17+(K8*K10) -> 0.02470588235 | L18: =L17+(L8*L10) -> 0.02470588235 | M18: 0.02470588235 | N18: 0.02470588235 | O18: 0.02470588235
E19: Dummy Embedded debt interest cost | G19: £m | H19: =SUM(J19:O19) -> 0 | J19: =J16 * J17 -> 0 | K19: =K16 * K18 -> 0 | L19: =L16 * L18 -> 0 | M19: 0 | N19: 0 | O19: 0 | P19: =P16 * P17 -> 0
E21: Dummy outturn allowed new debt cost (CPIH real) | F21: 0 | G21: Percentage | K21: =K12 -> 0.001607591799 | L21: =L12 -> 0.002529260901 | M21: 0.007920346411 | N21: 0.01505279683 | O21: 0.02026772226
E22: Dummy allowed embedded debt cost (CPIH real) | F22: 0 | G22: Percentage | K22: =K18 -> 0.02470588235 | L22: =L18 -> 0.02470588235 | M22: 0.02470588235 | N22: 0.02470588235 | O22: 0.02470588235 | P22: =P17 -> 0
E23: Ratio of new to embedded debt for outturn cost of debt allowance | F23: 0 | G23: Percentage | K23: =InpR!K57 -> 0.034 | L23: =InpR!L57 -> 0.102 | M23: =InpR!M57 -> 0.17 | N23: =InpR!N57 -> 0.238 | O23: =InpR!O57 -> 0.306
E24: Dummy outturn allowed cost of overall debt (CPIH real) | F24: 0 | G24: Percentage | K24: =(K23*K21)+(1-K23)*K22 -> 0.02392054047 | L24: =(L23*L21)+(1-L23)*L22 -> 0.02244386696 | M24: =(M23*M21)+(1-M23)*M22 -> 0.02185234124 | N24: =(N23*N21)+(1-N23)*N22 -> 0.022408448 | O24: =(O23*O21)+(1-O23)*O22 -> 0.02334780537
E25: CPIH inflation (long-term assumption) | F25: 0 | G25: Percentage | K25: =InpR!K59 -> 0.02 | L25: =InpR!L59 -> 0.02 | M25: =InpR!M59 -> 0.02 | N25: =InpR!N59 -> 0.02 | O25: =InpR!O59 -> 0.02
E26: Issuance and liquidity costs | G26: Percentage | K26: =InpR!K38 -> 0.001 | L26: =InpR!L38 -> 0.001 | M26: =InpR!M38 -> 0.001 | N26: =InpR!N38 -> 0.001 | O26: =InpR!O38 -> 0.001
E27: Dummy outturn allowed cost of overall debt (Nominal) | F27: 0 | G27: Percentage | K27: =((1+K24)*(1+K25)-1)+K26 -> 0.04539895128 | L27: 0.0438927443 | M27: =((1+M24)*(1+M25)-1)+M26 -> 0.04328938807 | N27: =((1+N24)*(1+N25)-1)+N26 -> 0.04385661696 | O27: 0.04481476147
E29: =E$14 -> Dummy extending trailing average interest cost | F29: 0 | G29: £m | H29: 0 | I29: 0 | J29: 0 | K29: 0 | L29: 0 | M29: 0 | N29: 0 | O29: 0 | P29: 0
E30: =E$19 -> Dummy Embedded debt interest cost | F30: =F$19 -> 0 | G30: =G$19 -> £m | H30: 0 | I30: 0 | J30: 0 | K30: 0 | L30: 0 | M30: 0 | N30: 0 | O30: 0 | P30: 0
E31: Dummy outturn debt allowance | G31: £m | H31: =SUM(J31:O31) -> 0 | J31: =SUM(J29:J30) -> 0 | K31: 0 | L31: 0 | M31: 0 | N31: 0 | O31: 0 | P31: 0
A33: FD ALLOWANCE
E34: =InpC!E51 -> Notional % of 'new' debt over period | F34: =InpC!F51 -> 0.17 | G34: =InpC!G51 -> percentage | K34: =$F$34 -> 0.17 | L34: =$F$34 -> 0.17 | M34: 0.17 | N34: 0.17 | O34: 0.17 | P34: =InpR!P36 -> 0
E35: =InpR!E36 -> Allowed sector new debt cost (not inc. CSA) - final determination (CPIH real) | F35: =InpR!F36 -> 0 | G35: =InpR!G36 -> percentage | H35: =InpR!H36 -> 0 | I35: =InpR!I36 -> 0 | J35: =InpR!J36 -> 0 | K35: =InpR!K36 -> 0.001862745098 | L35: =InpR!L36 -> 0.001862745098 | M35: =InpR!M36 -> 0.001862745098 | N35: =InpR!N36 -> 0.001862745098 | O35: =InpR!O36 -> 0.001862745098 | P35: =P13 -> 0
E36: Allowed sector cost of new debt (after any CSA adjustments) | K36: =K35+(K8*K9) -> 0.001862745098 | L36: =L35+(L8*L9) -> 0.001862745098 | M36: =M35+(M8*M9) -> 0.001862745098 | N36: =N35+(N8*N9) -> 0.001862745098 | O36: =O35+(O8*O9) -> 0.001862745098
E37: =InpR!E37 -> Allowed sector embedded debt cost (not inc. CSA) - final determination (CPIH real) | F37: =InpR!F37 -> 0 | G37: =InpR!G37 -> percentage | H37: =InpR!H37 -> 0 | I37: =InpR!I37 -> 0 | J37: =InpR!J37 -> 0 | K37: =InpR!K37 -> 0.02470588235 | L37: =InpR!L37 -> 0.02470588235 | M37: =InpR!M37 -> 0.02470588235 | N37: =InpR!N37 -> 0.02470588235 | O37: =InpR!O37 -> 0.02470588235 | P37: =P34*P35 -> 0
E38: Allowed sector cost of embedded debt (after any CSA adjustments) | K38: =K37+(K8*K10) -> 0.02470588235 | L38: =L37+(L8*L10) -> 0.02470588235 | M38: =M37+(M8*M10) -> 0.02470588235 | N38: =N37+(N8*N10) -> 0.02470588235 | O38: =O37+(O8*O10) -> 0.02470588235
E39: ='RCV and post 2020 investment'!E82 -> Dummy Notional debt | F39: ='RCV and post 2020 investment'!F82 -> 0 | G39: ='RCV and post 2020 investment'!G82 -> £m | H39: ='RCV and post 2020 investment'!H82 -> 0 | I39: ='RCV and post 2020 investment'!I82 -> 0 | J39: ='RCV and post 2020 investment'!J82 -> 0 | K39: ='RCV and post 2020 investment'!K82 -> 0 | L39: ='RCV and post 2020 investment'!L82 -> 0 | M39: ='RCV and post 2020 investment'!M82 -> 0 | N39: ='RCV and post 2020 investment'!N82 -> 0 | O39: ='RCV and post 2020 investment'!O82 -> 0
E40: Dummy initial cost of debt allowance | G40: £m | I40: =I$14 -> 0 | K40: =(K39 * $K34 * K36) + (K39 * (1-$K34) * K38) -> 0 | L40: =(L39 * $K34 * L36) + (L39 * (1-$K34) * L38) -> 0 | M40: 0 | N40: 0 | O40: 0 | P40: =(P39 * $F34 * P35) + (P39 * (1-$F34) * P37) -> 0
P41: =P14 -> 0
A42: RECONCILIATION ADJUSTMENTS | P42: =P40-P41 -> 0
E43: =E$31 -> Dummy outturn debt allowance | F43: =F$31 -> 0 | G43: £m | H43: 0 | I43: 0 | J43: 0 | K43: 0 | L43: 0 | M43: 0 | N43: 0 | O43: 0
E44: =E$40 -> Dummy initial cost of debt allowance | F44: =F$40 -> 0 | G44: £m | H44: 0 | I44: 0 | J44: 0 | K44: 0 | L44: 0 | M44: 0 | N44: 0 | O44: 0
E45: Reconciliation (in-year values) - Dummy | G45: £m | H45: =SUM(J45:O45) -> 0 | J45: =J43-J44 -> 0 | K45: 0 | L45: 0 | M45: 0 | N45: 0 | O45: 0
E47: =InpC!E$61 -> PV base date | F47: =InpC!F$61 -> 2025-03-31 | G47: =InpC!G$61 -> date
E48: =InpC!E$62 -> Days in a year | F48: =InpC!F$62 -> 365 | G48: =InpC!G$62 -> days
E49: =Time!E$22 -> Model Period END | F49: =Time!F$22 -> 0 | G49: =Time!G$22 -> date | H49: =Time!H$22 -> 00:00:00 | I49: =Time!I$22 -> 00:00:00 | J49: =Time!J$22 -> 2020-03-31 | K49: =Time!K$22 -> 2021-03-31 | L49: =Time!L$22 -> 2022-03-31 | M49: =Time!M$22 -> 2023-03-31 | N49: =Time!N$22 -> 2024-03-31 | O49: =Time!O$22 -> 2025-03-31 | P49: =Time!P$22 -> 2026-03-31
E50: Years from valuation date - Dummy | G50: years | J50: =( ( J49 - $F47 ) / $F48 ) * -1 -> 5.002739726 | K50: 4.002739726 | L50: 3.002739726 | M50: 2.002739726 | N50: 1 | O50: 0
E52: =InpC!E56 -> PR19 appointee allowed return on capital (CPIH-deflated using long-term assumption) | F52: =InpC!F56 -> 0.0319998 | G52: =InpC!G56 -> percentage | K52: =$F$52 -> 0.0319998 | L52: =$F$52 -> 0.0319998 | M52: 0.0319998 | N52: 0.0319998 | O52: 0.0319998
E53: =E$50 -> Years from valuation date - Dummy | F53: =F$50 -> 0 | G53: years | H53: 0 | I53: 0 | J53: 5.002739726 | K53: 4.002739726 | L53: 3.002739726 | M53: 2.002739726 | N53: 1 | O53: 0
E54: Discount factor - Dummy | G54: Factor | J54: =(1+$F52) ^J53 -> 1.170672844 | K54: 1.13437313 | L54: 1.099198983 | M54: 1.0651155 | N54: 1.0319998 | O54: 1
E56: =E$45 -> Reconciliation (in-year values) - Dummy | F56: =F$45 -> 0 | G56: £m | H56: 0 | I56: 0 | J56: 0 | K56: 0 | L56: 0 | M56: 0 | N56: 0 | O56: 0
E57: =E$54 -> Discount factor - Dummy | F57: =F$54 -> 0 | G57: Factor | H57: 0 | I57: 0 | J57: 1.170672844 | K57: 1.13437313 | L57: 1.099198983 | M57: 1.0651155 | N57: 1.0319998 | O57: 1
E58: Discounted reconciliation (in-year values) Dummy | G58: £m | K58: =K57*K56 -> 0 | L58: =L57*L56 -> 0 | M58: =M57*M56 -> 0 | N58: =N57*N56 -> 0 | O58: =O57*O56 -> 0
E60: =E$58 -> Discounted reconciliation (in-year values) Dummy | F60: =F$58 -> 0 | G60: £m | H60: 0 | I60: 0 | J60: 0 | K60: 0 | L60: 0 | M60: 0 | N60: 0 | O60: 0
E61: Total value of reconciliation (31 March 2025 present values): Dummy | G61: £m | H61: =SUM(K60:O60) -> 0

Sheet Output
A1: =RIGHT(CELL("filename", $A$1), LEN(CELL("filename", $A$1)) - SEARCH("]", CELL("filename", $A$1))) -> Output
J2: =Time!J22 -> 2020-03-31 | K2: =Time!K22 -> 2021-03-31 | L2: =Time!L22 -> 2022-03-31 | M2: =Time!M22 -> 2023-03-31 | N2: =Time!N22 -> 2024-03-31 | O2: =Time!O22 -> 2025-03-31 | P2: =Time!P22 -> 2026-03-31
J3: =Time!J58 -> Pre Fcst | K3: =Time!K58 -> Forecast | L3: =Time!L58 -> Forecast | M3: =Time!M58 -> Forecast | N3: =Time!N58 -> Forecast | O3: =Time!O58 -> Forecast | P3: =Time!P58 -> Post-Fcst
J4: =Time!J86 -> 2020 | K4: =Time!K86 -> 2021 | L4: =Time!L86 -> 2022 | M4: =Time!M86 -> 2023 | N4: =Time!N86 -> 2024 | O4: =Time!O86 -> 2025 | P4: =Time!P86 -> 2026
F5: Constant | G5: Unit | H5: Total | J5: =Time!J5 -> 1 | K5: =Time!K5 -> 2 | L5: =Time!L5 -> 3 | M5: =Time!M5 -> 4 | N5: =Time!N5 -> 5 | O5: =Time!O5 -> 6 | P5: =Time!P5 -> 7
A7: Total revenue adjustments applied as part of PR24
E9: Outturn nominal weighted average cost of debt - Water resources | G9: % | K9: ='Water resources'!K27 -> 0.04539895128 | L9: ='Water resources'!L27 -> 0.0438927443 | M9: ='Water resources'!M27 -> 0.04328938807 | N9: ='Water resources'!N27 -> 0.04385661696 | O9: ='Water resources'!O27 -> 0.04481476147
E10: Outturn nominal weighted average cost of debt - Water network plus | G10: % | K10: ='Water network +'!K27 -> 0.04539895128 | L10: ='Water network +'!L27 -> 0.0438927443 | M10: ='Water network +'!M27 -> 0.04328938807 | N10: ='Water network +'!N27 -> 0.04385661696 | O10: ='Water network +'!O27 -> 0.04481476147
E11: Outturn nominal weighted average cost of debt - Wastewater network plus | G11: % | K11: ='Wastewater network +'!K27 -> 0.04539895128 | L11: ='Wastewater network +'!L27 -> 0.0438927443 | M11: ='Wastewater network +'!M27 -> 0.04328938807 | N11: ='Wastewater network +'!N27 -> 0.04385661696 | O11: ='Wastewater network +'!O27 -> 0.04481476147
E12: Outturn nominal weighted average cost of debt - Bioresources | G12: % | K12: =Bioresources!K27 -> 0.04539895128 | L12: =Bioresources!L27 -> 0.0438927443 | M12: =Bioresources!M27 -> 0.04328938807 | N12: =Bioresources!N27 -> 0.04385661696 | O12: =Bioresources!O27 -> 0.04481476147
E13: Outturn nominal weighted average cost of debt - Dummy | G13: % | K13: =Dummy!K27 -> 0.04539895128 | L13: =Dummy!L27 -> 0.0438927443 | M13: =Dummy!M27 -> 0.04328938807 | N13: =Dummy!N27 -> 0.04385661696 | O13: =Dummy!O27 -> 0.04481476147
E15: Revenue adjustment from new debt reconciliation - Water resources | G15: £m, CPIH-deflated 2017/18 prices, 2024/25 present values | K15: ='Water resources'!K60 -> 0.6231371206 | L15: ='Water resources'!L60 -> 0.3074030053 | M15: ='Water resources'!M60 -> 0.1839653178 | N15: ='Water resources'!N60 -> 0.2657970472 | O15: ='Water resources'!O60 -> 0.3963953299
E16: Revenue adjustment from new debt reconciliation - Water network plus | G16: £m, CPIH-deflated 2017/18 prices, 2024/25 present values | K16: ='Water network +'!K60 -> 3.625853016 | L16: ='Water network +'!L60 -> 1.885654031 | M16: ='Water network +'!M60 -> 1.191143644 | N16: ='Water network +'!N60 -> 1.809728585 | O16: ='Water network +'!O60 -> 2.81763928
E17: Revenue adjustment from new debt reconciliation - Wastewater network plus | G17: £m, CPIH-deflated 2017/18 prices, 2024/25 present values | K17: ='Wastewater network +'!K60 -> 3.857446871 | L17: ='Wastewater network +'!L60 -> 1.963828551 | M17: ='Wastewater network +'!M60 -> 1.228045305 | N17: ='Wastewater network +'!N60 -> 1.898809608 | O17: ='Wastewater network +'!O60 -> 3.034322857
E18: Revenue adjustment from new debt reconciliation - Bioresources | G18: £m, CPIH-deflated 2017/18 prices, 2024/25 present values | K18: =Bioresources!K60 -> 0.2899609015 | L18: =Bioresources!L60 -> 0.1464345607 | M18: =Bioresources!M60 -> 0.09016150098 | N18: =Bioresources!N60 -> 0.1349893433 | O18: =Bioresources!O60 -> 0.209483521
E19: Revenue adjustment from new debt reconciliation - Dummy | G19: £m, CPIH-deflated 2017/18 prices, 2024/25 present values | K19: =Dummy!K60 -> 0 | L19: =Dummy!L60 -> 0 | M19: =Dummy!M60 -> 0 | N19: =Dummy!N60 -> 0 | O19: =Dummy!O60 -> 0
